{"text_format":"1","workbook":"xlsx","n_sheets":2,"sheets":["Mapa","Fronteras"],"not_rendered":{"charts":0,"images":1,"macros":1,"external_links":0,"defined_names":19,"comments":0,"pivot_tables":0},"unopened":[],"bounds":{"document_bytes":16777216,"sheet_cells":100000,"rows_first":2000,"rows_last":500,"rows_between":2000,"halvings":0,"cell_chars":16384,"cell_head_chars":4096},"cells_cut":0,"cells_raw":0,"read":"whole","date_system":"1900"}

{"sheet":"Mapa","index":0,"n_rows":0,"n_cols":0,"rows_kept":0,"cut":false,"hidden":false,"merged":[]}

{"sheet":"Fronteras","index":1,"n_rows":245,"n_cols":13,"rows_kept":245,"cut":false,"hidden":false,"merged":[]}
["Frontera","X","Y","Ancho","Alto","Centro X","Centro Y","Distancia","Fila"]
["Australia",487.86032104492188,225.68606567382813,207.02842712402344,105.6832275390625,{"$f":"TablaFronteras[[#This Row],[X]]+TablaFronteras[[#This Row],[Ancho]]/2","v":591.37453460693359},{"$f":"TablaFronteras[[#This Row],[Y]]+TablaFronteras[[#This Row],[Alto]]/2","v":278.52767944335938},{"$f":"IF(AND(TablaFronteras[[#This Row],[Fila]]<>\"\",TablaFronteras[[#This Row],[X]]<miX,miX<TablaFronteras[[#This Row],[X]]+TablaFronteras[[#This Row],[Ancho]],TablaFronteras[[#This Row],[Y]]<miY,miY<TablaFronteras[[#This Row],[Y]]+TablaFronteras[[#This Row],[Alto]]),SQRT((TablaFronteras[[#This Row],[Centro X]]-miX)^2+(TablaFronteras[[#This Row],[Centro Y]]-miY)^2),\"\")","v":""},{"$f":"IF(TablaFronteras[[#This Row],[Frontera]]=\"\",\"\",IFERROR(MATCH(RIGHT(TablaFronteras[[#This Row],[Frontera]],LEN(TablaFronteras[[#This Row],[Frontera]])-IFERROR(FIND(\" - \",TablaFronteras[[#This Row],[Frontera]])+2,0)),TablaFronteras[Frontera],0),\"\"))","v":1}]
["Indonesia",551.52520751953125,186.94007873535156,95.4527587890625,40.769447326660156,{"$f":"TablaFronteras[[#This Row],[X]]+TablaFronteras[[#This Row],[Ancho]]/2","v":599.2515869140625},{"$f":"TablaFronteras[[#This Row],[Y]]+TablaFronteras[[#This Row],[Alto]]/2","v":207.32480239868164},{"$f":"IF(AND(TablaFronteras[[#This Row],[Fila]]<>\"\",TablaFronteras[[#This Row],[X]]<miX,miX<TablaFronteras[[#This Row],[X]]+TablaFronteras[[#This Row],[Ancho]],TablaFronteras[[#This Row],[Y]]<miY,miY<TablaFronteras[[#This Row],[Y]]+TablaFronteras[[#This Row],[Alto]]),SQRT((TablaFronteras[[#This Row],[Centro X]]-miX)^2+(TablaFronteras[[#This Row],[Centro Y]]-miY)^2),\"\")","v":""},{"$f":"IF(TablaFronteras[[#This Row],[Frontera]]=\"\",\"\",IFERROR(MATCH(RIGHT(TablaFronteras[[#This Row],[Frontera]],LEN(TablaFronteras[[#This Row],[Frontera]])-IFERROR(FIND(\" - \",TablaFronteras[[#This Row],[Frontera]])+2,0)),TablaFronteras[Frontera],0),\"\"))","v":2},null,null,"Blog:","#ExcelPedroWave"]
["Groenlandia",263.80087280273438,12.577165603637695,83.109840393066406,45.757087707519531,{"$f":"TablaFronteras[[#This Row],[X]]+TablaFronteras[[#This Row],[Ancho]]/2","v":305.35579299926758},{"$f":"TablaFronteras[[#This Row],[Y]]+TablaFronteras[[#This Row],[Alto]]/2","v":35.455709457397461},{"$f":"IF(AND(TablaFronteras[[#This Row],[Fila]]<>\"\",TablaFronteras[[#This Row],[X]]<miX,miX<TablaFronteras[[#This Row],[X]]+TablaFronteras[[#This Row],[Ancho]],TablaFronteras[[#This Row],[Y]]<miY,miY<TablaFronteras[[#This Row],[Y]]+TablaFronteras[[#This Row],[Alto]]),SQRT((TablaFronteras[[#This Row],[Centro X]]-miX)^2+(TablaFronteras[[#This Row],[Centro Y]]-miY)^2),\"\")","v":""},{"$f":"IF(TablaFronteras[[#This Row],[Frontera]]=\"\",\"\",IFERROR(MATCH(RIGHT(TablaFronteras[[#This Row],[Frontera]],LEN(TablaFronteras[[#This Row],[Frontera]])-IFERROR(FIND(\" - \",TablaFronteras[[#This Row],[Frontera]])+2,0)),TablaFronteras[Frontera],0),\"\"))","v":3},null,null,"YouTube:","Excel Pedro Wave"]
["Canadá",123.29716491699219,14.583701133728027,163.26881408691406,86.135200500488281,{"$f":"TablaFronteras[[#This Row],[X]]+TablaFronteras[[#This Row],[Ancho]]/2","v":204.93157196044922},{"$f":"TablaFronteras[[#This Row],[Y]]+TablaFronteras[[#This Row],[Alto]]/2","v":57.651301383972168},{"$f":"IF(AND(TablaFronteras[[#This Row],[Fila]]<>\"\",TablaFronteras[[#This Row],[X]]<miX,miX<TablaFronteras[[#This Row],[X]]+TablaFronteras[[#This Row],[Ancho]],TablaFronteras[[#This Row],[Y]]<miY,miY<TablaFronteras[[#This Row],[Y]]+TablaFronteras[[#This Row],[Alto]]),SQRT((TablaFronteras[[#This Row],[Centro X]]-miX)^2+(TablaFronteras[[#This Row],[Centro Y]]-miY)^2),\"\")","v":""},{"$f":"IF(TablaFronteras[[#This Row],[Frontera]]=\"\",\"\",IFERROR(MATCH(RIGHT(TablaFronteras[[#This Row],[Frontera]],LEN(TablaFronteras[[#This Row],[Frontera]])-IFERROR(FIND(\" - \",TablaFronteras[[#This Row],[Frontera]])+2,0)),TablaFronteras[Frontera],0),\"\"))","v":4},null,null,"Copyright:","Creative Commons 3.0"]
["Estados Unidos",28.168031692504883,38.176536560058594,203.52133178710938,114.87968444824219,{"$f":"TablaFronteras[[#This Row],[X]]+TablaFronteras[[#This Row],[Ancho]]/2","v":129.92869758605957},{"$f":"TablaFronteras[[#This Row],[Y]]+TablaFronteras[[#This Row],[Alto]]/2","v":95.616378784179688},{"$f":"IF(AND(TablaFronteras[[#This Row],[Fila]]<>\"\",TablaFronteras[[#This Row],[X]]<miX,miX<TablaFronteras[[#This Row],[X]]+TablaFronteras[[#This Row],[Ancho]],TablaFronteras[[#This Row],[Y]]<miY,miY<TablaFronteras[[#This Row],[Y]]+TablaFronteras[[#This Row],[Alto]]),SQRT((TablaFronteras[[#This Row],[Centro X]]-miX)^2+(TablaFronteras[[#This Row],[Centro Y]]-miY)^2),\"\")","v":""},{"$f":"IF(TablaFronteras[[#This Row],[Frontera]]=\"\",\"\",IFERROR(MATCH(RIGHT(TablaFronteras[[#This Row],[Frontera]],LEN(TablaFronteras[[#This Row],[Frontera]])-IFERROR(FIND(\" - \",TablaFronteras[[#This Row],[Frontera]])+2,0)),TablaFronteras[Frontera],0),\"\"))","v":5}]
["India",493.29095458984375,114.14748382568359,56.800315856933594,69.589370727539063,{"$f":"TablaFronteras[[#This Row],[X]]+TablaFronteras[[#This Row],[Ancho]]/2","v":521.69111251831055},{"$f":"TablaFronteras[[#This Row],[Y]]+TablaFronteras[[#This Row],[Alto]]/2","v":148.94216918945313},{"$f":"IF(AND(TablaFronteras[[#This Row],[Fila]]<>\"\",TablaFronteras[[#This Row],[X]]<miX,miX<TablaFronteras[[#This Row],[X]]+TablaFronteras[[#This Row],[Ancho]],TablaFronteras[[#This Row],[Y]]<miY,miY<TablaFronteras[[#This Row],[Y]]+TablaFronteras[[#This Row],[Alto]]),SQRT((TablaFronteras[[#This Row],[Centro X]]-miX)^2+(TablaFronteras[[#This Row],[Centro Y]]-miY)^2),\"\")","v":""},{"$f":"IF(TablaFronteras[[#This Row],[Frontera]]=\"\",\"\",IFERROR(MATCH(RIGHT(TablaFronteras[[#This Row],[Frontera]],LEN(TablaFronteras[[#This Row],[Frontera]])-IFERROR(FIND(\" - \",TablaFronteras[[#This Row],[Frontera]])+2,0)),TablaFronteras[Frontera],0),\"\"))","v":6}]
["Ucrania",396.71023559570313,75.1226806640625,32.762519836425781,16.790550231933594,{"$f":"TablaFronteras[[#This Row],[X]]+TablaFronteras[[#This Row],[Ancho]]/2","v":413.09149551391602},{"$f":"TablaFronteras[[#This Row],[Y]]+TablaFronteras[[#This Row],[Alto]]/2","v":83.517955780029297},{"$f":"IF(AND(TablaFronteras[[#This Row],[Fila]]<>\"\",TablaFronteras[[#This Row],[X]]<miX,miX<TablaFronteras[[#This Row],[X]]+TablaFronteras[[#This Row],[Ancho]],TablaFronteras[[#This Row],[Y]]<miY,miY<TablaFronteras[[#This Row],[Y]]+TablaFronteras[[#This Row],[Alto]]),SQRT((TablaFronteras[[#This Row],[Centro X]]-miX)^2+(TablaFronteras[[#This Row],[Centro Y]]-miY)^2),\"\")","v":""},{"$f":"IF(TablaFronteras[[#This Row],[Frontera]]=\"\",\"\",IFERROR(MATCH(RIGHT(TablaFronteras[[#This Row],[Frontera]],LEN(TablaFronteras[[#This Row],[Frontera]])-IFERROR(FIND(\" - \",TablaFronteras[[#This Row],[Frontera]])+2,0)),TablaFronteras[Frontera],0),\"\"))","v":7}]
["Malasia",561.25616455078125,183.47142028808594,40.871810913085938,15.627401351928711,{"$f":"TablaFronteras[[#This Row],[X]]+TablaFronteras[[#This Row],[Ancho]]/2","v":581.69207000732422},{"$f":"TablaFronteras[[#This Row],[Y]]+TablaFronteras[[#This Row],[Alto]]/2","v":191.28512096405029},{"$f":"IF(AND(TablaFronteras[[#This Row],[Fila]]<>\"\",TablaFronteras[[#This Row],[X]]<miX,miX<TablaFronteras[[#This Row],[X]]+TablaFronteras[[#This Row],[Ancho]],TablaFronteras[[#This Row],[Y]]<miY,miY<TablaFronteras[[#This Row],[Y]]+TablaFronteras[[#This Row],[Alto]]),SQRT((TablaFronteras[[#This Row],[Centro X]]-miX)^2+(TablaFronteras[[#This Row],[Centro Y]]-miY)^2),\"\")","v":""},{"$f":"IF(TablaFronteras[[#This Row],[Frontera]]=\"\",\"\",IFERROR(MATCH(RIGHT(TablaFronteras[[#This Row],[Frontera]],LEN(TablaFronteras[[#This Row],[Frontera]])-IFERROR(FIND(\" - \",TablaFronteras[[#This Row],[Frontera]])+2,0)),TablaFronteras[Frontera],0),\"\"))","v":8}]
["China",496.92196655273438,73.566535949707031,107.06149291992188,80.178977966308594,{"$f":"TablaFronteras[[#This Row],[X]]+TablaFronteras[[#This Row],[Ancho]]/2","v":550.45271301269531},{"$f":"TablaFronteras[[#This Row],[Y]]+TablaFronteras[[#This Row],[Alto]]/2","v":113.65602493286133},{"$f":"IF(AND(TablaFronteras[[#This Row],[Fila]]<>\"\",TablaFronteras[[#This Row],[X]]<miX,miX<TablaFronteras[[#This Row],[X]]+TablaFronteras[[#This Row],[Ancho]],TablaFronteras[[#This Row],[Y]]<miY,miY<TablaFronteras[[#This Row],[Y]]+TablaFronteras[[#This Row],[Alto]]),SQRT((TablaFronteras[[#This Row],[Centro X]]-miX)^2+(TablaFronteras[[#This Row],[Centro Y]]-miY)^2),\"\")","v":""},{"$f":"IF(TablaFronteras[[#This Row],[Frontera]]=\"\",\"\",IFERROR(MATCH(RIGHT(TablaFronteras[[#This Row],[Frontera]],LEN(TablaFronteras[[#This Row],[Frontera]])-IFERROR(FIND(\" - \",TablaFronteras[[#This Row],[Frontera]])+2,0)),TablaFronteras[Frontera],0),\"\"))","v":9}]
["Taiwán",598.0986328125,140.01771545410156,2.9928345680236816,8.1870870590209961,{"$f":"TablaFronteras[[#This Row],[X]]+TablaFronteras[[#This Row],[Ancho]]/2","v":599.59505009651184},{"$f":"TablaFronteras[[#This Row],[Y]]+TablaFronteras[[#This Row],[Alto]]/2","v":144.11125898361206},{"$f":"IF(AND(TablaFronteras[[#This Row],[Fila]]<>\"\",TablaFronteras[[#This Row],[X]]<miX,miX<TablaFronteras[[#This Row],[X]]+TablaFronteras[[#This Row],[Ancho]],TablaFronteras[[#This Row],[Y]]<miY,miY<TablaFronteras[[#This Row],[Y]]+TablaFronteras[[#This Row],[Alto]]),SQRT((TablaFronteras[[#This Row],[Centro X]]-miX)^2+(TablaFronteras[[#This Row],[Centro Y]]-miY)^2),\"\")","v":""},{"$f":"IF(TablaFronteras[[#This Row],[Frontera]]=\"\",\"\",IFERROR(MATCH(RIGHT(TablaFronteras[[#This Row],[Frontera]],LEN(TablaFronteras[[#This Row],[Frontera]])-IFERROR(FIND(\" - \",TablaFronteras[[#This Row],[Frontera]])+2,0)),TablaFronteras[Frontera],0),\"\"))","v":10}]
["Rusia",392.03274536132813,19.013149261474609,265.05111694335938,80.784881591796875,{"$f":"TablaFronteras[[#This Row],[X]]+TablaFronteras[[#This Row],[Ancho]]/2","v":524.55830383300781},{"$f":"TablaFronteras[[#This Row],[Y]]+TablaFronteras[[#This Row],[Alto]]/2","v":59.405590057373047},{"$f":"IF(AND(TablaFronteras[[#This Row],[Fila]]<>\"\",TablaFronteras[[#This Row],[X]]<miX,miX<TablaFronteras[[#This Row],[X]]+TablaFronteras[[#This Row],[Ancho]],TablaFronteras[[#This Row],[Y]]<miY,miY<TablaFronteras[[#This Row],[Y]]+TablaFronteras[[#This Row],[Alto]]),SQRT((TablaFronteras[[#This Row],[Centro X]]-miX)^2+(TablaFronteras[[#This Row],[Centro Y]]-miY)^2),\"\")","v":""},{"$f":"IF(TablaFronteras[[#This Row],[Frontera]]=\"\",\"\",IFERROR(MATCH(RIGHT(TablaFronteras[[#This Row],[Frontera]],LEN(TablaFronteras[[#This Row],[Frontera]])-IFERROR(FIND(\" - \",TablaFronteras[[#This Row],[Frontera]])+2,0)),TablaFronteras[Frontera],0),\"\"))","v":11}]
["Crimea - Ucrania",417.07504272460938,84.688896179199219,7.6640157699584961,3.1289763450622559,{"$f":"TablaFronteras[[#This Row],[X]]+TablaFronteras[[#This Row],[Ancho]]/2","v":420.90705060958862},{"$f":"TablaFronteras[[#This Row],[Y]]+TablaFronteras[[#This Row],[Alto]]/2","v":86.253384351730347},{"$f":"IF(AND(TablaFronteras[[#This Row],[Fila]]<>\"\",TablaFronteras[[#This Row],[X]]<miX,miX<TablaFronteras[[#This Row],[X]]+TablaFronteras[[#This Row],[Ancho]],TablaFronteras[[#This Row],[Y]]<miY,miY<TablaFronteras[[#This Row],[Y]]+TablaFronteras[[#This Row],[Alto]]),SQRT((TablaFronteras[[#This Row],[Centro X]]-miX)^2+(TablaFronteras[[#This Row],[Centro Y]]-miY)^2),\"\")","v":""},{"$f":"IF(TablaFronteras[[#This Row],[Frontera]]=\"\",\"\",IFERROR(MATCH(RIGHT(TablaFronteras[[#This Row],[Frontera]],LEN(TablaFronteras[[#This Row],[Frontera]])-IFERROR(FIND(\" - \",TablaFronteras[[#This Row],[Frontera]])+2,0)),TablaFronteras[Frontera],0),\"\"))","v":7}]
["Islandia",321.11376953125,43.924961090087891,16.882362365722656,6.3408660888671875,{"$f":"TablaFronteras[[#This Row],[X]]+TablaFronteras[[#This Row],[Ancho]]/2","v":329.55495071411133},{"$f":"TablaFronteras[[#This Row],[Y]]+TablaFronteras[[#This Row],[Alto]]/2","v":47.095394134521484},{"$f":"IF(AND(TablaFronteras[[#This Row],[Fila]]<>\"\",TablaFronteras[[#This Row],[X]]<miX,miX<TablaFronteras[[#This Row],[X]]+TablaFronteras[[#This Row],[Ancho]],TablaFronteras[[#This Row],[Y]]<miY,miY<TablaFronteras[[#This Row],[Y]]+TablaFronteras[[#This Row],[Alto]]),SQRT((TablaFronteras[[#This Row],[Centro X]]-miX)^2+(TablaFronteras[[#This Row],[Centro Y]]-miY)^2),\"\")","v":""},{"$f":"IF(TablaFronteras[[#This Row],[Frontera]]=\"\",\"\",IFERROR(MATCH(RIGHT(TablaFronteras[[#This Row],[Frontera]],LEN(TablaFronteras[[#This Row],[Frontera]])-IFERROR(FIND(\" - \",TablaFronteras[[#This Row],[Frontera]])+2,0)),TablaFronteras[Frontera],0),\"\"))","v":13}]
["Países Bajos",363.24606323242188,72.651573181152344,7.0876379013061523,6.1222047805786133,{"$f":"TablaFronteras[[#This Row],[X]]+TablaFronteras[[#This Row],[Ancho]]/2","v":366.78988218307495},{"$f":"TablaFronteras[[#This Row],[Y]]+TablaFronteras[[#This Row],[Alto]]/2","v":75.71267557144165},{"$f":"IF(AND(TablaFronteras[[#This Row],[Fila]]<>\"\",TablaFronteras[[#This Row],[X]]<miX,miX<TablaFronteras[[#This Row],[X]]+TablaFronteras[[#This Row],[Ancho]],TablaFronteras[[#This Row],[Y]]<miY,miY<TablaFronteras[[#This Row],[Y]]+TablaFronteras[[#This Row],[Alto]]),SQRT((TablaFronteras[[#This Row],[Centro X]]-miX)^2+(TablaFronteras[[#This Row],[Centro Y]]-miY)^2),\"\")","v":""},{"$f":"IF(TablaFronteras[[#This Row],[Frontera]]=\"\",\"\",IFERROR(MATCH(RIGHT(TablaFronteras[[#This Row],[Frontera]],LEN(TablaFronteras[[#This Row],[Frontera]])-IFERROR(FIND(\" - \",TablaFronteras[[#This Row],[Frontera]])+2,0)),TablaFronteras[Frontera],0),\"\"))","v":14}]
["Francia",348.227783203125,78.050392150878906,26.120708465576172,23.017873764038086,{"$f":"TablaFronteras[[#This Row],[X]]+TablaFronteras[[#This Row],[Ancho]]/2","v":361.28813743591309},{"$f":"TablaFronteras[[#This Row],[Y]]+TablaFronteras[[#This Row],[Alto]]/2","v":89.559329032897949},{"$f":"IF(AND(TablaFronteras[[#This Row],[Fila]]<>\"\",TablaFronteras[[#This Row],[X]]<miX,miX<TablaFronteras[[#This Row],[X]]+TablaFronteras[[#This Row],[Ancho]],TablaFronteras[[#This Row],[Y]]<miY,miY<TablaFronteras[[#This Row],[Y]]+TablaFronteras[[#This Row],[Alto]]),SQRT((TablaFronteras[[#This Row],[Centro X]]-miX)^2+(TablaFronteras[[#This Row],[Centro Y]]-miY)^2),\"\")","v":""},{"$f":"IF(TablaFronteras[[#This Row],[Frontera]]=\"\",\"\",IFERROR(MATCH(RIGHT(TablaFronteras[[#This Row],[Frontera]],LEN(TablaFronteras[[#This Row],[Frontera]])-IFERROR(FIND(\" - \",TablaFronteras[[#This Row],[Frontera]])+2,0)),TablaFronteras[Frontera],0),\"\"))","v":15}]
["Italia",368.89849853515625,87.598663330078125,22.491968154907227,24.735589981079102,{"$f":"TablaFronteras[[#This Row],[X]]+TablaFronteras[[#This Row],[Ancho]]/2","v":380.14448261260986},{"$f":"TablaFronteras[[#This Row],[Y]]+TablaFronteras[[#This Row],[Alto]]/2","v":99.966458320617676},{"$f":"IF(AND(TablaFronteras[[#This Row],[Fila]]<>\"\",TablaFronteras[[#This Row],[X]]<miX,miX<TablaFronteras[[#This Row],[X]]+TablaFronteras[[#This Row],[Ancho]],TablaFronteras[[#This Row],[Y]]<miY,miY<TablaFronteras[[#This Row],[Y]]+TablaFronteras[[#This Row],[Alto]]),SQRT((TablaFronteras[[#This Row],[Centro X]]-miX)^2+(TablaFronteras[[#This Row],[Centro Y]]-miY)^2),\"\")","v":""},{"$f":"IF(TablaFronteras[[#This Row],[Frontera]]=\"\",\"\",IFERROR(MATCH(RIGHT(TablaFronteras[[#This Row],[Frontera]],LEN(TablaFronteras[[#This Row],[Frontera]])-IFERROR(FIND(\" - \",TablaFronteras[[#This Row],[Frontera]])+2,0)),TablaFronteras[Frontera],0),\"\"))","v":16}]
["España",318.81298828125,95.315513610839844,45.413070678710938,38.991024017333984,{"$f":"TablaFronteras[[#This Row],[X]]+TablaFronteras[[#This Row],[Ancho]]/2","v":341.51952362060547},{"$f":"TablaFronteras[[#This Row],[Y]]+TablaFronteras[[#This Row],[Alto]]/2","v":114.81102561950684},{"$f":"IF(AND(TablaFronteras[[#This Row],[Fila]]<>\"\",TablaFronteras[[#This Row],[X]]<miX,miX<TablaFronteras[[#This Row],[X]]+TablaFronteras[[#This Row],[Ancho]],TablaFronteras[[#This Row],[Y]]<miY,miY<TablaFronteras[[#This Row],[Y]]+TablaFronteras[[#This Row],[Alto]]),SQRT((TablaFronteras[[#This Row],[Centro X]]-miX)^2+(TablaFronteras[[#This Row],[Centro Y]]-miY)^2),\"\")","v":""},{"$f":"IF(TablaFronteras[[#This Row],[Frontera]]=\"\",\"\",IFERROR(MATCH(RIGHT(TablaFronteras[[#This Row],[Frontera]],LEN(TablaFronteras[[#This Row],[Frontera]])-IFERROR(FIND(\" - \",TablaFronteras[[#This Row],[Frontera]])+2,0)),TablaFronteras[Frontera],0),\"\"))","v":17}]
["Portugal",299.90298461914063,99.152755737304688,44.49212646484375,23.115276336669922,{"$f":"TablaFronteras[[#This Row],[X]]+TablaFronteras[[#This Row],[Ancho]]/2","v":322.1490478515625},{"$f":"TablaFronteras[[#This Row],[Y]]+TablaFronteras[[#This Row],[Alto]]/2","v":110.71039390563965},{"$f":"IF(AND(TablaFronteras[[#This Row],[Fila]]<>\"\",TablaFronteras[[#This Row],[X]]<miX,miX<TablaFronteras[[#This Row],[X]]+TablaFronteras[[#This Row],[Ancho]],TablaFronteras[[#This Row],[Y]]<miY,miY<TablaFronteras[[#This Row],[Y]]+TablaFronteras[[#This Row],[Alto]]),SQRT((TablaFronteras[[#This Row],[Centro X]]-miX)^2+(TablaFronteras[[#This Row],[Centro Y]]-miY)^2),\"\")","v":""},{"$f":"IF(TablaFronteras[[#This Row],[Frontera]]=\"\",\"\",IFERROR(MATCH(RIGHT(TablaFronteras[[#This Row],[Frontera]],LEN(TablaFronteras[[#This Row],[Frontera]])-IFERROR(FIND(\" - \",TablaFronteras[[#This Row],[Frontera]])+2,0)),TablaFronteras[Frontera],0),\"\"))","v":18}]
["Bélgica",361.68856811523438,77.13897705078125,7.0350394248962402,4.5649604797363281,{"$f":"TablaFronteras[[#This Row],[X]]+TablaFronteras[[#This Row],[Ancho]]/2","v":365.2060878276825},{"$f":"TablaFronteras[[#This Row],[Y]]+TablaFronteras[[#This Row],[Alto]]/2","v":79.421457290649414},{"$f":"IF(AND(TablaFronteras[[#This Row],[Fila]]<>\"\",TablaFronteras[[#This Row],[X]]<miX,miX<TablaFronteras[[#This Row],[X]]+TablaFronteras[[#This Row],[Ancho]],TablaFronteras[[#This Row],[Y]]<miY,miY<TablaFronteras[[#This Row],[Y]]+TablaFronteras[[#This Row],[Alto]]),SQRT((TablaFronteras[[#This Row],[Centro X]]-miX)^2+(TablaFronteras[[#This Row],[Centro Y]]-miY)^2),\"\")","v":""},{"$f":"IF(TablaFronteras[[#This Row],[Frontera]]=\"\",\"\",IFERROR(MATCH(RIGHT(TablaFronteras[[#This Row],[Frontera]],LEN(TablaFronteras[[#This Row],[Frontera]])-IFERROR(FIND(\" - \",TablaFronteras[[#This Row],[Frontera]])+2,0)),TablaFronteras[Frontera],0),\"\"))","v":19}]
["Irlanda",338.76095581054688,68.262283325195313,8.2440948486328125,8.915196418762207,{"$f":"TablaFronteras[[#This Row],[X]]+TablaFronteras[[#This Row],[Ancho]]/2","v":342.88300323486328},{"$f":"TablaFronteras[[#This Row],[Y]]+TablaFronteras[[#This Row],[Alto]]/2","v":72.719881534576416},{"$f":"IF(AND(TablaFronteras[[#This Row],[Fila]]<>\"\",TablaFronteras[[#This Row],[X]]<miX,miX<TablaFronteras[[#This Row],[X]]+TablaFronteras[[#This Row],[Ancho]],TablaFronteras[[#This Row],[Y]]<miY,miY<TablaFronteras[[#This Row],[Y]]+TablaFronteras[[#This Row],[Alto]]),SQRT((TablaFronteras[[#This Row],[Centro X]]-miX)^2+(TablaFronteras[[#This Row],[Centro Y]]-miY)^2),\"\")","v":""},{"$f":"IF(TablaFronteras[[#This Row],[Frontera]]=\"\",\"\",IFERROR(MATCH(RIGHT(TablaFronteras[[#This Row],[Frontera]],LEN(TablaFronteras[[#This Row],[Frontera]])-IFERROR(FIND(\" - \",TablaFronteras[[#This Row],[Frontera]])+2,0)),TablaFronteras[Frontera],0),\"\"))","v":20}]
["Reino Unido",343.55691528320313,55.945747375488281,16.843463897705078,24.616535186767578,{"$f":"TablaFronteras[[#This Row],[X]]+TablaFronteras[[#This Row],[Ancho]]/2","v":351.97864723205566},{"$f":"TablaFronteras[[#This Row],[Y]]+TablaFronteras[[#This Row],[Alto]]/2","v":68.25401496887207},{"$f":"IF(AND(TablaFronteras[[#This Row],[Fila]]<>\"\",TablaFronteras[[#This Row],[X]]<miX,miX<TablaFronteras[[#This Row],[X]]+TablaFronteras[[#This Row],[Ancho]],TablaFronteras[[#This Row],[Y]]<miY,miY<TablaFronteras[[#This Row],[Y]]+TablaFronteras[[#This Row],[Alto]]),SQRT((TablaFronteras[[#This Row],[Centro X]]-miX)^2+(TablaFronteras[[#This Row],[Centro Y]]-miY)^2),\"\")","v":""},{"$f":"IF(TablaFronteras[[#This Row],[Frontera]]=\"\",\"\",IFERROR(MATCH(RIGHT(TablaFronteras[[#This Row],[Frontera]],LEN(TablaFronteras[[#This Row],[Frontera]])-IFERROR(FIND(\" - \",TablaFronteras[[#This Row],[Frontera]])+2,0)),TablaFronteras[Frontera],0),\"\"))","v":21}]
["Alemania",367.9505615234375,68.953071594238281,16.07118034362793,18.19196891784668,{"$f":"TablaFronteras[[#This Row],[X]]+TablaFronteras[[#This Row],[Ancho]]/2","v":375.98615169525146},{"$f":"TablaFronteras[[#This Row],[Y]]+TablaFronteras[[#This Row],[Alto]]/2","v":78.049056053161621},{"$f":"IF(AND(TablaFronteras[[#This Row],[Fila]]<>\"\",TablaFronteras[[#This Row],[X]]<miX,miX<TablaFronteras[[#This Row],[X]]+TablaFronteras[[#This Row],[Ancho]],TablaFronteras[[#This Row],[Y]]<miY,miY<TablaFronteras[[#This Row],[Y]]+TablaFronteras[[#This Row],[Alto]]),SQRT((TablaFronteras[[#This Row],[Centro X]]-miX)^2+(TablaFronteras[[#This Row],[Centro Y]]-miY)^2),\"\")","v":""},{"$f":"IF(TablaFronteras[[#This Row],[Frontera]]=\"\",\"\",IFERROR(MATCH(RIGHT(TablaFronteras[[#This Row],[Frontera]],LEN(TablaFronteras[[#This Row],[Frontera]])-IFERROR(FIND(\" - \",TablaFronteras[[#This Row],[Frontera]])+2,0)),TablaFronteras[Frontera],0),\"\"))","v":22}]
["Suiza",368.23544311523438,85.890396118164063,7.743464469909668,4.6460628509521484,{"$f":"TablaFronteras[[#This Row],[X]]+TablaFronteras[[#This Row],[Ancho]]/2","v":372.10717535018921},{"$f":"TablaFronteras[[#This Row],[Y]]+TablaFronteras[[#This Row],[Alto]]/2","v":88.213427543640137},{"$f":"IF(AND(TablaFronteras[[#This Row],[Fila]]<>\"\",TablaFronteras[[#This Row],[X]]<miX,miX<TablaFronteras[[#This Row],[X]]+TablaFronteras[[#This Row],[Ancho]],TablaFronteras[[#This Row],[Y]]<miY,miY<TablaFronteras[[#This Row],[Y]]+TablaFronteras[[#This Row],[Alto]]),SQRT((TablaFronteras[[#This Row],[Centro X]]-miX)^2+(TablaFronteras[[#This Row],[Centro Y]]-miY)^2),\"\")","v":""},{"$f":"IF(TablaFronteras[[#This Row],[Frontera]]=\"\",\"\",IFERROR(MATCH(RIGHT(TablaFronteras[[#This Row],[Frontera]],LEN(TablaFronteras[[#This Row],[Frontera]])-IFERROR(FIND(\" - \",TablaFronteras[[#This Row],[Frontera]])+2,0)),TablaFronteras[Frontera],0),\"\"))","v":23}]
["Austria",373.97891235351563,82.850311279296875,14.315669059753418,6.3700785636901855,{"$f":"TablaFronteras[[#This Row],[X]]+TablaFronteras[[#This Row],[Ancho]]/2","v":381.13674688339233},{"$f":"TablaFronteras[[#This Row],[Y]]+TablaFronteras[[#This Row],[Alto]]/2","v":86.035350561141968},{"$f":"IF(AND(TablaFronteras[[#This Row],[Fila]]<>\"\",TablaFronteras[[#This Row],[X]]<miX,miX<TablaFronteras[[#This Row],[X]]+TablaFronteras[[#This Row],[Ancho]],TablaFronteras[[#This Row],[Y]]<miY,miY<TablaFronteras[[#This Row],[Y]]+TablaFronteras[[#This Row],[Alto]]),SQRT((TablaFronteras[[#This Row],[Centro X]]-miX)^2+(TablaFronteras[[#This Row],[Centro Y]]-miY)^2),\"\")","v":""},{"$f":"IF(TablaFronteras[[#This Row],[Frontera]]=\"\",\"\",IFERROR(MATCH(RIGHT(TablaFronteras[[#This Row],[Frontera]],LEN(TablaFronteras[[#This Row],[Frontera]])-IFERROR(FIND(\" - \",TablaFronteras[[#This Row],[Frontera]])+2,0)),TablaFronteras[Frontera],0),\"\"))","v":24}]
["República Checa",378.4210205078125,78.17047119140625,12.984488487243652,5.7050395011901855,{"$f":"TablaFronteras[[#This Row],[X]]+TablaFronteras[[#This Row],[Ancho]]/2","v":384.91326475143433},{"$f":"TablaFronteras[[#This Row],[Y]]+TablaFronteras[[#This Row],[Alto]]/2","v":81.022990942001343},{"$f":"IF(AND(TablaFronteras[[#This Row],[Fila]]<>\"\",TablaFronteras[[#This Row],[X]]<miX,miX<TablaFronteras[[#This Row],[X]]+TablaFronteras[[#This Row],[Ancho]],TablaFronteras[[#This Row],[Y]]<miY,miY<TablaFronteras[[#This Row],[Y]]+TablaFronteras[[#This Row],[Alto]]),SQRT((TablaFronteras[[#This Row],[Centro X]]-miX)^2+(TablaFronteras[[#This Row],[Centro Y]]-miY)^2),\"\")","v":""},{"$f":"IF(TablaFronteras[[#This Row],[Frontera]]=\"\",\"\",IFERROR(MATCH(RIGHT(TablaFronteras[[#This Row],[Frontera]],LEN(TablaFronteras[[#This Row],[Frontera]])-IFERROR(FIND(\" - \",TablaFronteras[[#This Row],[Frontera]])+2,0)),TablaFronteras[Frontera],0),\"\"))","v":25}]
["Dinamarca",371.97842407226563,62.781730651855469,11.927480697631836,7.1369290351867676,{"$f":"TablaFronteras[[#This Row],[X]]+TablaFronteras[[#This Row],[Ancho]]/2","v":377.94216442108154},{"$f":"TablaFronteras[[#This Row],[Y]]+TablaFronteras[[#This Row],[Alto]]/2","v":66.350195169448853},{"$f":"IF(AND(TablaFronteras[[#This Row],[Fila]]<>\"\",TablaFronteras[[#This Row],[X]]<miX,miX<TablaFronteras[[#This Row],[X]]+TablaFronteras[[#This Row],[Ancho]],TablaFronteras[[#This Row],[Y]]<miY,miY<TablaFronteras[[#This Row],[Y]]+TablaFronteras[[#This Row],[Alto]]),SQRT((TablaFronteras[[#This Row],[Centro X]]-miX)^2+(TablaFronteras[[#This Row],[Centro Y]]-miY)^2),\"\")","v":""},{"$f":"IF(TablaFronteras[[#This Row],[Frontera]]=\"\",\"\",IFERROR(MATCH(RIGHT(TablaFronteras[[#This Row],[Frontera]],LEN(TablaFronteras[[#This Row],[Frontera]])-IFERROR(FIND(\" - \",TablaFronteras[[#This Row],[Frontera]])+2,0)),TablaFronteras[Frontera],0),\"\"))","v":26}]
["Polonia",382.06069946289063,69.345115661621094,18.184173583984375,13.529212951660156,{"$f":"TablaFronteras[[#This Row],[X]]+TablaFronteras[[#This Row],[Ancho]]/2","v":391.15278625488281},{"$f":"TablaFronteras[[#This Row],[Y]]+TablaFronteras[[#This Row],[Alto]]/2","v":76.109722137451172},{"$f":"IF(AND(TablaFronteras[[#This Row],[Fila]]<>\"\",TablaFronteras[[#This Row],[X]]<miX,miX<TablaFronteras[[#This Row],[X]]+TablaFronteras[[#This Row],[Ancho]],TablaFronteras[[#This Row],[Y]]<miY,miY<TablaFronteras[[#This Row],[Y]]+TablaFronteras[[#This Row],[Alto]]),SQRT((TablaFronteras[[#This Row],[Centro X]]-miX)^2+(TablaFronteras[[#This Row],[Centro Y]]-miY)^2),\"\")","v":""},{"$f":"IF(TablaFronteras[[#This Row],[Frontera]]=\"\",\"\",IFERROR(MATCH(RIGHT(TablaFronteras[[#This Row],[Frontera]],LEN(TablaFronteras[[#This Row],[Frontera]])-IFERROR(FIND(\" - \",TablaFronteras[[#This Row],[Frontera]])+2,0)),TablaFronteras[Frontera],0),\"\"))","v":27}]
["Eslovaquia",387.77142333984375,81.541336059570313,10.615983963012695,4.3021259307861328,{"$f":"TablaFronteras[[#This Row],[X]]+TablaFronteras[[#This Row],[Ancho]]/2","v":393.0794153213501},{"$f":"TablaFronteras[[#This Row],[Y]]+TablaFronteras[[#This Row],[Alto]]/2","v":83.692399024963379},{"$f":"IF(AND(TablaFronteras[[#This Row],[Fila]]<>\"\",TablaFronteras[[#This Row],[X]]<miX,miX<TablaFronteras[[#This Row],[X]]+TablaFronteras[[#This Row],[Ancho]],TablaFronteras[[#This Row],[Y]]<miY,miY<TablaFronteras[[#This Row],[Y]]+TablaFronteras[[#This Row],[Alto]]),SQRT((TablaFronteras[[#This Row],[Centro X]]-miX)^2+(TablaFronteras[[#This Row],[Centro Y]]-miY)^2),\"\")","v":""},{"$f":"IF(TablaFronteras[[#This Row],[Frontera]]=\"\",\"\",IFERROR(MATCH(RIGHT(TablaFronteras[[#This Row],[Frontera]],LEN(TablaFronteras[[#This Row],[Frontera]])-IFERROR(FIND(\" - \",TablaFronteras[[#This Row],[Frontera]])+2,0)),TablaFronteras[Frontera],0),\"\"))","v":28}]
["Hungría",386.33331298828125,83.879524230957031,12.10417366027832,6.7562203407287598,{"$f":"TablaFronteras[[#This Row],[X]]+TablaFronteras[[#This Row],[Ancho]]/2","v":392.38539981842041},{"$f":"TablaFronteras[[#This Row],[Y]]+TablaFronteras[[#This Row],[Alto]]/2","v":87.257634401321411},{"$f":"IF(AND(TablaFronteras[[#This Row],[Fila]]<>\"\",TablaFronteras[[#This Row],[X]]<miX,miX<TablaFronteras[[#This Row],[X]]+TablaFronteras[[#This Row],[Ancho]],TablaFronteras[[#This Row],[Y]]<miY,miY<TablaFronteras[[#This Row],[Y]]+TablaFronteras[[#This Row],[Alto]]),SQRT((TablaFronteras[[#This Row],[Centro X]]-miX)^2+(TablaFronteras[[#This Row],[Centro Y]]-miY)^2),\"\")","v":""},{"$f":"IF(TablaFronteras[[#This Row],[Frontera]]=\"\",\"\",IFERROR(MATCH(RIGHT(TablaFronteras[[#This Row],[Frontera]],LEN(TablaFronteras[[#This Row],[Frontera]])-IFERROR(FIND(\" - \",TablaFronteras[[#This Row],[Frontera]])+2,0)),TablaFronteras[Frontera],0),\"\"))","v":29}]
["Eslovenia",380.980712890625,88.059524536132813,6.3158268928527832,3.3179528713226318,{"$f":"TablaFronteras[[#This Row],[X]]+TablaFronteras[[#This Row],[Ancho]]/2","v":384.13862633705139},{"$f":"TablaFronteras[[#This Row],[Y]]+TablaFronteras[[#This Row],[Alto]]/2","v":89.718500971794128},{"$f":"IF(AND(TablaFronteras[[#This Row],[Fila]]<>\"\",TablaFronteras[[#This Row],[X]]<miX,miX<TablaFronteras[[#This Row],[X]]+TablaFronteras[[#This Row],[Ancho]],TablaFronteras[[#This Row],[Y]]<miY,miY<TablaFronteras[[#This Row],[Y]]+TablaFronteras[[#This Row],[Alto]]),SQRT((TablaFronteras[[#This Row],[Centro X]]-miX)^2+(TablaFronteras[[#This Row],[Centro Y]]-miY)^2),\"\")","v":""},{"$f":"IF(TablaFronteras[[#This Row],[Frontera]]=\"\",\"\",IFERROR(MATCH(RIGHT(TablaFronteras[[#This Row],[Frontera]],LEN(TablaFronteras[[#This Row],[Frontera]])-IFERROR(FIND(\" - \",TablaFronteras[[#This Row],[Frontera]])+2,0)),TablaFronteras[Frontera],0),\"\"))","v":30}]
["Croacia",381.2000732421875,88.865745544433594,11.496220588684082,9.5666141510009766,{"$f":"TablaFronteras[[#This Row],[X]]+TablaFronteras[[#This Row],[Ancho]]/2","v":386.94818353652954},{"$f":"TablaFronteras[[#This Row],[Y]]+TablaFronteras[[#This Row],[Alto]]/2","v":93.649052619934082},{"$f":"IF(AND(TablaFronteras[[#This Row],[Fila]]<>\"\",TablaFronteras[[#This Row],[X]]<miX,miX<TablaFronteras[[#This Row],[X]]+TablaFronteras[[#This Row],[Ancho]],TablaFronteras[[#This Row],[Y]]<miY,miY<TablaFronteras[[#This Row],[Y]]+TablaFronteras[[#This Row],[Alto]]),SQRT((TablaFronteras[[#This Row],[Centro X]]-miX)^2+(TablaFronteras[[#This Row],[Centro Y]]-miY)^2),\"\")","v":""},{"$f":"IF(TablaFronteras[[#This Row],[Frontera]]=\"\",\"\",IFERROR(MATCH(RIGHT(TablaFronteras[[#This Row],[Frontera]],LEN(TablaFronteras[[#This Row],[Frontera]])-IFERROR(FIND(\" - \",TablaFronteras[[#This Row],[Frontera]])+2,0)),TablaFronteras[Frontera],0),\"\"))","v":31}]
["Bosnia y Herzegovina",385.810302734375,91.862518310546875,7.3523621559143066,6.3169293403625488,{"$f":"TablaFronteras[[#This Row],[X]]+TablaFronteras[[#This Row],[Ancho]]/2","v":389.48648381233215},{"$f":"TablaFronteras[[#This Row],[Y]]+TablaFronteras[[#This Row],[Alto]]/2","v":95.020982980728149},{"$f":"IF(AND(TablaFronteras[[#This Row],[Fila]]<>\"\",TablaFronteras[[#This Row],[X]]<miX,miX<TablaFronteras[[#This Row],[X]]+TablaFronteras[[#This Row],[Ancho]],TablaFronteras[[#This Row],[Y]]<miY,miY<TablaFronteras[[#This Row],[Y]]+TablaFronteras[[#This Row],[Alto]]),SQRT((TablaFronteras[[#This Row],[Centro X]]-miX)^2+(TablaFronteras[[#This Row],[Centro Y]]-miY)^2),\"\")","v":""},{"$f":"IF(TablaFronteras[[#This Row],[Frontera]]=\"\",\"\",IFERROR(MATCH(RIGHT(TablaFronteras[[#This Row],[Frontera]],LEN(TablaFronteras[[#This Row],[Frontera]])-IFERROR(FIND(\" - \",TablaFronteras[[#This Row],[Frontera]])+2,0)),TablaFronteras[Frontera],0),\"\"))","v":32}]
["Montenegro",390.87802124023438,95.913703918457031,3.5859842300415039,3.9175591468811035,{"$f":"TablaFronteras[[#This Row],[X]]+TablaFronteras[[#This Row],[Ancho]]/2","v":392.67101335525513},{"$f":"TablaFronteras[[#This Row],[Y]]+TablaFronteras[[#This Row],[Alto]]/2","v":97.872483491897583},{"$f":"IF(AND(TablaFronteras[[#This Row],[Fila]]<>\"\",TablaFronteras[[#This Row],[X]]<miX,miX<TablaFronteras[[#This Row],[X]]+TablaFronteras[[#This Row],[Ancho]],TablaFronteras[[#This Row],[Y]]<miY,miY<TablaFronteras[[#This Row],[Y]]+TablaFronteras[[#This Row],[Alto]]),SQRT((TablaFronteras[[#This Row],[Centro X]]-miX)^2+(TablaFronteras[[#This Row],[Centro Y]]-miY)^2),\"\")","v":""},{"$f":"IF(TablaFronteras[[#This Row],[Frontera]]=\"\",\"\",IFERROR(MATCH(RIGHT(TablaFronteras[[#This Row],[Frontera]],LEN(TablaFronteras[[#This Row],[Frontera]])-IFERROR(FIND(\" - \",TablaFronteras[[#This Row],[Frontera]])+2,0)),TablaFronteras[Frontera],0),\"\"))","v":33}]
["Macedonia del Norte",395.14794921875,98.665435791015625,4.3215746879577637,3.781810998916626,{"$f":"TablaFronteras[[#This Row],[X]]+TablaFronteras[[#This Row],[Ancho]]/2","v":397.30873656272888},{"$f":"TablaFronteras[[#This Row],[Y]]+TablaFronteras[[#This Row],[Alto]]/2","v":100.55634129047394},{"$f":"IF(AND(TablaFronteras[[#This Row],[Fila]]<>\"\",TablaFronteras[[#This Row],[X]]<miX,miX<TablaFronteras[[#This Row],[X]]+TablaFronteras[[#This Row],[Ancho]],TablaFronteras[[#This Row],[Y]]<miY,miY<TablaFronteras[[#This Row],[Y]]+TablaFronteras[[#This Row],[Alto]]),SQRT((TablaFronteras[[#This Row],[Centro X]]-miX)^2+(TablaFronteras[[#This Row],[Centro Y]]-miY)^2),\"\")","v":""},{"$f":"IF(TablaFronteras[[#This Row],[Frontera]]=\"\",\"\",IFERROR(MATCH(RIGHT(TablaFronteras[[#This Row],[Frontera]],LEN(TablaFronteras[[#This Row],[Frontera]])-IFERROR(FIND(\" - \",TablaFronteras[[#This Row],[Frontera]])+2,0)),TablaFronteras[Frontera],0),\"\"))","v":34}]
["Albania",392.8946533203125,97.974960327148438,3.4942519664764404,7.247952938079834,{"$f":"TablaFronteras[[#This Row],[X]]+TablaFronteras[[#This Row],[Ancho]]/2","v":394.64177930355072},{"$f":"TablaFronteras[[#This Row],[Y]]+TablaFronteras[[#This Row],[Alto]]/2","v":101.59893679618835},{"$f":"IF(AND(TablaFronteras[[#This Row],[Fila]]<>\"\",TablaFronteras[[#This Row],[X]]<miX,miX<TablaFronteras[[#This Row],[X]]+TablaFronteras[[#This Row],[Ancho]],TablaFronteras[[#This Row],[Y]]<miY,miY<TablaFronteras[[#This Row],[Y]]+TablaFronteras[[#This Row],[Alto]]),SQRT((TablaFronteras[[#This Row],[Centro X]]-miX)^2+(TablaFronteras[[#This Row],[Centro Y]]-miY)^2),\"\")","v":""},{"$f":"IF(TablaFronteras[[#This Row],[Frontera]]=\"\",\"\",IFERROR(MATCH(RIGHT(TablaFronteras[[#This Row],[Frontera]],LEN(TablaFronteras[[#This Row],[Frontera]])-IFERROR(FIND(\" - \",TablaFronteras[[#This Row],[Frontera]])+2,0)),TablaFronteras[Frontera],0),\"\"))","v":35}]
["Bulgaria",397.05166625976563,94.26141357421875,12.942598342895508,6.9964566230773926,{"$f":"TablaFronteras[[#This Row],[X]]+TablaFronteras[[#This Row],[Ancho]]/2","v":403.52296543121338},{"$f":"TablaFronteras[[#This Row],[Y]]+TablaFronteras[[#This Row],[Alto]]/2","v":97.759641885757446},{"$f":"IF(AND(TablaFronteras[[#This Row],[Fila]]<>\"\",TablaFronteras[[#This Row],[X]]<miX,miX<TablaFronteras[[#This Row],[X]]+TablaFronteras[[#This Row],[Ancho]],TablaFronteras[[#This Row],[Y]]<miY,miY<TablaFronteras[[#This Row],[Y]]+TablaFronteras[[#This Row],[Alto]]),SQRT((TablaFronteras[[#This Row],[Centro X]]-miX)^2+(TablaFronteras[[#This Row],[Centro Y]]-miY)^2),\"\")","v":""},{"$f":"IF(TablaFronteras[[#This Row],[Frontera]]=\"\",\"\",IFERROR(MATCH(RIGHT(TablaFronteras[[#This Row],[Frontera]],LEN(TablaFronteras[[#This Row],[Frontera]])-IFERROR(FIND(\" - \",TablaFronteras[[#This Row],[Frontera]])+2,0)),TablaFronteras[Frontera],0),\"\"))","v":36}]
["Grecia",393.78701782226563,100.16236114501953,16.785669326782227,16.620393753051758,{"$f":"TablaFronteras[[#This Row],[X]]+TablaFronteras[[#This Row],[Ancho]]/2","v":402.17985248565674},{"$f":"TablaFronteras[[#This Row],[Y]]+TablaFronteras[[#This Row],[Alto]]/2","v":108.47255802154541},{"$f":"IF(AND(TablaFronteras[[#This Row],[Fila]]<>\"\",TablaFronteras[[#This Row],[X]]<miX,miX<TablaFronteras[[#This Row],[X]]+TablaFronteras[[#This Row],[Ancho]],TablaFronteras[[#This Row],[Y]]<miY,miY<TablaFronteras[[#This Row],[Y]]+TablaFronteras[[#This Row],[Alto]]),SQRT((TablaFronteras[[#This Row],[Centro X]]-miX)^2+(TablaFronteras[[#This Row],[Centro Y]]-miY)^2),\"\")","v":""},{"$f":"IF(TablaFronteras[[#This Row],[Frontera]]=\"\",\"\",IFERROR(MATCH(RIGHT(TablaFronteras[[#This Row],[Frontera]],LEN(TablaFronteras[[#This Row],[Frontera]])-IFERROR(FIND(\" - \",TablaFronteras[[#This Row],[Frontera]])+2,0)),TablaFronteras[Frontera],0),\"\"))","v":37}]
["Turquía",404.728271484375,99.232994079589844,38.004489898681641,15.105039596557617,{"$f":"TablaFronteras[[#This Row],[X]]+TablaFronteras[[#This Row],[Ancho]]/2","v":423.73051643371582},{"$f":"TablaFronteras[[#This Row],[Y]]+TablaFronteras[[#This Row],[Alto]]/2","v":106.78551387786865},{"$f":"IF(AND(TablaFronteras[[#This Row],[Fila]]<>\"\",TablaFronteras[[#This Row],[X]]<miX,miX<TablaFronteras[[#This Row],[X]]+TablaFronteras[[#This Row],[Ancho]],TablaFronteras[[#This Row],[Y]]<miY,miY<TablaFronteras[[#This Row],[Y]]+TablaFronteras[[#This Row],[Alto]]),SQRT((TablaFronteras[[#This Row],[Centro X]]-miX)^2+(TablaFronteras[[#This Row],[Centro Y]]-miY)^2),\"\")","v":""},{"$f":"IF(TablaFronteras[[#This Row],[Frontera]]=\"\",\"\",IFERROR(MATCH(RIGHT(TablaFronteras[[#This Row],[Frontera]],LEN(TablaFronteras[[#This Row],[Frontera]])-IFERROR(FIND(\" - \",TablaFronteras[[#This Row],[Frontera]])+2,0)),TablaFronteras[Frontera],0),\"\"))","v":38}]
["Rumanía",393.85110473632813,84.640945434570313,17.495275497436523,10.961968421936035,{"$f":"TablaFronteras[[#This Row],[X]]+TablaFronteras[[#This Row],[Ancho]]/2","v":402.59874248504639},{"$f":"TablaFronteras[[#This Row],[Y]]+TablaFronteras[[#This Row],[Alto]]/2","v":90.12192964553833},{"$f":"IF(AND(TablaFronteras[[#This Row],[Fila]]<>\"\",TablaFronteras[[#This Row],[X]]<miX,miX<TablaFronteras[[#This Row],[X]]+TablaFronteras[[#This Row],[Ancho]],TablaFronteras[[#This Row],[Y]]<miY,miY<TablaFronteras[[#This Row],[Y]]+TablaFronteras[[#This Row],[Alto]]),SQRT((TablaFronteras[[#This Row],[Centro X]]-miX)^2+(TablaFronteras[[#This Row],[Centro Y]]-miY)^2),\"\")","v":""},{"$f":"IF(TablaFronteras[[#This Row],[Frontera]]=\"\",\"\",IFERROR(MATCH(RIGHT(TablaFronteras[[#This Row],[Frontera]],LEN(TablaFronteras[[#This Row],[Frontera]])-IFERROR(FIND(\" - \",TablaFronteras[[#This Row],[Frontera]])+2,0)),TablaFronteras[Frontera],0),\"\"))","v":39}]
["Bielorrusia",398.28488159179688,66.409683227539063,16.924251556396484,11.183700561523438,{"$f":"TablaFronteras[[#This Row],[X]]+TablaFronteras[[#This Row],[Ancho]]/2","v":406.74700736999512},{"$f":"TablaFronteras[[#This Row],[Y]]+TablaFronteras[[#This Row],[Alto]]/2","v":72.001533508300781},{"$f":"IF(AND(TablaFronteras[[#This Row],[Fila]]<>\"\",TablaFronteras[[#This Row],[X]]<miX,miX<TablaFronteras[[#This Row],[X]]+TablaFronteras[[#This Row],[Ancho]],TablaFronteras[[#This Row],[Y]]<miY,miY<TablaFronteras[[#This Row],[Y]]+TablaFronteras[[#This Row],[Alto]]),SQRT((TablaFronteras[[#This Row],[Centro X]]-miX)^2+(TablaFronteras[[#This Row],[Centro Y]]-miY)^2),\"\")","v":""},{"$f":"IF(TablaFronteras[[#This Row],[Frontera]]=\"\",\"\",IFERROR(MATCH(RIGHT(TablaFronteras[[#This Row],[Frontera]],LEN(TablaFronteras[[#This Row],[Frontera]])-IFERROR(FIND(\" - \",TablaFronteras[[#This Row],[Frontera]])+2,0)),TablaFronteras[Frontera],0),\"\"))","v":40}]
["Moldavia",405.06747436523438,84.083854675292969,7.1598424911499023,7.2731494903564453,{"$f":"TablaFronteras[[#This Row],[X]]+TablaFronteras[[#This Row],[Ancho]]/2","v":408.64739561080933},{"$f":"TablaFronteras[[#This Row],[Y]]+TablaFronteras[[#This Row],[Alto]]/2","v":87.720429420471191},{"$f":"IF(AND(TablaFronteras[[#This Row],[Fila]]<>\"\",TablaFronteras[[#This Row],[X]]<miX,miX<TablaFronteras[[#This Row],[X]]+TablaFronteras[[#This Row],[Ancho]],TablaFronteras[[#This Row],[Y]]<miY,miY<TablaFronteras[[#This Row],[Y]]+TablaFronteras[[#This Row],[Alto]]),SQRT((TablaFronteras[[#This Row],[Centro X]]-miX)^2+(TablaFronteras[[#This Row],[Centro Y]]-miY)^2),\"\")","v":""},{"$f":"IF(TablaFronteras[[#This Row],[Frontera]]=\"\",\"\",IFERROR(MATCH(RIGHT(TablaFronteras[[#This Row],[Frontera]],LEN(TablaFronteras[[#This Row],[Frontera]])-IFERROR(FIND(\" - \",TablaFronteras[[#This Row],[Frontera]])+2,0)),TablaFronteras[Frontera],0),\"\"))","v":41}]
["Lituania",394.2484130859375,65.72882080078125,9.5196847915649414,5.7323622703552246,{"$f":"TablaFronteras[[#This Row],[X]]+TablaFronteras[[#This Row],[Ancho]]/2","v":399.00825548171997},{"$f":"TablaFronteras[[#This Row],[Y]]+TablaFronteras[[#This Row],[Alto]]/2","v":68.595001935958862},{"$f":"IF(AND(TablaFronteras[[#This Row],[Fila]]<>\"\",TablaFronteras[[#This Row],[X]]<miX,miX<TablaFronteras[[#This Row],[X]]+TablaFronteras[[#This Row],[Ancho]],TablaFronteras[[#This Row],[Y]]<miY,miY<TablaFronteras[[#This Row],[Y]]+TablaFronteras[[#This Row],[Alto]]),SQRT((TablaFronteras[[#This Row],[Centro X]]-miX)^2+(TablaFronteras[[#This Row],[Centro Y]]-miY)^2),\"\")","v":""},{"$f":"IF(TablaFronteras[[#This Row],[Frontera]]=\"\",\"\",IFERROR(MATCH(RIGHT(TablaFronteras[[#This Row],[Frontera]],LEN(TablaFronteras[[#This Row],[Frontera]])-IFERROR(FIND(\" - \",TablaFronteras[[#This Row],[Frontera]])+2,0)),TablaFronteras[Frontera],0),\"\"))","v":42}]
["Letonia",394.079833984375,62.060943603515625,12.034252166748047,5.3496065139770508,{"$f":"TablaFronteras[[#This Row],[X]]+TablaFronteras[[#This Row],[Ancho]]/2","v":400.09696006774902},{"$f":"TablaFronteras[[#This Row],[Y]]+TablaFronteras[[#This Row],[Alto]]/2","v":64.73574686050415},{"$f":"IF(AND(TablaFronteras[[#This Row],[Fila]]<>\"\",TablaFronteras[[#This Row],[X]]<miX,miX<TablaFronteras[[#This Row],[X]]+TablaFronteras[[#This Row],[Ancho]],TablaFronteras[[#This Row],[Y]]<miY,miY<TablaFronteras[[#This Row],[Y]]+TablaFronteras[[#This Row],[Alto]]),SQRT((TablaFronteras[[#This Row],[Centro X]]-miX)^2+(TablaFronteras[[#This Row],[Centro Y]]-miY)^2),\"\")","v":""},{"$f":"IF(TablaFronteras[[#This Row],[Frontera]]=\"\",\"\",IFERROR(MATCH(RIGHT(TablaFronteras[[#This Row],[Frontera]],LEN(TablaFronteras[[#This Row],[Frontera]])-IFERROR(FIND(\" - \",TablaFronteras[[#This Row],[Frontera]])+2,0)),TablaFronteras[Frontera],0),\"\"))","v":43}]
["Estonia",395.28677368164063,58.691890716552734,9.8000783920288086,4.555354118347168,{"$f":"TablaFronteras[[#This Row],[X]]+TablaFronteras[[#This Row],[Ancho]]/2","v":400.18681287765503},{"$f":"TablaFronteras[[#This Row],[Y]]+TablaFronteras[[#This Row],[Alto]]/2","v":60.969567775726318},{"$f":"IF(AND(TablaFronteras[[#This Row],[Fila]]<>\"\",TablaFronteras[[#This Row],[X]]<miX,miX<TablaFronteras[[#This Row],[X]]+TablaFronteras[[#This Row],[Ancho]],TablaFronteras[[#This Row],[Y]]<miY,miY<TablaFronteras[[#This Row],[Y]]+TablaFronteras[[#This Row],[Alto]]),SQRT((TablaFronteras[[#This Row],[Centro X]]-miX)^2+(TablaFronteras[[#This Row],[Centro Y]]-miY)^2),\"\")","v":""},{"$f":"IF(TablaFronteras[[#This Row],[Frontera]]=\"\",\"\",IFERROR(MATCH(RIGHT(TablaFronteras[[#This Row],[Frontera]],LEN(TablaFronteras[[#This Row],[Frontera]])-IFERROR(FIND(\" - \",TablaFronteras[[#This Row],[Frontera]])+2,0)),TablaFronteras[Frontera],0),\"\"))","v":44}]
["Finlandia",390.99835205078125,36.430473327636719,18.840078353881836,21.843307495117188,{"$f":"TablaFronteras[[#This Row],[X]]+TablaFronteras[[#This Row],[Ancho]]/2","v":400.41839122772217},{"$f":"TablaFronteras[[#This Row],[Y]]+TablaFronteras[[#This Row],[Alto]]/2","v":47.352127075195313},{"$f":"IF(AND(TablaFronteras[[#This Row],[Fila]]<>\"\",TablaFronteras[[#This Row],[X]]<miX,miX<TablaFronteras[[#This Row],[X]]+TablaFronteras[[#This Row],[Ancho]],TablaFronteras[[#This Row],[Y]]<miY,miY<TablaFronteras[[#This Row],[Y]]+TablaFronteras[[#This Row],[Alto]]),SQRT((TablaFronteras[[#This Row],[Centro X]]-miX)^2+(TablaFronteras[[#This Row],[Centro Y]]-miY)^2),\"\")","v":""},{"$f":"IF(TablaFronteras[[#This Row],[Frontera]]=\"\",\"\",IFERROR(MATCH(RIGHT(TablaFronteras[[#This Row],[Frontera]],LEN(TablaFronteras[[#This Row],[Frontera]])-IFERROR(FIND(\" - \",TablaFronteras[[#This Row],[Frontera]])+2,0)),TablaFronteras[Frontera],0),\"\"))","v":45}]
["Suecia",376.61785888671875,38.492599487304688,20.181495666503906,29.590707778930664,{"$f":"TablaFronteras[[#This Row],[X]]+TablaFronteras[[#This Row],[Ancho]]/2","v":386.7086067199707},{"$f":"TablaFronteras[[#This Row],[Y]]+TablaFronteras[[#This Row],[Alto]]/2","v":53.28795337677002},{"$f":"IF(AND(TablaFronteras[[#This Row],[Fila]]<>\"\",TablaFronteras[[#This Row],[X]]<miX,miX<TablaFronteras[[#This Row],[X]]+TablaFronteras[[#This Row],[Ancho]],TablaFronteras[[#This Row],[Y]]<miY,miY<TablaFronteras[[#This Row],[Y]]+TablaFronteras[[#This Row],[Alto]]),SQRT((TablaFronteras[[#This Row],[Centro X]]-miX)^2+(TablaFronteras[[#This Row],[Centro Y]]-miY)^2),\"\")","v":""},{"$f":"IF(TablaFronteras[[#This Row],[Frontera]]=\"\",\"\",IFERROR(MATCH(RIGHT(TablaFronteras[[#This Row],[Frontera]],LEN(TablaFronteras[[#This Row],[Frontera]])-IFERROR(FIND(\" - \",TablaFronteras[[#This Row],[Frontera]])+2,0)),TablaFronteras[Frontera],0),\"\"))","v":46}]
["Noruega",348.111328125,16.852361679077148,58.001968383789063,45.323543548583984,{"$f":"TablaFronteras[[#This Row],[X]]+TablaFronteras[[#This Row],[Ancho]]/2","v":377.11231231689453},{"$f":"TablaFronteras[[#This Row],[Y]]+TablaFronteras[[#This Row],[Alto]]/2","v":39.514133453369141},{"$f":"IF(AND(TablaFronteras[[#This Row],[Fila]]<>\"\",TablaFronteras[[#This Row],[X]]<miX,miX<TablaFronteras[[#This Row],[X]]+TablaFronteras[[#This Row],[Ancho]],TablaFronteras[[#This Row],[Y]]<miY,miY<TablaFronteras[[#This Row],[Y]]+TablaFronteras[[#This Row],[Alto]]),SQRT((TablaFronteras[[#This Row],[Centro X]]-miX)^2+(TablaFronteras[[#This Row],[Centro Y]]-miY)^2),\"\")","v":""},{"$f":"IF(TablaFronteras[[#This Row],[Frontera]]=\"\",\"\",IFERROR(MATCH(RIGHT(TablaFronteras[[#This Row],[Frontera]],LEN(TablaFronteras[[#This Row],[Frontera]])-IFERROR(FIND(\" - \",TablaFronteras[[#This Row],[Frontera]])+2,0)),TablaFronteras[Frontera],0),\"\"))","v":47}]
["Marruecos",328.29449462890625,114.25299072265625,24.415433883666992,19.948740005493164,{"$f":"TablaFronteras[[#This Row],[X]]+TablaFronteras[[#This Row],[Ancho]]/2","v":340.50221157073975},{"$f":"TablaFronteras[[#This Row],[Y]]+TablaFronteras[[#This Row],[Alto]]/2","v":124.22736072540283},{"$f":"IF(AND(TablaFronteras[[#This Row],[Fila]]<>\"\",TablaFronteras[[#This Row],[X]]<miX,miX<TablaFronteras[[#This Row],[X]]+TablaFronteras[[#This Row],[Ancho]],TablaFronteras[[#This Row],[Y]]<miY,miY<TablaFronteras[[#This Row],[Y]]+TablaFronteras[[#This Row],[Alto]]),SQRT((TablaFronteras[[#This Row],[Centro X]]-miX)^2+(TablaFronteras[[#This Row],[Centro Y]]-miY)^2),\"\")","v":""},{"$f":"IF(TablaFronteras[[#This Row],[Frontera]]=\"\",\"\",IFERROR(MATCH(RIGHT(TablaFronteras[[#This Row],[Frontera]],LEN(TablaFronteras[[#This Row],[Frontera]])-IFERROR(FIND(\" - \",TablaFronteras[[#This Row],[Frontera]])+2,0)),TablaFronteras[Frontera],0),\"\"))","v":48}]
["Sáhara Occidental",319.93850708007813,134.126220703125,17.605512619018555,16.817874908447266,{"$f":"TablaFronteras[[#This Row],[X]]+TablaFronteras[[#This Row],[Ancho]]/2","v":328.7412633895874},{"$f":"TablaFronteras[[#This Row],[Y]]+TablaFronteras[[#This Row],[Alto]]/2","v":142.53515815734863},{"$f":"IF(AND(TablaFronteras[[#This Row],[Fila]]<>\"\",TablaFronteras[[#This Row],[X]]<miX,miX<TablaFronteras[[#This Row],[X]]+TablaFronteras[[#This Row],[Ancho]],TablaFronteras[[#This Row],[Y]]<miY,miY<TablaFronteras[[#This Row],[Y]]+TablaFronteras[[#This Row],[Alto]]),SQRT((TablaFronteras[[#This Row],[Centro X]]-miX)^2+(TablaFronteras[[#This Row],[Centro Y]]-miY)^2),\"\")","v":""},{"$f":"IF(TablaFronteras[[#This Row],[Frontera]]=\"\",\"\",IFERROR(MATCH(RIGHT(TablaFronteras[[#This Row],[Frontera]],LEN(TablaFronteras[[#This Row],[Frontera]])-IFERROR(FIND(\" - \",TablaFronteras[[#This Row],[Frontera]])+2,0)),TablaFronteras[Frontera],0),\"\"))","v":49}]
["Argelia",337.51849365234375,111.39424896240234,41.123069763183594,43.763465881347656,{"$f":"TablaFronteras[[#This Row],[X]]+TablaFronteras[[#This Row],[Ancho]]/2","v":358.08002853393555},{"$f":"TablaFronteras[[#This Row],[Y]]+TablaFronteras[[#This Row],[Alto]]/2","v":133.27598190307617},{"$f":"IF(AND(TablaFronteras[[#This Row],[Fila]]<>\"\",TablaFronteras[[#This Row],[X]]<miX,miX<TablaFronteras[[#This Row],[X]]+TablaFronteras[[#This Row],[Ancho]],TablaFronteras[[#This Row],[Y]]<miY,miY<TablaFronteras[[#This Row],[Y]]+TablaFronteras[[#This Row],[Alto]]),SQRT((TablaFronteras[[#This Row],[Centro X]]-miX)^2+(TablaFronteras[[#This Row],[Centro Y]]-miY)^2),\"\")","v":""},{"$f":"IF(TablaFronteras[[#This Row],[Frontera]]=\"\",\"\",IFERROR(MATCH(RIGHT(TablaFronteras[[#This Row],[Frontera]],LEN(TablaFronteras[[#This Row],[Frontera]])-IFERROR(FIND(\" - \",TablaFronteras[[#This Row],[Frontera]])+2,0)),TablaFronteras[Frontera],0),\"\"))","v":50}]
["Túnez",370.29266357421875,110.78535461425781,7.4303936958312988,17.159292221069336,{"$f":"TablaFronteras[[#This Row],[X]]+TablaFronteras[[#This Row],[Ancho]]/2","v":374.0078604221344},{"$f":"TablaFronteras[[#This Row],[Y]]+TablaFronteras[[#This Row],[Alto]]/2","v":119.36500072479248},{"$f":"IF(AND(TablaFronteras[[#This Row],[Fila]]<>\"\",TablaFronteras[[#This Row],[X]]<miX,miX<TablaFronteras[[#This Row],[X]]+TablaFronteras[[#This Row],[Ancho]],TablaFronteras[[#This Row],[Y]]<miY,miY<TablaFronteras[[#This Row],[Y]]+TablaFronteras[[#This Row],[Alto]]),SQRT((TablaFronteras[[#This Row],[Centro X]]-miX)^2+(TablaFronteras[[#This Row],[Centro Y]]-miY)^2),\"\")","v":""},{"$f":"IF(TablaFronteras[[#This Row],[Frontera]]=\"\",\"\",IFERROR(MATCH(RIGHT(TablaFronteras[[#This Row],[Frontera]],LEN(TablaFronteras[[#This Row],[Frontera]])-IFERROR(FIND(\" - \",TablaFronteras[[#This Row],[Frontera]])+2,0)),TablaFronteras[Frontera],0),\"\"))","v":51}]
["Libia",373.52865600585938,120.89023590087891,31.796928405761719,33.091968536376953,{"$f":"TablaFronteras[[#This Row],[X]]+TablaFronteras[[#This Row],[Ancho]]/2","v":389.42712020874023},{"$f":"TablaFronteras[[#This Row],[Y]]+TablaFronteras[[#This Row],[Alto]]/2","v":137.43622016906738},{"$f":"IF(AND(TablaFronteras[[#This Row],[Fila]]<>\"\",TablaFronteras[[#This Row],[X]]<miX,miX<TablaFronteras[[#This Row],[X]]+TablaFronteras[[#This Row],[Ancho]],TablaFronteras[[#This Row],[Y]]<miY,miY<TablaFronteras[[#This Row],[Y]]+TablaFronteras[[#This Row],[Alto]]),SQRT((TablaFronteras[[#This Row],[Centro X]]-miX)^2+(TablaFronteras[[#This Row],[Centro Y]]-miY)^2),\"\")","v":""},{"$f":"IF(TablaFronteras[[#This Row],[Frontera]]=\"\",\"\",IFERROR(MATCH(RIGHT(TablaFronteras[[#This Row],[Frontera]],LEN(TablaFronteras[[#This Row],[Frontera]])-IFERROR(FIND(\" - \",TablaFronteras[[#This Row],[Frontera]])+2,0)),TablaFronteras[Frontera],0),\"\"))","v":52}]
["Egipto",404.07772827148438,124.54827117919922,22.910865783691406,24.109369277954102,{"$f":"TablaFronteras[[#This Row],[X]]+TablaFronteras[[#This Row],[Ancho]]/2","v":415.53316116333008},{"$f":"TablaFronteras[[#This Row],[Y]]+TablaFronteras[[#This Row],[Alto]]/2","v":136.60295581817627},{"$f":"IF(AND(TablaFronteras[[#This Row],[Fila]]<>\"\",TablaFronteras[[#This Row],[X]]<miX,miX<TablaFronteras[[#This Row],[X]]+TablaFronteras[[#This Row],[Ancho]],TablaFronteras[[#This Row],[Y]]<miY,miY<TablaFronteras[[#This Row],[Y]]+TablaFronteras[[#This Row],[Alto]]),SQRT((TablaFronteras[[#This Row],[Centro X]]-miX)^2+(TablaFronteras[[#This Row],[Centro Y]]-miY)^2),\"\")","v":""},{"$f":"IF(TablaFronteras[[#This Row],[Frontera]]=\"\",\"\",IFERROR(MATCH(RIGHT(TablaFronteras[[#This Row],[Frontera]],LEN(TablaFronteras[[#This Row],[Frontera]])-IFERROR(FIND(\" - \",TablaFronteras[[#This Row],[Frontera]])+2,0)),TablaFronteras[Frontera],0),\"\"))","v":53}]
["Malí",328.82888793945313,140.64401245117188,34.576930999755859,36.012363433837891,{"$f":"TablaFronteras[[#This Row],[X]]+TablaFronteras[[#This Row],[Ancho]]/2","v":346.11735343933105},{"$f":"TablaFronteras[[#This Row],[Y]]+TablaFronteras[[#This Row],[Alto]]/2","v":158.65019416809082},{"$f":"IF(AND(TablaFronteras[[#This Row],[Fila]]<>\"\",TablaFronteras[[#This Row],[X]]<miX,miX<TablaFronteras[[#This Row],[X]]+TablaFronteras[[#This Row],[Ancho]],TablaFronteras[[#This Row],[Y]]<miY,miY<TablaFronteras[[#This Row],[Y]]+TablaFronteras[[#This Row],[Alto]]),SQRT((TablaFronteras[[#This Row],[Centro X]]-miX)^2+(TablaFronteras[[#This Row],[Centro Y]]-miY)^2),\"\")","v":""},{"$f":"IF(TablaFronteras[[#This Row],[Frontera]]=\"\",\"\",IFERROR(MATCH(RIGHT(TablaFronteras[[#This Row],[Frontera]],LEN(TablaFronteras[[#This Row],[Frontera]])-IFERROR(FIND(\" - \",TablaFronteras[[#This Row],[Frontera]])+2,0)),TablaFronteras[Frontera],0),\"\"))","v":54}]
["Mauritania",320.02291870117188,135.15449523925781,25.260787963867188,30.339056015014648,{"$f":"TablaFronteras[[#This Row],[X]]+TablaFronteras[[#This Row],[Ancho]]/2","v":332.65331268310547},{"$f":"TablaFronteras[[#This Row],[Y]]+TablaFronteras[[#This Row],[Alto]]/2","v":150.32402324676514},{"$f":"IF(AND(TablaFronteras[[#This Row],[Fila]]<>\"\",TablaFronteras[[#This Row],[X]]<miX,miX<TablaFronteras[[#This Row],[X]]+TablaFronteras[[#This Row],[Ancho]],TablaFronteras[[#This Row],[Y]]<miY,miY<TablaFronteras[[#This Row],[Y]]+TablaFronteras[[#This Row],[Alto]]),SQRT((TablaFronteras[[#This Row],[Centro X]]-miX)^2+(TablaFronteras[[#This Row],[Centro Y]]-miY)^2),\"\")","v":""},{"$f":"IF(TablaFronteras[[#This Row],[Frontera]]=\"\",\"\",IFERROR(MATCH(RIGHT(TablaFronteras[[#This Row],[Frontera]],LEN(TablaFronteras[[#This Row],[Frontera]])-IFERROR(FIND(\" - \",TablaFronteras[[#This Row],[Frontera]])+2,0)),TablaFronteras[Frontera],0),\"\"))","v":55}]
["Senegal",318.58865356445313,160.94960021972656,11.973149299621582,10.416141510009766,{"$f":"TablaFronteras[[#This Row],[X]]+TablaFronteras[[#This Row],[Ancho]]/2","v":324.57522821426392},{"$f":"TablaFronteras[[#This Row],[Y]]+TablaFronteras[[#This Row],[Alto]]/2","v":166.15767097473145},{"$f":"IF(AND(TablaFronteras[[#This Row],[Fila]]<>\"\",TablaFronteras[[#This Row],[X]]<miX,miX<TablaFronteras[[#This Row],[X]]+TablaFronteras[[#This Row],[Ancho]],TablaFronteras[[#This Row],[Y]]<miY,miY<TablaFronteras[[#This Row],[Y]]+TablaFronteras[[#This Row],[Alto]]),SQRT((TablaFronteras[[#This Row],[Centro X]]-miX)^2+(TablaFronteras[[#This Row],[Centro Y]]-miY)^2),\"\")","v":""},{"$f":"IF(TablaFronteras[[#This Row],[Frontera]]=\"\",\"\",IFERROR(MATCH(RIGHT(TablaFronteras[[#This Row],[Frontera]],LEN(TablaFronteras[[#This Row],[Frontera]])-IFERROR(FIND(\" - \",TablaFronteras[[#This Row],[Frontera]])+2,0)),TablaFronteras[Frontera],0),\"\"))","v":56}]
["Guinea-Bisáu",320.05322265625,170.49031066894531,5.659369945526123,4.4059844017028809,{"$f":"TablaFronteras[[#This Row],[X]]+TablaFronteras[[#This Row],[Ancho]]/2","v":322.88290762901306},{"$f":"TablaFronteras[[#This Row],[Y]]+TablaFronteras[[#This Row],[Alto]]/2","v":172.69330286979675},{"$f":"IF(AND(TablaFronteras[[#This Row],[Fila]]<>\"\",TablaFronteras[[#This Row],[X]]<miX,miX<TablaFronteras[[#This Row],[X]]+TablaFronteras[[#This Row],[Ancho]],TablaFronteras[[#This Row],[Y]]<miY,miY<TablaFronteras[[#This Row],[Y]]+TablaFronteras[[#This Row],[Alto]]),SQRT((TablaFronteras[[#This Row],[Centro X]]-miX)^2+(TablaFronteras[[#This Row],[Centro Y]]-miY)^2),\"\")","v":""},{"$f":"IF(TablaFronteras[[#This Row],[Frontera]]=\"\",\"\",IFERROR(MATCH(RIGHT(TablaFronteras[[#This Row],[Frontera]],LEN(TablaFronteras[[#This Row],[Frontera]])-IFERROR(FIND(\" - \",TablaFronteras[[#This Row],[Frontera]])+2,0)),TablaFronteras[Frontera],0),\"\"))","v":57}]
["Guinea",321.97344970703125,170.50070190429688,16.563936233520508,13.297480583190918,{"$f":"TablaFronteras[[#This Row],[X]]+TablaFronteras[[#This Row],[Ancho]]/2","v":330.2554178237915},{"$f":"TablaFronteras[[#This Row],[Y]]+TablaFronteras[[#This Row],[Alto]]/2","v":177.14944219589233},{"$f":"IF(AND(TablaFronteras[[#This Row],[Fila]]<>\"\",TablaFronteras[[#This Row],[X]]<miX,miX<TablaFronteras[[#This Row],[X]]+TablaFronteras[[#This Row],[Ancho]],TablaFronteras[[#This Row],[Y]]<miY,miY<TablaFronteras[[#This Row],[Y]]+TablaFronteras[[#This Row],[Alto]]),SQRT((TablaFronteras[[#This Row],[Centro X]]-miX)^2+(TablaFronteras[[#This Row],[Centro Y]]-miY)^2),\"\")","v":""},{"$f":"IF(TablaFronteras[[#This Row],[Frontera]]=\"\",\"\",IFERROR(MATCH(RIGHT(TablaFronteras[[#This Row],[Frontera]],LEN(TablaFronteras[[#This Row],[Frontera]])-IFERROR(FIND(\" - \",TablaFronteras[[#This Row],[Frontera]])+2,0)),TablaFronteras[Frontera],0),\"\"))","v":58}]
["Sierra Leona",326.32748413085938,177.00897216796875,7.6894488334655762,7.4218897819519043,{"$f":"TablaFronteras[[#This Row],[X]]+TablaFronteras[[#This Row],[Ancho]]/2","v":330.17220854759216},{"$f":"TablaFronteras[[#This Row],[Y]]+TablaFronteras[[#This Row],[Alto]]/2","v":180.7199170589447},{"$f":"IF(AND(TablaFronteras[[#This Row],[Fila]]<>\"\",TablaFronteras[[#This Row],[X]]<miX,miX<TablaFronteras[[#This Row],[X]]+TablaFronteras[[#This Row],[Ancho]],TablaFronteras[[#This Row],[Y]]<miY,miY<TablaFronteras[[#This Row],[Y]]+TablaFronteras[[#This Row],[Alto]]),SQRT((TablaFronteras[[#This Row],[Centro X]]-miX)^2+(TablaFronteras[[#This Row],[Centro Y]]-miY)^2),\"\")","v":""},{"$f":"IF(TablaFronteras[[#This Row],[Frontera]]=\"\",\"\",IFERROR(MATCH(RIGHT(TablaFronteras[[#This Row],[Frontera]],LEN(TablaFronteras[[#This Row],[Frontera]])-IFERROR(FIND(\" - \",TablaFronteras[[#This Row],[Frontera]])+2,0)),TablaFronteras[Frontera],0),\"\"))","v":59}]
["Liberia",330.08377075195313,180.56866455078125,8.9439373016357422,10.204252243041992,{"$f":"TablaFronteras[[#This Row],[X]]+TablaFronteras[[#This Row],[Ancho]]/2","v":334.555739402771},{"$f":"TablaFronteras[[#This Row],[Y]]+TablaFronteras[[#This Row],[Alto]]/2","v":185.67079067230225},{"$f":"IF(AND(TablaFronteras[[#This Row],[Fila]]<>\"\",TablaFronteras[[#This Row],[X]]<miX,miX<TablaFronteras[[#This Row],[X]]+TablaFronteras[[#This Row],[Ancho]],TablaFronteras[[#This Row],[Y]]<miY,miY<TablaFronteras[[#This Row],[Y]]+TablaFronteras[[#This Row],[Alto]]),SQRT((TablaFronteras[[#This Row],[Centro X]]-miX)^2+(TablaFronteras[[#This Row],[Centro Y]]-miY)^2),\"\")","v":""},{"$f":"IF(TablaFronteras[[#This Row],[Frontera]]=\"\",\"\",IFERROR(MATCH(RIGHT(TablaFronteras[[#This Row],[Frontera]],LEN(TablaFronteras[[#This Row],[Frontera]])-IFERROR(FIND(\" - \",TablaFronteras[[#This Row],[Frontera]])+2,0)),TablaFronteras[Frontera],0),\"\"))","v":60}]
["Costa de Marfil",336.5858154296875,175.36968994140625,12.465512275695801,15.33464527130127,{"$f":"TablaFronteras[[#This Row],[X]]+TablaFronteras[[#This Row],[Ancho]]/2","v":342.8185715675354},{"$f":"TablaFronteras[[#This Row],[Y]]+TablaFronteras[[#This Row],[Alto]]/2","v":183.03701257705688},{"$f":"IF(AND(TablaFronteras[[#This Row],[Fila]]<>\"\",TablaFronteras[[#This Row],[X]]<miX,miX<TablaFronteras[[#This Row],[X]]+TablaFronteras[[#This Row],[Ancho]],TablaFronteras[[#This Row],[Y]]<miY,miY<TablaFronteras[[#This Row],[Y]]+TablaFronteras[[#This Row],[Alto]]),SQRT((TablaFronteras[[#This Row],[Centro X]]-miX)^2+(TablaFronteras[[#This Row],[Centro Y]]-miY)^2),\"\")","v":""},{"$f":"IF(TablaFronteras[[#This Row],[Frontera]]=\"\",\"\",IFERROR(MATCH(RIGHT(TablaFronteras[[#This Row],[Frontera]],LEN(TablaFronteras[[#This Row],[Frontera]])-IFERROR(FIND(\" - \",TablaFronteras[[#This Row],[Frontera]])+2,0)),TablaFronteras[Frontera],0),\"\"))","v":61}]
["Burkina Faso",343.07659912109375,164.70968627929688,16.178583145141602,13.789763450622559,{"$f":"TablaFronteras[[#This Row],[X]]+TablaFronteras[[#This Row],[Ancho]]/2","v":351.16589069366455},{"$f":"TablaFronteras[[#This Row],[Y]]+TablaFronteras[[#This Row],[Alto]]/2","v":171.60456800460815},{"$f":"IF(AND(TablaFronteras[[#This Row],[Fila]]<>\"\",TablaFronteras[[#This Row],[X]]<miX,miX<TablaFronteras[[#This Row],[X]]+TablaFronteras[[#This Row],[Ancho]],TablaFronteras[[#This Row],[Y]]<miY,miY<TablaFronteras[[#This Row],[Y]]+TablaFronteras[[#This Row],[Alto]]),SQRT((TablaFronteras[[#This Row],[Centro X]]-miX)^2+(TablaFronteras[[#This Row],[Centro Y]]-miY)^2),\"\")","v":""},{"$f":"IF(TablaFronteras[[#This Row],[Frontera]]=\"\",\"\",IFERROR(MATCH(RIGHT(TablaFronteras[[#This Row],[Frontera]],LEN(TablaFronteras[[#This Row],[Frontera]])-IFERROR(FIND(\" - \",TablaFronteras[[#This Row],[Frontera]])+2,0)),TablaFronteras[Frontera],0),\"\"))","v":62}]
["Ghana",347.76708984375,174.44023132324219,8.2970075607299805,15.458425521850586,{"$f":"TablaFronteras[[#This Row],[X]]+TablaFronteras[[#This Row],[Ancho]]/2","v":351.91559362411499},{"$f":"TablaFronteras[[#This Row],[Y]]+TablaFronteras[[#This Row],[Alto]]/2","v":182.16944408416748},{"$f":"IF(AND(TablaFronteras[[#This Row],[Fila]]<>\"\",TablaFronteras[[#This Row],[X]]<miX,miX<TablaFronteras[[#This Row],[X]]+TablaFronteras[[#This Row],[Ancho]],TablaFronteras[[#This Row],[Y]]<miY,miY<TablaFronteras[[#This Row],[Y]]+TablaFronteras[[#This Row],[Alto]]),SQRT((TablaFronteras[[#This Row],[Centro X]]-miX)^2+(TablaFronteras[[#This Row],[Centro Y]]-miY)^2),\"\")","v":""},{"$f":"IF(TablaFronteras[[#This Row],[Frontera]]=\"\",\"\",IFERROR(MATCH(RIGHT(TablaFronteras[[#This Row],[Frontera]],LEN(TablaFronteras[[#This Row],[Frontera]])-IFERROR(FIND(\" - \",TablaFronteras[[#This Row],[Frontera]])+2,0)),TablaFronteras[Frontera],0),\"\"))","v":63}]
["Togo",353.53179931640625,174.41078186035156,5.3624410629272461,12.004094123840332,{"$f":"TablaFronteras[[#This Row],[X]]+TablaFronteras[[#This Row],[Ancho]]/2","v":356.21301984786987},{"$f":"TablaFronteras[[#This Row],[Y]]+TablaFronteras[[#This Row],[Alto]]/2","v":180.41282892227173},{"$f":"IF(AND(TablaFronteras[[#This Row],[Fila]]<>\"\",TablaFronteras[[#This Row],[X]]<miX,miX<TablaFronteras[[#This Row],[X]]+TablaFronteras[[#This Row],[Ancho]],TablaFronteras[[#This Row],[Y]]<miY,miY<TablaFronteras[[#This Row],[Y]]+TablaFronteras[[#This Row],[Alto]]),SQRT((TablaFronteras[[#This Row],[Centro X]]-miX)^2+(TablaFronteras[[#This Row],[Centro Y]]-miY)^2),\"\")","v":""},{"$f":"IF(TablaFronteras[[#This Row],[Frontera]]=\"\",\"\",IFERROR(MATCH(RIGHT(TablaFronteras[[#This Row],[Frontera]],LEN(TablaFronteras[[#This Row],[Frontera]])-IFERROR(FIND(\" - \",TablaFronteras[[#This Row],[Frontera]])+2,0)),TablaFronteras[Frontera],0),\"\"))","v":64}]
["Benín",355.75857543945313,171.17953491210938,6.7681889533996582,14.954724311828613,{"$f":"TablaFronteras[[#This Row],[X]]+TablaFronteras[[#This Row],[Ancho]]/2","v":359.14266991615295},{"$f":"TablaFronteras[[#This Row],[Y]]+TablaFronteras[[#This Row],[Alto]]/2","v":178.65689706802368},{"$f":"IF(AND(TablaFronteras[[#This Row],[Fila]]<>\"\",TablaFronteras[[#This Row],[X]]<miX,miX<TablaFronteras[[#This Row],[X]]+TablaFronteras[[#This Row],[Ancho]],TablaFronteras[[#This Row],[Y]]<miY,miY<TablaFronteras[[#This Row],[Y]]+TablaFronteras[[#This Row],[Alto]]),SQRT((TablaFronteras[[#This Row],[Centro X]]-miX)^2+(TablaFronteras[[#This Row],[Centro Y]]-miY)^2),\"\")","v":""},{"$f":"IF(TablaFronteras[[#This Row],[Frontera]]=\"\",\"\",IFERROR(MATCH(RIGHT(TablaFronteras[[#This Row],[Frontera]],LEN(TablaFronteras[[#This Row],[Frontera]])-IFERROR(FIND(\" - \",TablaFronteras[[#This Row],[Frontera]])+2,0)),TablaFronteras[Frontera],0),\"\"))","v":65}]
["Nigeria",360.242431640625,167.59024047851563,24.822992324829102,23.332834243774414,{"$f":"TablaFronteras[[#This Row],[X]]+TablaFronteras[[#This Row],[Ancho]]/2","v":372.65392780303955},{"$f":"TablaFronteras[[#This Row],[Y]]+TablaFronteras[[#This Row],[Alto]]/2","v":179.25665760040283},{"$f":"IF(AND(TablaFronteras[[#This Row],[Fila]]<>\"\",TablaFronteras[[#This Row],[X]]<miX,miX<TablaFronteras[[#This Row],[X]]+TablaFronteras[[#This Row],[Ancho]],TablaFronteras[[#This Row],[Y]]<miY,miY<TablaFronteras[[#This Row],[Y]]+TablaFronteras[[#This Row],[Alto]]),SQRT((TablaFronteras[[#This Row],[Centro X]]-miX)^2+(TablaFronteras[[#This Row],[Centro Y]]-miY)^2),\"\")","v":""},{"$f":"IF(TablaFronteras[[#This Row],[Frontera]]=\"\",\"\",IFERROR(MATCH(RIGHT(TablaFronteras[[#This Row],[Frontera]],LEN(TablaFronteras[[#This Row],[Frontera]])-IFERROR(FIND(\" - \",TablaFronteras[[#This Row],[Frontera]])+2,0)),TablaFronteras[Frontera],0),\"\"))","v":66}]
["Níger",354.66464233398438,144.55322265625,32.84228515625,28.548896789550781,{"$f":"TablaFronteras[[#This Row],[X]]+TablaFronteras[[#This Row],[Ancho]]/2","v":371.08578491210938},{"$f":"TablaFronteras[[#This Row],[Y]]+TablaFronteras[[#This Row],[Alto]]/2","v":158.82767105102539},{"$f":"IF(AND(TablaFronteras[[#This Row],[Fila]]<>\"\",TablaFronteras[[#This Row],[X]]<miX,miX<TablaFronteras[[#This Row],[X]]+TablaFronteras[[#This Row],[Ancho]],TablaFronteras[[#This Row],[Y]]<miY,miY<TablaFronteras[[#This Row],[Y]]+TablaFronteras[[#This Row],[Alto]]),SQRT((TablaFronteras[[#This Row],[Centro X]]-miX)^2+(TablaFronteras[[#This Row],[Centro Y]]-miY)^2),\"\")","v":""},{"$f":"IF(TablaFronteras[[#This Row],[Frontera]]=\"\",\"\",IFERROR(MATCH(RIGHT(TablaFronteras[[#This Row],[Frontera]],LEN(TablaFronteras[[#This Row],[Frontera]])-IFERROR(FIND(\" - \",TablaFronteras[[#This Row],[Frontera]])+2,0)),TablaFronteras[Frontera],0),\"\"))","v":67}]
["Chad",381.85250854492188,144.47306823730469,21.590787887573242,38.524093627929688,{"$f":"TablaFronteras[[#This Row],[X]]+TablaFronteras[[#This Row],[Ancho]]/2","v":392.6479024887085},{"$f":"TablaFronteras[[#This Row],[Y]]+TablaFronteras[[#This Row],[Alto]]/2","v":163.73511505126953},{"$f":"IF(AND(TablaFronteras[[#This Row],[Fila]]<>\"\",TablaFronteras[[#This Row],[X]]<miX,miX<TablaFronteras[[#This Row],[X]]+TablaFronteras[[#This Row],[Ancho]],TablaFronteras[[#This Row],[Y]]<miY,miY<TablaFronteras[[#This Row],[Y]]+TablaFronteras[[#This Row],[Alto]]),SQRT((TablaFronteras[[#This Row],[Centro X]]-miX)^2+(TablaFronteras[[#This Row],[Centro Y]]-miY)^2),\"\")","v":""},{"$f":"IF(TablaFronteras[[#This Row],[Frontera]]=\"\",\"\",IFERROR(MATCH(RIGHT(TablaFronteras[[#This Row],[Frontera]],LEN(TablaFronteras[[#This Row],[Frontera]])-IFERROR(FIND(\" - \",TablaFronteras[[#This Row],[Frontera]])+2,0)),TablaFronteras[Frontera],0),\"\"))","v":68}]
["Sudán",399.24826049804688,145.35835266113281,34.668190002441406,33.287952423095703,{"$f":"TablaFronteras[[#This Row],[X]]+TablaFronteras[[#This Row],[Ancho]]/2","v":416.58235549926758},{"$f":"TablaFronteras[[#This Row],[Y]]+TablaFronteras[[#This Row],[Alto]]/2","v":162.00232887268066},{"$f":"IF(AND(TablaFronteras[[#This Row],[Fila]]<>\"\",TablaFronteras[[#This Row],[X]]<miX,miX<TablaFronteras[[#This Row],[X]]+TablaFronteras[[#This Row],[Ancho]],TablaFronteras[[#This Row],[Y]]<miY,miY<TablaFronteras[[#This Row],[Y]]+TablaFronteras[[#This Row],[Alto]]),SQRT((TablaFronteras[[#This Row],[Centro X]]-miX)^2+(TablaFronteras[[#This Row],[Centro Y]]-miY)^2),\"\")","v":""},{"$f":"IF(TablaFronteras[[#This Row],[Frontera]]=\"\",\"\",IFERROR(MATCH(RIGHT(TablaFronteras[[#This Row],[Frontera]],LEN(TablaFronteras[[#This Row],[Frontera]])-IFERROR(FIND(\" - \",TablaFronteras[[#This Row],[Frontera]])+2,0)),TablaFronteras[Frontera],0),\"\"))","v":69}]
["Sudán del Sur",402.53298950195313,171.34109497070313,26.024251937866211,21.460472106933594,{"$f":"TablaFronteras[[#This Row],[X]]+TablaFronteras[[#This Row],[Ancho]]/2","v":415.54511547088623},{"$f":"TablaFronteras[[#This Row],[Y]]+TablaFronteras[[#This Row],[Alto]]/2","v":182.07133102416992},{"$f":"IF(AND(TablaFronteras[[#This Row],[Fila]]<>\"\",TablaFronteras[[#This Row],[X]]<miX,miX<TablaFronteras[[#This Row],[X]]+TablaFronteras[[#This Row],[Ancho]],TablaFronteras[[#This Row],[Y]]<miY,miY<TablaFronteras[[#This Row],[Y]]+TablaFronteras[[#This Row],[Alto]]),SQRT((TablaFronteras[[#This Row],[Centro X]]-miX)^2+(TablaFronteras[[#This Row],[Centro Y]]-miY)^2),\"\")","v":""},{"$f":"IF(TablaFronteras[[#This Row],[Frontera]]=\"\",\"\",IFERROR(MATCH(RIGHT(TablaFronteras[[#This Row],[Frontera]],LEN(TablaFronteras[[#This Row],[Frontera]])-IFERROR(FIND(\" - \",TablaFronteras[[#This Row],[Frontera]])+2,0)),TablaFronteras[Frontera],0),\"\"))","v":70}]
["Eritrea",429.10140991210938,157.60212707519531,14.55370044708252,13.630472183227539,{"$f":"TablaFronteras[[#This Row],[X]]+TablaFronteras[[#This Row],[Ancho]]/2","v":436.37826013565063},{"$f":"TablaFronteras[[#This Row],[Y]]+TablaFronteras[[#This Row],[Alto]]/2","v":164.41736316680908},{"$f":"IF(AND(TablaFronteras[[#This Row],[Fila]]<>\"\",TablaFronteras[[#This Row],[X]]<miX,miX<TablaFronteras[[#This Row],[X]]+TablaFronteras[[#This Row],[Ancho]],TablaFronteras[[#This Row],[Y]]<miY,miY<TablaFronteras[[#This Row],[Y]]+TablaFronteras[[#This Row],[Alto]]),SQRT((TablaFronteras[[#This Row],[Centro X]]-miX)^2+(TablaFronteras[[#This Row],[Centro Y]]-miY)^2),\"\")","v":""},{"$f":"IF(TablaFronteras[[#This Row],[Frontera]]=\"\",\"\",IFERROR(MATCH(RIGHT(TablaFronteras[[#This Row],[Frontera]],LEN(TablaFronteras[[#This Row],[Frontera]])-IFERROR(FIND(\" - \",TablaFronteras[[#This Row],[Frontera]])+2,0)),TablaFronteras[Frontera],0),\"\"))","v":71}]
["Somalia",439.30166625976563,172.20512390136719,21.218189239501953,33.138347625732422,{"$f":"TablaFronteras[[#This Row],[X]]+TablaFronteras[[#This Row],[Ancho]]/2","v":449.9107608795166},{"$f":"TablaFronteras[[#This Row],[Y]]+TablaFronteras[[#This Row],[Alto]]/2","v":188.7742977142334},{"$f":"IF(AND(TablaFronteras[[#This Row],[Fila]]<>\"\",TablaFronteras[[#This Row],[X]]<miX,miX<TablaFronteras[[#This Row],[X]]+TablaFronteras[[#This Row],[Ancho]],TablaFronteras[[#This Row],[Y]]<miY,miY<TablaFronteras[[#This Row],[Y]]+TablaFronteras[[#This Row],[Alto]]),SQRT((TablaFronteras[[#This Row],[Centro X]]-miX)^2+(TablaFronteras[[#This Row],[Centro Y]]-miY)^2),\"\")","v":""},{"$f":"IF(TablaFronteras[[#This Row],[Frontera]]=\"\",\"\",IFERROR(MATCH(RIGHT(TablaFronteras[[#This Row],[Frontera]],LEN(TablaFronteras[[#This Row],[Frontera]])-IFERROR(FIND(\" - \",TablaFronteras[[#This Row],[Frontera]])+2,0)),TablaFronteras[Frontera],0),\"\"))","v":72}]
["Etiopía",422.98883056640625,165.201416015625,30.171180725097656,27.814723968505859,{"$f":"TablaFronteras[[#This Row],[X]]+TablaFronteras[[#This Row],[Ancho]]/2","v":438.07442092895508},{"$f":"TablaFronteras[[#This Row],[Y]]+TablaFronteras[[#This Row],[Alto]]/2","v":179.10877799987793},{"$f":"IF(AND(TablaFronteras[[#This Row],[Fila]]<>\"\",TablaFronteras[[#This Row],[X]]<miX,miX<TablaFronteras[[#This Row],[X]]+TablaFronteras[[#This Row],[Ancho]],TablaFronteras[[#This Row],[Y]]<miY,miY<TablaFronteras[[#This Row],[Y]]+TablaFronteras[[#This Row],[Alto]]),SQRT((TablaFronteras[[#This Row],[Centro X]]-miX)^2+(TablaFronteras[[#This Row],[Centro Y]]-miY)^2),\"\")","v":""},{"$f":"IF(TablaFronteras[[#This Row],[Frontera]]=\"\",\"\",IFERROR(MATCH(RIGHT(TablaFronteras[[#This Row],[Frontera]],LEN(TablaFronteras[[#This Row],[Frontera]])-IFERROR(FIND(\" - \",TablaFronteras[[#This Row],[Frontera]])+2,0)),TablaFronteras[Frontera],0),\"\"))","v":73}]
["Yibuti",440.88290405273438,170.4188232421875,3.4285826683044434,4.4492125511169434,{"$f":"TablaFronteras[[#This Row],[X]]+TablaFronteras[[#This Row],[Ancho]]/2","v":442.5971953868866},{"$f":"TablaFronteras[[#This Row],[Y]]+TablaFronteras[[#This Row],[Alto]]/2","v":172.64342951774597},{"$f":"IF(AND(TablaFronteras[[#This Row],[Fila]]<>\"\",TablaFronteras[[#This Row],[X]]<miX,miX<TablaFronteras[[#This Row],[X]]+TablaFronteras[[#This Row],[Ancho]],TablaFronteras[[#This Row],[Y]]<miY,miY<TablaFronteras[[#This Row],[Y]]+TablaFronteras[[#This Row],[Alto]]),SQRT((TablaFronteras[[#This Row],[Centro X]]-miX)^2+(TablaFronteras[[#This Row],[Centro Y]]-miY)^2),\"\")","v":""},{"$f":"IF(TablaFronteras[[#This Row],[Frontera]]=\"\",\"\",IFERROR(MATCH(RIGHT(TablaFronteras[[#This Row],[Frontera]],LEN(TablaFronteras[[#This Row],[Frontera]])-IFERROR(FIND(\" - \",TablaFronteras[[#This Row],[Frontera]])+2,0)),TablaFronteras[Frontera],0),\"\"))","v":74}]
["Kenia",424.7054443359375,190.16874694824219,16.780786514282227,22.390157699584961,{"$f":"TablaFronteras[[#This Row],[X]]+TablaFronteras[[#This Row],[Ancho]]/2","v":433.09583759307861},{"$f":"TablaFronteras[[#This Row],[Y]]+TablaFronteras[[#This Row],[Alto]]/2","v":201.36382579803467},{"$f":"IF(AND(TablaFronteras[[#This Row],[Fila]]<>\"\",TablaFronteras[[#This Row],[X]]<miX,miX<TablaFronteras[[#This Row],[X]]+TablaFronteras[[#This Row],[Ancho]],TablaFronteras[[#This Row],[Y]]<miY,miY<TablaFronteras[[#This Row],[Y]]+TablaFronteras[[#This Row],[Alto]]),SQRT((TablaFronteras[[#This Row],[Centro X]]-miX)^2+(TablaFronteras[[#This Row],[Centro Y]]-miY)^2),\"\")","v":""},{"$f":"IF(TablaFronteras[[#This Row],[Frontera]]=\"\",\"\",IFERROR(MATCH(RIGHT(TablaFronteras[[#This Row],[Frontera]],LEN(TablaFronteras[[#This Row],[Frontera]])-IFERROR(FIND(\" - \",TablaFronteras[[#This Row],[Frontera]])+2,0)),TablaFronteras[Frontera],0),\"\"))","v":75}]
["Uganda",415.7947998046875,191.05732727050781,10.988031387329102,13.839920997619629,{"$f":"TablaFronteras[[#This Row],[X]]+TablaFronteras[[#This Row],[Ancho]]/2","v":421.28881549835205},{"$f":"TablaFronteras[[#This Row],[Y]]+TablaFronteras[[#This Row],[Alto]]/2","v":197.97728776931763},{"$f":"IF(AND(TablaFronteras[[#This Row],[Fila]]<>\"\",TablaFronteras[[#This Row],[X]]<miX,miX<TablaFronteras[[#This Row],[X]]+TablaFronteras[[#This Row],[Ancho]],TablaFronteras[[#This Row],[Y]]<miY,miY<TablaFronteras[[#This Row],[Y]]+TablaFronteras[[#This Row],[Alto]]),SQRT((TablaFronteras[[#This Row],[Centro X]]-miX)^2+(TablaFronteras[[#This Row],[Centro Y]]-miY)^2),\"\")","v":""},{"$f":"IF(TablaFronteras[[#This Row],[Frontera]]=\"\",\"\",IFERROR(MATCH(RIGHT(TablaFronteras[[#This Row],[Frontera]],LEN(TablaFronteras[[#This Row],[Frontera]])-IFERROR(FIND(\" - \",TablaFronteras[[#This Row],[Frontera]])+2,0)),TablaFronteras[Frontera],0),\"\"))","v":76}]
["Ruanda",414.3795166015625,203.95480346679688,4.2485041618347168,4.1122832298278809,{"$f":"TablaFronteras[[#This Row],[X]]+TablaFronteras[[#This Row],[Ancho]]/2","v":416.50376868247986},{"$f":"TablaFronteras[[#This Row],[Y]]+TablaFronteras[[#This Row],[Alto]]/2","v":206.01094508171082},{"$f":"IF(AND(TablaFronteras[[#This Row],[Fila]]<>\"\",TablaFronteras[[#This Row],[X]]<miX,miX<TablaFronteras[[#This Row],[X]]+TablaFronteras[[#This Row],[Ancho]],TablaFronteras[[#This Row],[Y]]<miY,miY<TablaFronteras[[#This Row],[Y]]+TablaFronteras[[#This Row],[Alto]]),SQRT((TablaFronteras[[#This Row],[Centro X]]-miX)^2+(TablaFronteras[[#This Row],[Centro Y]]-miY)^2),\"\")","v":""},{"$f":"IF(TablaFronteras[[#This Row],[Frontera]]=\"\",\"\",IFERROR(MATCH(RIGHT(TablaFronteras[[#This Row],[Frontera]],LEN(TablaFronteras[[#This Row],[Frontera]])-IFERROR(FIND(\" - \",TablaFronteras[[#This Row],[Frontera]])+2,0)),TablaFronteras[Frontera],0),\"\"))","v":77}]
["Burundi",414.6954345703125,206.87322998046875,3.8731496334075928,5.114173412322998,{"$f":"TablaFronteras[[#This Row],[X]]+TablaFronteras[[#This Row],[Ancho]]/2","v":416.6320093870163},{"$f":"TablaFronteras[[#This Row],[Y]]+TablaFronteras[[#This Row],[Alto]]/2","v":209.43031668663025},{"$f":"IF(AND(TablaFronteras[[#This Row],[Fila]]<>\"\",TablaFronteras[[#This Row],[X]]<miX,miX<TablaFronteras[[#This Row],[X]]+TablaFronteras[[#This Row],[Ancho]],TablaFronteras[[#This Row],[Y]]<miY,miY<TablaFronteras[[#This Row],[Y]]+TablaFronteras[[#This Row],[Alto]]),SQRT((TablaFronteras[[#This Row],[Centro X]]-miX)^2+(TablaFronteras[[#This Row],[Centro Y]]-miY)^2),\"\")","v":""},{"$f":"IF(TablaFronteras[[#This Row],[Frontera]]=\"\",\"\",IFERROR(MATCH(RIGHT(TablaFronteras[[#This Row],[Frontera]],LEN(TablaFronteras[[#This Row],[Frontera]])-IFERROR(FIND(\" - \",TablaFronteras[[#This Row],[Frontera]])+2,0)),TablaFronteras[Frontera],0),\"\"))","v":78}]
["Tanzania",415.88174438476563,203.76519775390625,22.177244186401367,25.890235900878906,{"$f":"TablaFronteras[[#This Row],[X]]+TablaFronteras[[#This Row],[Ancho]]/2","v":426.97036647796631},{"$f":"TablaFronteras[[#This Row],[Y]]+TablaFronteras[[#This Row],[Alto]]/2","v":216.7103157043457},{"$f":"IF(AND(TablaFronteras[[#This Row],[Fila]]<>\"\",TablaFronteras[[#This Row],[X]]<miX,miX<TablaFronteras[[#This Row],[X]]+TablaFronteras[[#This Row],[Ancho]],TablaFronteras[[#This Row],[Y]]<miY,miY<TablaFronteras[[#This Row],[Y]]+TablaFronteras[[#This Row],[Alto]]),SQRT((TablaFronteras[[#This Row],[Centro X]]-miX)^2+(TablaFronteras[[#This Row],[Centro Y]]-miY)^2),\"\")","v":""},{"$f":"IF(TablaFronteras[[#This Row],[Frontera]]=\"\",\"\",IFERROR(MATCH(RIGHT(TablaFronteras[[#This Row],[Frontera]],LEN(TablaFronteras[[#This Row],[Frontera]])-IFERROR(FIND(\" - \",TablaFronteras[[#This Row],[Frontera]])+2,0)),TablaFronteras[Frontera],0),\"\"))","v":79}]
["Zambia",399.52581787109375,221.21377563476563,24.279685974121094,23.760944366455078,{"$f":"TablaFronteras[[#This Row],[X]]+TablaFronteras[[#This Row],[Ancho]]/2","v":411.6656608581543},{"$f":"TablaFronteras[[#This Row],[Y]]+TablaFronteras[[#This Row],[Alto]]/2","v":233.09424781799316},{"$f":"IF(AND(TablaFronteras[[#This Row],[Fila]]<>\"\",TablaFronteras[[#This Row],[X]]<miX,miX<TablaFronteras[[#This Row],[X]]+TablaFronteras[[#This Row],[Ancho]],TablaFronteras[[#This Row],[Y]]<miY,miY<TablaFronteras[[#This Row],[Y]]+TablaFronteras[[#This Row],[Alto]]),SQRT((TablaFronteras[[#This Row],[Centro X]]-miX)^2+(TablaFronteras[[#This Row],[Centro Y]]-miY)^2),\"\")","v":""},{"$f":"IF(TablaFronteras[[#This Row],[Frontera]]=\"\",\"\",IFERROR(MATCH(RIGHT(TablaFronteras[[#This Row],[Frontera]],LEN(TablaFronteras[[#This Row],[Frontera]])-IFERROR(FIND(\" - \",TablaFronteras[[#This Row],[Frontera]])+2,0)),TablaFronteras[Frontera],0),\"\"))","v":80}]
["Mozambique",416.3218994140625,226.735595703125,21.825511932373047,39.689369201660156,{"$f":"TablaFronteras[[#This Row],[X]]+TablaFronteras[[#This Row],[Ancho]]/2","v":427.23465538024902},{"$f":"TablaFronteras[[#This Row],[Y]]+TablaFronteras[[#This Row],[Alto]]/2","v":246.58028030395508},{"$f":"IF(AND(TablaFronteras[[#This Row],[Fila]]<>\"\",TablaFronteras[[#This Row],[X]]<miX,miX<TablaFronteras[[#This Row],[X]]+TablaFronteras[[#This Row],[Ancho]],TablaFronteras[[#This Row],[Y]]<miY,miY<TablaFronteras[[#This Row],[Y]]+TablaFronteras[[#This Row],[Alto]]),SQRT((TablaFronteras[[#This Row],[Centro X]]-miX)^2+(TablaFronteras[[#This Row],[Centro Y]]-miY)^2),\"\")","v":""},{"$f":"IF(TablaFronteras[[#This Row],[Frontera]]=\"\",\"\",IFERROR(MATCH(RIGHT(TablaFronteras[[#This Row],[Frontera]],LEN(TablaFronteras[[#This Row],[Frontera]])-IFERROR(FIND(\" - \",TablaFronteras[[#This Row],[Frontera]])+2,0)),TablaFronteras[Frontera],0),\"\"))","v":81}]
["Malaui",422.11654663085938,223.97677612304688,4.8651180267333984,18.787322998046875,{"$f":"TablaFronteras[[#This Row],[X]]+TablaFronteras[[#This Row],[Ancho]]/2","v":424.54910564422607},{"$f":"TablaFronteras[[#This Row],[Y]]+TablaFronteras[[#This Row],[Alto]]/2","v":233.37043762207031},{"$f":"IF(AND(TablaFronteras[[#This Row],[Fila]]<>\"\",TablaFronteras[[#This Row],[X]]<miX,miX<TablaFronteras[[#This Row],[X]]+TablaFronteras[[#This Row],[Ancho]],TablaFronteras[[#This Row],[Y]]<miY,miY<TablaFronteras[[#This Row],[Y]]+TablaFronteras[[#This Row],[Alto]]),SQRT((TablaFronteras[[#This Row],[Centro X]]-miX)^2+(TablaFronteras[[#This Row],[Centro Y]]-miY)^2),\"\")","v":""},{"$f":"IF(TablaFronteras[[#This Row],[Frontera]]=\"\",\"\",IFERROR(MATCH(RIGHT(TablaFronteras[[#This Row],[Frontera]],LEN(TablaFronteras[[#This Row],[Frontera]])-IFERROR(FIND(\" - \",TablaFronteras[[#This Row],[Frontera]])+2,0)),TablaFronteras[Frontera],0),\"\"))","v":82}]
["Madagascar",442.78826904296875,230.22763061523438,14.515196800231934,33.058975219726563,{"$f":"TablaFronteras[[#This Row],[X]]+TablaFronteras[[#This Row],[Ancho]]/2","v":450.04586744308472},{"$f":"TablaFronteras[[#This Row],[Y]]+TablaFronteras[[#This Row],[Alto]]/2","v":246.75711822509766},{"$f":"IF(AND(TablaFronteras[[#This Row],[Fila]]<>\"\",TablaFronteras[[#This Row],[X]]<miX,miX<TablaFronteras[[#This Row],[X]]+TablaFronteras[[#This Row],[Ancho]],TablaFronteras[[#This Row],[Y]]<miY,miY<TablaFronteras[[#This Row],[Y]]+TablaFronteras[[#This Row],[Alto]]),SQRT((TablaFronteras[[#This Row],[Centro X]]-miX)^2+(TablaFronteras[[#This Row],[Centro Y]]-miY)^2),\"\")","v":""},{"$f":"IF(TablaFronteras[[#This Row],[Frontera]]=\"\",\"\",IFERROR(MATCH(RIGHT(TablaFronteras[[#This Row],[Frontera]],LEN(TablaFronteras[[#This Row],[Frontera]])-IFERROR(FIND(\" - \",TablaFronteras[[#This Row],[Frontera]])+2,0)),TablaFronteras[Frontera],0),\"\"))","v":83}]
["Zimbabue",405.9722900390625,239.11637878417969,15.809921264648438,16.540315628051758,{"$f":"TablaFronteras[[#This Row],[X]]+TablaFronteras[[#This Row],[Ancho]]/2","v":413.87725067138672},{"$f":"TablaFronteras[[#This Row],[Y]]+TablaFronteras[[#This Row],[Alto]]/2","v":247.38653659820557},{"$f":"IF(AND(TablaFronteras[[#This Row],[Fila]]<>\"\",TablaFronteras[[#This Row],[X]]<miX,miX<TablaFronteras[[#This Row],[X]]+TablaFronteras[[#This Row],[Ancho]],TablaFronteras[[#This Row],[Y]]<miY,miY<TablaFronteras[[#This Row],[Y]]+TablaFronteras[[#This Row],[Alto]]),SQRT((TablaFronteras[[#This Row],[Centro X]]-miX)^2+(TablaFronteras[[#This Row],[Centro Y]]-miY)^2),\"\")","v":""},{"$f":"IF(TablaFronteras[[#This Row],[Frontera]]=\"\",\"\",IFERROR(MATCH(RIGHT(TablaFronteras[[#This Row],[Frontera]],LEN(TablaFronteras[[#This Row],[Frontera]])-IFERROR(FIND(\" - \",TablaFronteras[[#This Row],[Frontera]])+2,0)),TablaFronteras[Frontera],0),\"\"))","v":84}]
["Botsuana",395.50607299804688,244.22795104980469,19.014410018920898,22.210786819458008,{"$f":"TablaFronteras[[#This Row],[X]]+TablaFronteras[[#This Row],[Ancho]]/2","v":405.01327800750732},{"$f":"TablaFronteras[[#This Row],[Y]]+TablaFronteras[[#This Row],[Alto]]/2","v":255.33334445953369},{"$f":"IF(AND(TablaFronteras[[#This Row],[Fila]]<>\"\",TablaFronteras[[#This Row],[X]]<miX,miX<TablaFronteras[[#This Row],[X]]+TablaFronteras[[#This Row],[Ancho]],TablaFronteras[[#This Row],[Y]]<miY,miY<TablaFronteras[[#This Row],[Y]]+TablaFronteras[[#This Row],[Alto]]),SQRT((TablaFronteras[[#This Row],[Centro X]]-miX)^2+(TablaFronteras[[#This Row],[Centro Y]]-miY)^2),\"\")","v":""},{"$f":"IF(TablaFronteras[[#This Row],[Frontera]]=\"\",\"\",IFERROR(MATCH(RIGHT(TablaFronteras[[#This Row],[Frontera]],LEN(TablaFronteras[[#This Row],[Frontera]])-IFERROR(FIND(\" - \",TablaFronteras[[#This Row],[Frontera]])+2,0)),TablaFronteras[Frontera],0),\"\"))","v":85}]
["Angola",378.24087524414063,211.89299011230469,25.517951965332031,32.926219940185547,{"$f":"TablaFronteras[[#This Row],[X]]+TablaFronteras[[#This Row],[Ancho]]/2","v":390.99985122680664},{"$f":"TablaFronteras[[#This Row],[Y]]+TablaFronteras[[#This Row],[Alto]]/2","v":228.35610008239746},{"$f":"IF(AND(TablaFronteras[[#This Row],[Fila]]<>\"\",TablaFronteras[[#This Row],[X]]<miX,miX<TablaFronteras[[#This Row],[X]]+TablaFronteras[[#This Row],[Ancho]],TablaFronteras[[#This Row],[Y]]<miY,miY<TablaFronteras[[#This Row],[Y]]+TablaFronteras[[#This Row],[Alto]]),SQRT((TablaFronteras[[#This Row],[Centro X]]-miX)^2+(TablaFronteras[[#This Row],[Centro Y]]-miY)^2),\"\")","v":""},{"$f":"IF(TablaFronteras[[#This Row],[Frontera]]=\"\",\"\",IFERROR(MATCH(RIGHT(TablaFronteras[[#This Row],[Frontera]],LEN(TablaFronteras[[#This Row],[Frontera]])-IFERROR(FIND(\" - \",TablaFronteras[[#This Row],[Frontera]])+2,0)),TablaFronteras[Frontera],0),\"\"))","v":86}]
["Camerún",372.88235473632813,169.51834106445313,14.758110046386719,27.716062545776367,{"$f":"TablaFronteras[[#This Row],[X]]+TablaFronteras[[#This Row],[Ancho]]/2","v":380.26140975952148},{"$f":"TablaFronteras[[#This Row],[Y]]+TablaFronteras[[#This Row],[Alto]]/2","v":183.37637233734131},{"$f":"IF(AND(TablaFronteras[[#This Row],[Fila]]<>\"\",TablaFronteras[[#This Row],[X]]<miX,miX<TablaFronteras[[#This Row],[X]]+TablaFronteras[[#This Row],[Ancho]],TablaFronteras[[#This Row],[Y]]<miY,miY<TablaFronteras[[#This Row],[Y]]+TablaFronteras[[#This Row],[Alto]]),SQRT((TablaFronteras[[#This Row],[Centro X]]-miX)^2+(TablaFronteras[[#This Row],[Centro Y]]-miY)^2),\"\")","v":""},{"$f":"IF(TablaFronteras[[#This Row],[Frontera]]=\"\",\"\",IFERROR(MATCH(RIGHT(TablaFronteras[[#This Row],[Frontera]],LEN(TablaFronteras[[#This Row],[Frontera]])-IFERROR(FIND(\" - \",TablaFronteras[[#This Row],[Frontera]])+2,0)),TablaFronteras[Frontera],0),\"\"))","v":87}]
["República Centroafricana",384.1927490234375,174.73440551757813,27.146141052246094,21.143228530883789,{"$f":"TablaFronteras[[#This Row],[X]]+TablaFronteras[[#This Row],[Ancho]]/2","v":397.76581954956055},{"$f":"TablaFronteras[[#This Row],[Y]]+TablaFronteras[[#This Row],[Alto]]/2","v":185.30601978302002},{"$f":"IF(AND(TablaFronteras[[#This Row],[Fila]]<>\"\",TablaFronteras[[#This Row],[X]]<miX,miX<TablaFronteras[[#This Row],[X]]+TablaFronteras[[#This Row],[Ancho]],TablaFronteras[[#This Row],[Y]]<miY,miY<TablaFronteras[[#This Row],[Y]]+TablaFronteras[[#This Row],[Alto]]),SQRT((TablaFronteras[[#This Row],[Centro X]]-miX)^2+(TablaFronteras[[#This Row],[Centro Y]]-miY)^2),\"\")","v":""},{"$f":"IF(TablaFronteras[[#This Row],[Frontera]]=\"\",\"\",IFERROR(MATCH(RIGHT(TablaFronteras[[#This Row],[Frontera]],LEN(TablaFronteras[[#This Row],[Frontera]])-IFERROR(FIND(\" - \",TablaFronteras[[#This Row],[Frontera]])+2,0)),TablaFronteras[Frontera],0),\"\"))","v":88}]
["República Democrática del Congo",379.25393676757813,188.22613525390625,40.270393371582031,45.729053497314453,{"$f":"TablaFronteras[[#This Row],[X]]+TablaFronteras[[#This Row],[Ancho]]/2","v":399.38913345336914},{"$f":"TablaFronteras[[#This Row],[Y]]+TablaFronteras[[#This Row],[Alto]]/2","v":211.09066200256348},{"$f":"IF(AND(TablaFronteras[[#This Row],[Fila]]<>\"\",TablaFronteras[[#This Row],[X]]<miX,miX<TablaFronteras[[#This Row],[X]]+TablaFronteras[[#This Row],[Ancho]],TablaFronteras[[#This Row],[Y]]<miY,miY<TablaFronteras[[#This Row],[Y]]+TablaFronteras[[#This Row],[Alto]]),SQRT((TablaFronteras[[#This Row],[Centro X]]-miX)^2+(TablaFronteras[[#This Row],[Centro Y]]-miY)^2),\"\")","v":""},{"$f":"IF(TablaFronteras[[#This Row],[Frontera]]=\"\",\"\",IFERROR(MATCH(RIGHT(TablaFronteras[[#This Row],[Frontera]],LEN(TablaFronteras[[#This Row],[Frontera]])-IFERROR(FIND(\" - \",TablaFronteras[[#This Row],[Frontera]])+2,0)),TablaFronteras[Frontera],0),\"\"))","v":89}]
["Namibia",378.20724487304688,242.32243347167969,27.709684371948242,28.968896865844727,{"$f":"TablaFronteras[[#This Row],[X]]+TablaFronteras[[#This Row],[Ancho]]/2","v":392.062087059021},{"$f":"TablaFronteras[[#This Row],[Y]]+TablaFronteras[[#This Row],[Alto]]/2","v":256.80688190460205},{"$f":"IF(AND(TablaFronteras[[#This Row],[Fila]]<>\"\",TablaFronteras[[#This Row],[X]]<miX,miX<TablaFronteras[[#This Row],[X]]+TablaFronteras[[#This Row],[Ancho]],TablaFronteras[[#This Row],[Y]]<miY,miY<TablaFronteras[[#This Row],[Y]]+TablaFronteras[[#This Row],[Alto]]),SQRT((TablaFronteras[[#This Row],[Centro X]]-miX)^2+(TablaFronteras[[#This Row],[Centro Y]]-miY)^2),\"\")","v":""},{"$f":"IF(TablaFronteras[[#This Row],[Frontera]]=\"\",\"\",IFERROR(MATCH(RIGHT(TablaFronteras[[#This Row],[Frontera]],LEN(TablaFronteras[[#This Row],[Frontera]])-IFERROR(FIND(\" - \",TablaFronteras[[#This Row],[Frontera]])+2,0)),TablaFronteras[Frontera],0),\"\"))","v":90}]
["Sudáfrica",388.13229370117188,254.89582824707031,33.173385620117188,30.466377258300781,{"$f":"TablaFronteras[[#This Row],[X]]+TablaFronteras[[#This Row],[Ancho]]/2","v":404.71898651123047},{"$f":"TablaFronteras[[#This Row],[Y]]+TablaFronteras[[#This Row],[Alto]]/2","v":270.1290168762207},{"$f":"IF(AND(TablaFronteras[[#This Row],[Fila]]<>\"\",TablaFronteras[[#This Row],[X]]<miX,miX<TablaFronteras[[#This Row],[X]]+TablaFronteras[[#This Row],[Ancho]],TablaFronteras[[#This Row],[Y]]<miY,miY<TablaFronteras[[#This Row],[Y]]+TablaFronteras[[#This Row],[Alto]]),SQRT((TablaFronteras[[#This Row],[Centro X]]-miX)^2+(TablaFronteras[[#This Row],[Centro Y]]-miY)^2),\"\")","v":""},{"$f":"IF(TablaFronteras[[#This Row],[Frontera]]=\"\",\"\",IFERROR(MATCH(RIGHT(TablaFronteras[[#This Row],[Frontera]],LEN(TablaFronteras[[#This Row],[Frontera]])-IFERROR(FIND(\" - \",TablaFronteras[[#This Row],[Frontera]])+2,0)),TablaFronteras[Frontera],0),\"\"))","v":91}]
["Lesoto",409.0401611328125,270.49700927734375,5.0054330825805664,5.19842529296875,{"$f":"TablaFronteras[[#This Row],[X]]+TablaFronteras[[#This Row],[Ancho]]/2","v":411.54287767410278},{"$f":"TablaFronteras[[#This Row],[Y]]+TablaFronteras[[#This Row],[Alto]]/2","v":273.09622192382813},{"$f":"IF(AND(TablaFronteras[[#This Row],[Fila]]<>\"\",TablaFronteras[[#This Row],[X]]<miX,miX<TablaFronteras[[#This Row],[X]]+TablaFronteras[[#This Row],[Ancho]],TablaFronteras[[#This Row],[Y]]<miY,miY<TablaFronteras[[#This Row],[Y]]+TablaFronteras[[#This Row],[Alto]]),SQRT((TablaFronteras[[#This Row],[Centro X]]-miX)^2+(TablaFronteras[[#This Row],[Centro Y]]-miY)^2),\"\")","v":""},{"$f":"IF(TablaFronteras[[#This Row],[Frontera]]=\"\",\"\",IFERROR(MATCH(RIGHT(TablaFronteras[[#This Row],[Frontera]],LEN(TablaFronteras[[#This Row],[Frontera]])-IFERROR(FIND(\" - \",TablaFronteras[[#This Row],[Frontera]])+2,0)),TablaFronteras[Frontera],0),\"\"))","v":92}]
["Suazilandia",417.06912231445313,263.93731689453125,3.331496000289917,3.4473228454589844,{"$f":"TablaFronteras[[#This Row],[X]]+TablaFronteras[[#This Row],[Ancho]]/2","v":418.73487031459808},{"$f":"TablaFronteras[[#This Row],[Y]]+TablaFronteras[[#This Row],[Alto]]/2","v":265.66097831726074},{"$f":"IF(AND(TablaFronteras[[#This Row],[Fila]]<>\"\",TablaFronteras[[#This Row],[X]]<miX,miX<TablaFronteras[[#This Row],[X]]+TablaFronteras[[#This Row],[Ancho]],TablaFronteras[[#This Row],[Y]]<miY,miY<TablaFronteras[[#This Row],[Y]]+TablaFronteras[[#This Row],[Alto]]),SQRT((TablaFronteras[[#This Row],[Centro X]]-miX)^2+(TablaFronteras[[#This Row],[Centro Y]]-miY)^2),\"\")","v":""},{"$f":"IF(TablaFronteras[[#This Row],[Frontera]]=\"\",\"\",IFERROR(MATCH(RIGHT(TablaFronteras[[#This Row],[Frontera]],LEN(TablaFronteras[[#This Row],[Frontera]])-IFERROR(FIND(\" - \",TablaFronteras[[#This Row],[Frontera]])+2,0)),TablaFronteras[Frontera],0),\"\"))","v":93}]
["República del Congo",376.98291015625,192.36134338378906,16.19354248046875,20.98480224609375,{"$f":"TablaFronteras[[#This Row],[X]]+TablaFronteras[[#This Row],[Ancho]]/2","v":385.07968139648438},{"$f":"TablaFronteras[[#This Row],[Y]]+TablaFronteras[[#This Row],[Alto]]/2","v":202.85374450683594},{"$f":"IF(AND(TablaFronteras[[#This Row],[Fila]]<>\"\",TablaFronteras[[#This Row],[X]]<miX,miX<TablaFronteras[[#This Row],[X]]+TablaFronteras[[#This Row],[Ancho]],TablaFronteras[[#This Row],[Y]]<miY,miY<TablaFronteras[[#This Row],[Y]]+TablaFronteras[[#This Row],[Alto]]),SQRT((TablaFronteras[[#This Row],[Centro X]]-miX)^2+(TablaFronteras[[#This Row],[Centro Y]]-miY)^2),\"\")","v":""},{"$f":"IF(TablaFronteras[[#This Row],[Frontera]]=\"\",\"\",IFERROR(MATCH(RIGHT(TablaFronteras[[#This Row],[Frontera]],LEN(TablaFronteras[[#This Row],[Frontera]])-IFERROR(FIND(\" - \",TablaFronteras[[#This Row],[Frontera]])+2,0)),TablaFronteras[Frontera],0),\"\"))","v":94}]
["Gabón",371.9625244140625,195.57778930664063,12.488661766052246,15.193937301635742,{"$f":"TablaFronteras[[#This Row],[X]]+TablaFronteras[[#This Row],[Ancho]]/2","v":378.20685529708862},{"$f":"TablaFronteras[[#This Row],[Y]]+TablaFronteras[[#This Row],[Alto]]/2","v":203.1747579574585},{"$f":"IF(AND(TablaFronteras[[#This Row],[Fila]]<>\"\",TablaFronteras[[#This Row],[X]]<miX,miX<TablaFronteras[[#This Row],[X]]+TablaFronteras[[#This Row],[Ancho]],TablaFronteras[[#This Row],[Y]]<miY,miY<TablaFronteras[[#This Row],[Y]]+TablaFronteras[[#This Row],[Alto]]),SQRT((TablaFronteras[[#This Row],[Centro X]]-miX)^2+(TablaFronteras[[#This Row],[Centro Y]]-miY)^2),\"\")","v":""},{"$f":"IF(TablaFronteras[[#This Row],[Frontera]]=\"\",\"\",IFERROR(MATCH(RIGHT(TablaFronteras[[#This Row],[Frontera]],LEN(TablaFronteras[[#This Row],[Frontera]])-IFERROR(FIND(\" - \",TablaFronteras[[#This Row],[Frontera]])+2,0)),TablaFronteras[Frontera],0),\"\"))","v":95}]
["Guinea Ecuatorial",371.95639038085938,192.16630554199219,5.4345669746398926,6.644251823425293,{"$f":"TablaFronteras[[#This Row],[X]]+TablaFronteras[[#This Row],[Ancho]]/2","v":374.67367386817932},{"$f":"TablaFronteras[[#This Row],[Y]]+TablaFronteras[[#This Row],[Alto]]/2","v":195.48843145370483},{"$f":"IF(AND(TablaFronteras[[#This Row],[Fila]]<>\"\",TablaFronteras[[#This Row],[X]]<miX,miX<TablaFronteras[[#This Row],[X]]+TablaFronteras[[#This Row],[Ancho]],TablaFronteras[[#This Row],[Y]]<miY,miY<TablaFronteras[[#This Row],[Y]]+TablaFronteras[[#This Row],[Alto]]),SQRT((TablaFronteras[[#This Row],[Centro X]]-miX)^2+(TablaFronteras[[#This Row],[Centro Y]]-miY)^2),\"\")","v":""},{"$f":"IF(TablaFronteras[[#This Row],[Frontera]]=\"\",\"\",IFERROR(MATCH(RIGHT(TablaFronteras[[#This Row],[Frontera]],LEN(TablaFronteras[[#This Row],[Frontera]])-IFERROR(FIND(\" - \",TablaFronteras[[#This Row],[Frontera]])+2,0)),TablaFronteras[Frontera],0),\"\"))","v":96}]
["Kazajistán",441.85000610351563,67.945823669433594,73.781341552734375,35.107166290283203,{"$f":"TablaFronteras[[#This Row],[X]]+TablaFronteras[[#This Row],[Ancho]]/2","v":478.74067687988281},{"$f":"TablaFronteras[[#This Row],[Y]]+TablaFronteras[[#This Row],[Alto]]/2","v":85.499406814575195},{"$f":"IF(AND(TablaFronteras[[#This Row],[Fila]]<>\"\",TablaFronteras[[#This Row],[X]]<miX,miX<TablaFronteras[[#This Row],[X]]+TablaFronteras[[#This Row],[Ancho]],TablaFronteras[[#This Row],[Y]]<miY,miY<TablaFronteras[[#This Row],[Y]]+TablaFronteras[[#This Row],[Alto]]),SQRT((TablaFronteras[[#This Row],[Centro X]]-miX)^2+(TablaFronteras[[#This Row],[Centro Y]]-miY)^2),\"\")","v":""},{"$f":"IF(TablaFronteras[[#This Row],[Frontera]]=\"\",\"\",IFERROR(MATCH(RIGHT(TablaFronteras[[#This Row],[Frontera]],LEN(TablaFronteras[[#This Row],[Frontera]])-IFERROR(FIND(\" - \",TablaFronteras[[#This Row],[Frontera]])+2,0)),TablaFronteras[Frontera],0),\"\"))","v":97}]
["Mongolia",516.453125,75.605903625488281,60.878505706787109,24.788188934326172,{"$f":"TablaFronteras[[#This Row],[X]]+TablaFronteras[[#This Row],[Ancho]]/2","v":546.89237785339355},{"$f":"TablaFronteras[[#This Row],[Y]]+TablaFronteras[[#This Row],[Alto]]/2","v":87.999998092651367},{"$f":"IF(AND(TablaFronteras[[#This Row],[Fila]]<>\"\",TablaFronteras[[#This Row],[X]]<miX,miX<TablaFronteras[[#This Row],[X]]+TablaFronteras[[#This Row],[Ancho]],TablaFronteras[[#This Row],[Y]]<miY,miY<TablaFronteras[[#This Row],[Y]]+TablaFronteras[[#This Row],[Alto]]),SQRT((TablaFronteras[[#This Row],[Centro X]]-miX)^2+(TablaFronteras[[#This Row],[Centro Y]]-miY)^2),\"\")","v":""},{"$f":"IF(TablaFronteras[[#This Row],[Frontera]]=\"\",\"\",IFERROR(MATCH(RIGHT(TablaFronteras[[#This Row],[Frontera]],LEN(TablaFronteras[[#This Row],[Frontera]])-IFERROR(FIND(\" - \",TablaFronteras[[#This Row],[Frontera]])+2,0)),TablaFronteras[Frontera],0),\"\"))","v":98}]
["Japón",605.1763916015625,91.251022338867188,25.385984420776367,51.155197143554688,{"$f":"TablaFronteras[[#This Row],[X]]+TablaFronteras[[#This Row],[Ancho]]/2","v":617.86938381195068},{"$f":"TablaFronteras[[#This Row],[Y]]+TablaFronteras[[#This Row],[Alto]]/2","v":116.82862091064453},{"$f":"IF(AND(TablaFronteras[[#This Row],[Fila]]<>\"\",TablaFronteras[[#This Row],[X]]<miX,miX<TablaFronteras[[#This Row],[X]]+TablaFronteras[[#This Row],[Ancho]],TablaFronteras[[#This Row],[Y]]<miY,miY<TablaFronteras[[#This Row],[Y]]+TablaFronteras[[#This Row],[Alto]]),SQRT((TablaFronteras[[#This Row],[Centro X]]-miX)^2+(TablaFronteras[[#This Row],[Centro Y]]-miY)^2),\"\")","v":""},{"$f":"IF(TablaFronteras[[#This Row],[Frontera]]=\"\",\"\",IFERROR(MATCH(RIGHT(TablaFronteras[[#This Row],[Frontera]],LEN(TablaFronteras[[#This Row],[Frontera]])-IFERROR(FIND(\" - \",TablaFronteras[[#This Row],[Frontera]])+2,0)),TablaFronteras[Frontera],0),\"\"))","v":99}]
["Corea del Norte",594.41851806640625,97.229133605957031,8.8395271301269531,12.741338729858398,{"$f":"TablaFronteras[[#This Row],[X]]+TablaFronteras[[#This Row],[Ancho]]/2","v":598.83828163146973},{"$f":"TablaFronteras[[#This Row],[Y]]+TablaFronteras[[#This Row],[Alto]]/2","v":103.59980297088623},{"$f":"IF(AND(TablaFronteras[[#This Row],[Fila]]<>\"\",TablaFronteras[[#This Row],[X]]<miX,miX<TablaFronteras[[#This Row],[X]]+TablaFronteras[[#This Row],[Ancho]],TablaFronteras[[#This Row],[Y]]<miY,miY<TablaFronteras[[#This Row],[Y]]+TablaFronteras[[#This Row],[Alto]]),SQRT((TablaFronteras[[#This Row],[Centro X]]-miX)^2+(TablaFronteras[[#This Row],[Centro Y]]-miY)^2),\"\")","v":""},{"$f":"IF(TablaFronteras[[#This Row],[Frontera]]=\"\",\"\",IFERROR(MATCH(RIGHT(TablaFronteras[[#This Row],[Frontera]],LEN(TablaFronteras[[#This Row],[Frontera]])-IFERROR(FIND(\" - \",TablaFronteras[[#This Row],[Frontera]])+2,0)),TablaFronteras[Frontera],0),\"\"))","v":100}]
["Corea del Sur",600.12548828125,107.80094146728516,8.6724405288696289,13.040472030639648,{"$f":"TablaFronteras[[#This Row],[X]]+TablaFronteras[[#This Row],[Ancho]]/2","v":604.46170854568481},{"$f":"TablaFronteras[[#This Row],[Y]]+TablaFronteras[[#This Row],[Alto]]/2","v":114.32117748260498},{"$f":"IF(AND(TablaFronteras[[#This Row],[Fila]]<>\"\",TablaFronteras[[#This Row],[X]]<miX,miX<TablaFronteras[[#This Row],[X]]+TablaFronteras[[#This Row],[Ancho]],TablaFronteras[[#This Row],[Y]]<miY,miY<TablaFronteras[[#This Row],[Y]]+TablaFronteras[[#This Row],[Alto]]),SQRT((TablaFronteras[[#This Row],[Centro X]]-miX)^2+(TablaFronteras[[#This Row],[Centro Y]]-miY)^2),\"\")","v":""},{"$f":"IF(TablaFronteras[[#This Row],[Frontera]]=\"\",\"\",IFERROR(MATCH(RIGHT(TablaFronteras[[#This Row],[Frontera]],LEN(TablaFronteras[[#This Row],[Frontera]])-IFERROR(FIND(\" - \",TablaFronteras[[#This Row],[Frontera]])+2,0)),TablaFronteras[Frontera],0),\"\"))","v":101}]
["Irán",440.6033935546875,105.00031280517578,41.471733093261719,35.389369964599609,{"$f":"TablaFronteras[[#This Row],[X]]+TablaFronteras[[#This Row],[Ancho]]/2","v":461.33926010131836},{"$f":"TablaFronteras[[#This Row],[Y]]+TablaFronteras[[#This Row],[Alto]]/2","v":122.69499778747559},{"$f":"IF(AND(TablaFronteras[[#This Row],[Fila]]<>\"\",TablaFronteras[[#This Row],[X]]<miX,miX<TablaFronteras[[#This Row],[X]]+TablaFronteras[[#This Row],[Ancho]],TablaFronteras[[#This Row],[Y]]<miY,miY<TablaFronteras[[#This Row],[Y]]+TablaFronteras[[#This Row],[Alto]]),SQRT((TablaFronteras[[#This Row],[Centro X]]-miX)^2+(TablaFronteras[[#This Row],[Centro Y]]-miY)^2),\"\")","v":""},{"$f":"IF(TablaFronteras[[#This Row],[Frontera]]=\"\",\"\",IFERROR(MATCH(RIGHT(TablaFronteras[[#This Row],[Frontera]],LEN(TablaFronteras[[#This Row],[Frontera]])-IFERROR(FIND(\" - \",TablaFronteras[[#This Row],[Frontera]])+2,0)),TablaFronteras[Frontera],0),\"\"))","v":102}]
["Turkmenistán",455.32025146484375,97.751731872558594,29.597400665283203,18.490550994873047,{"$f":"TablaFronteras[[#This Row],[X]]+TablaFronteras[[#This Row],[Ancho]]/2","v":470.11895179748535},{"$f":"TablaFronteras[[#This Row],[Y]]+TablaFronteras[[#This Row],[Alto]]/2","v":106.99700736999512},{"$f":"IF(AND(TablaFronteras[[#This Row],[Fila]]<>\"\",TablaFronteras[[#This Row],[X]]<miX,miX<TablaFronteras[[#This Row],[X]]+TablaFronteras[[#This Row],[Ancho]],TablaFronteras[[#This Row],[Y]]<miY,miY<TablaFronteras[[#This Row],[Y]]+TablaFronteras[[#This Row],[Alto]]),SQRT((TablaFronteras[[#This Row],[Centro X]]-miX)^2+(TablaFronteras[[#This Row],[Centro Y]]-miY)^2),\"\")","v":""},{"$f":"IF(TablaFronteras[[#This Row],[Frontera]]=\"\",\"\",IFERROR(MATCH(RIGHT(TablaFronteras[[#This Row],[Frontera]],LEN(TablaFronteras[[#This Row],[Frontera]])-IFERROR(FIND(\" - \",TablaFronteras[[#This Row],[Frontera]])+2,0)),TablaFronteras[Frontera],0),\"\"))","v":103}]
["Uzbekistán",460.80331420898438,91.076774597167969,34.939212799072266,20.233150482177734,{"$f":"TablaFronteras[[#This Row],[X]]+TablaFronteras[[#This Row],[Ancho]]/2","v":478.27292060852051},{"$f":"TablaFronteras[[#This Row],[Y]]+TablaFronteras[[#This Row],[Alto]]/2","v":101.19334983825684},{"$f":"IF(AND(TablaFronteras[[#This Row],[Fila]]<>\"\",TablaFronteras[[#This Row],[X]]<miX,miX<TablaFronteras[[#This Row],[X]]+TablaFronteras[[#This Row],[Ancho]],TablaFronteras[[#This Row],[Y]]<miY,miY<TablaFronteras[[#This Row],[Y]]+TablaFronteras[[#This Row],[Alto]]),SQRT((TablaFronteras[[#This Row],[Centro X]]-miX)^2+(TablaFronteras[[#This Row],[Centro Y]]-miY)^2),\"\")","v":""},{"$f":"IF(TablaFronteras[[#This Row],[Frontera]]=\"\",\"\",IFERROR(MATCH(RIGHT(TablaFronteras[[#This Row],[Frontera]],LEN(TablaFronteras[[#This Row],[Frontera]])-IFERROR(FIND(\" - \",TablaFronteras[[#This Row],[Frontera]])+2,0)),TablaFronteras[Frontera],0),\"\"))","v":104}]
["Kirguistán",488.9296875,96.512832641601563,18.224016189575195,9.819605827331543,{"$f":"TablaFronteras[[#This Row],[X]]+TablaFronteras[[#This Row],[Ancho]]/2","v":498.0416955947876},{"$f":"TablaFronteras[[#This Row],[Y]]+TablaFronteras[[#This Row],[Alto]]/2","v":101.42263555526733},{"$f":"IF(AND(TablaFronteras[[#This Row],[Fila]]<>\"\",TablaFronteras[[#This Row],[X]]<miX,miX<TablaFronteras[[#This Row],[X]]+TablaFronteras[[#This Row],[Ancho]],TablaFronteras[[#This Row],[Y]]<miY,miY<TablaFronteras[[#This Row],[Y]]+TablaFronteras[[#This Row],[Alto]]),SQRT((TablaFronteras[[#This Row],[Centro X]]-miX)^2+(TablaFronteras[[#This Row],[Centro Y]]-miY)^2),\"\")","v":""},{"$f":"IF(TablaFronteras[[#This Row],[Frontera]]=\"\",\"\",IFERROR(MATCH(RIGHT(TablaFronteras[[#This Row],[Frontera]],LEN(TablaFronteras[[#This Row],[Frontera]])-IFERROR(FIND(\" - \",TablaFronteras[[#This Row],[Frontera]])+2,0)),TablaFronteras[Frontera],0),\"\"))","v":105}]
["Tayikistán",485.4063720703125,102.02393341064453,15.558267593383789,10.29338550567627,{"$f":"TablaFronteras[[#This Row],[X]]+TablaFronteras[[#This Row],[Ancho]]/2","v":493.18550586700439},{"$f":"TablaFronteras[[#This Row],[Y]]+TablaFronteras[[#This Row],[Alto]]/2","v":107.17062616348267},{"$f":"IF(AND(TablaFronteras[[#This Row],[Fila]]<>\"\",TablaFronteras[[#This Row],[X]]<miX,miX<TablaFronteras[[#This Row],[X]]+TablaFronteras[[#This Row],[Ancho]],TablaFronteras[[#This Row],[Y]]<miY,miY<TablaFronteras[[#This Row],[Y]]+TablaFronteras[[#This Row],[Alto]]),SQRT((TablaFronteras[[#This Row],[Centro X]]-miX)^2+(TablaFronteras[[#This Row],[Centro Y]]-miY)^2),\"\")","v":""},{"$f":"IF(TablaFronteras[[#This Row],[Frontera]]=\"\",\"\",IFERROR(MATCH(RIGHT(TablaFronteras[[#This Row],[Frontera]],LEN(TablaFronteras[[#This Row],[Frontera]])-IFERROR(FIND(\" - \",TablaFronteras[[#This Row],[Frontera]])+2,0)),TablaFronteras[Frontera],0),\"\"))","v":106}]
["Afganistán",474.24740600585938,108.12519836425781,26.44212532043457,21.786220550537109,{"$f":"TablaFronteras[[#This Row],[X]]+TablaFronteras[[#This Row],[Ancho]]/2","v":487.46846866607666},{"$f":"TablaFronteras[[#This Row],[Y]]+TablaFronteras[[#This Row],[Alto]]/2","v":119.01830863952637},{"$f":"IF(AND(TablaFronteras[[#This Row],[Fila]]<>\"\",TablaFronteras[[#This Row],[X]]<miX,miX<TablaFronteras[[#This Row],[X]]+TablaFronteras[[#This Row],[Ancho]],TablaFronteras[[#This Row],[Y]]<miY,miY<TablaFronteras[[#This Row],[Y]]+TablaFronteras[[#This Row],[Alto]]),SQRT((TablaFronteras[[#This Row],[Centro X]]-miX)^2+(TablaFronteras[[#This Row],[Centro Y]]-miY)^2),\"\")","v":""},{"$f":"IF(TablaFronteras[[#This Row],[Frontera]]=\"\",\"\",IFERROR(MATCH(RIGHT(TablaFronteras[[#This Row],[Frontera]],LEN(TablaFronteras[[#This Row],[Frontera]])-IFERROR(FIND(\" - \",TablaFronteras[[#This Row],[Frontera]])+2,0)),TablaFronteras[Frontera],0),\"\"))","v":107}]
["Georgia",431.1585693359375,90.259056091308594,14.002991676330566,5.914881706237793,{"$f":"TablaFronteras[[#This Row],[X]]+TablaFronteras[[#This Row],[Ancho]]/2","v":438.16006517410278},{"$f":"TablaFronteras[[#This Row],[Y]]+TablaFronteras[[#This Row],[Alto]]/2","v":93.21649694442749},{"$f":"IF(AND(TablaFronteras[[#This Row],[Fila]]<>\"\",TablaFronteras[[#This Row],[X]]<miX,miX<TablaFronteras[[#This Row],[X]]+TablaFronteras[[#This Row],[Ancho]],TablaFronteras[[#This Row],[Y]]<miY,miY<TablaFronteras[[#This Row],[Y]]+TablaFronteras[[#This Row],[Alto]]),SQRT((TablaFronteras[[#This Row],[Centro X]]-miX)^2+(TablaFronteras[[#This Row],[Centro Y]]-miY)^2),\"\")","v":""},{"$f":"IF(TablaFronteras[[#This Row],[Frontera]]=\"\",\"\",IFERROR(MATCH(RIGHT(TablaFronteras[[#This Row],[Frontera]],LEN(TablaFronteras[[#This Row],[Frontera]])-IFERROR(FIND(\" - \",TablaFronteras[[#This Row],[Frontera]])+2,0)),TablaFronteras[Frontera],0),\"\"))","v":108}]
["Azerbaiyán",441.86376953125,99.659294128417969,10.105433464050293,8.5365352630615234,{"$f":"TablaFronteras[[#This Row],[X]]+TablaFronteras[[#This Row],[Ancho]]/2","v":446.91648626327515},{"$f":"TablaFronteras[[#This Row],[Y]]+TablaFronteras[[#This Row],[Alto]]/2","v":103.92756175994873},{"$f":"IF(AND(TablaFronteras[[#This Row],[Fila]]<>\"\",TablaFronteras[[#This Row],[X]]<miX,miX<TablaFronteras[[#This Row],[X]]+TablaFronteras[[#This Row],[Ancho]],TablaFronteras[[#This Row],[Y]]<miY,miY<TablaFronteras[[#This Row],[Y]]+TablaFronteras[[#This Row],[Alto]]),SQRT((TablaFronteras[[#This Row],[Centro X]]-miX)^2+(TablaFronteras[[#This Row],[Centro Y]]-miY)^2),\"\")","v":""},{"$f":"IF(TablaFronteras[[#This Row],[Frontera]]=\"\",\"\",IFERROR(MATCH(RIGHT(TablaFronteras[[#This Row],[Frontera]],LEN(TablaFronteras[[#This Row],[Frontera]])-IFERROR(FIND(\" - \",TablaFronteras[[#This Row],[Frontera]])+2,0)),TablaFronteras[Frontera],0),\"\"))","v":109}]
["Armenia",438.78488159179688,101.18472290039063,6.9351181983947754,5.9467716217041016,{"$f":"TablaFronteras[[#This Row],[X]]+TablaFronteras[[#This Row],[Ancho]]/2","v":442.25244069099426},{"$f":"TablaFronteras[[#This Row],[Y]]+TablaFronteras[[#This Row],[Alto]]/2","v":104.15810871124268},{"$f":"IF(AND(TablaFronteras[[#This Row],[Fila]]<>\"\",TablaFronteras[[#This Row],[X]]<miX,miX<TablaFronteras[[#This Row],[X]]+TablaFronteras[[#This Row],[Ancho]],TablaFronteras[[#This Row],[Y]]<miY,miY<TablaFronteras[[#This Row],[Y]]+TablaFronteras[[#This Row],[Alto]]),SQRT((TablaFronteras[[#This Row],[Centro X]]-miX)^2+(TablaFronteras[[#This Row],[Centro Y]]-miY)^2),\"\")","v":""},{"$f":"IF(TablaFronteras[[#This Row],[Frontera]]=\"\",\"\",IFERROR(MATCH(RIGHT(TablaFronteras[[#This Row],[Frontera]],LEN(TablaFronteras[[#This Row],[Frontera]])-IFERROR(FIND(\" - \",TablaFronteras[[#This Row],[Frontera]])+2,0)),TablaFronteras[Frontera],0),\"\"))","v":110}]
["Pakistán",476.21701049804688,111.49070739746094,32.707874298095703,32.134330749511719,{"$f":"TablaFronteras[[#This Row],[X]]+TablaFronteras[[#This Row],[Ancho]]/2","v":492.57094764709473},{"$f":"TablaFronteras[[#This Row],[Y]]+TablaFronteras[[#This Row],[Alto]]/2","v":127.5578727722168},{"$f":"IF(AND(TablaFronteras[[#This Row],[Fila]]<>\"\",TablaFronteras[[#This Row],[X]]<miX,miX<TablaFronteras[[#This Row],[X]]+TablaFronteras[[#This Row],[Ancho]],TablaFronteras[[#This Row],[Y]]<miY,miY<TablaFronteras[[#This Row],[Y]]+TablaFronteras[[#This Row],[Alto]]),SQRT((TablaFronteras[[#This Row],[Centro X]]-miX)^2+(TablaFronteras[[#This Row],[Centro Y]]-miY)^2),\"\")","v":""},{"$f":"IF(TablaFronteras[[#This Row],[Frontera]]=\"\",\"\",IFERROR(MATCH(RIGHT(TablaFronteras[[#This Row],[Frontera]],LEN(TablaFronteras[[#This Row],[Frontera]])-IFERROR(FIND(\" - \",TablaFronteras[[#This Row],[Frontera]])+2,0)),TablaFronteras[Frontera],0),\"\"))","v":111}]
["Nepal",515.55792236328125,127.47512054443359,16.724330902099609,9.8367719650268555,{"$f":"TablaFronteras[[#This Row],[X]]+TablaFronteras[[#This Row],[Ancho]]/2","v":523.92008781433105},{"$f":"TablaFronteras[[#This Row],[Y]]+TablaFronteras[[#This Row],[Alto]]/2","v":132.39350652694702},{"$f":"IF(AND(TablaFronteras[[#This Row],[Fila]]<>\"\",TablaFronteras[[#This Row],[X]]<miX,miX<TablaFronteras[[#This Row],[X]]+TablaFronteras[[#This Row],[Ancho]],TablaFronteras[[#This Row],[Y]]<miY,miY<TablaFronteras[[#This Row],[Y]]+TablaFronteras[[#This Row],[Alto]]),SQRT((TablaFronteras[[#This Row],[Centro X]]-miX)^2+(TablaFronteras[[#This Row],[Centro Y]]-miY)^2),\"\")","v":""},{"$f":"IF(TablaFronteras[[#This Row],[Frontera]]=\"\",\"\",IFERROR(MATCH(RIGHT(TablaFronteras[[#This Row],[Frontera]],LEN(TablaFronteras[[#This Row],[Frontera]])-IFERROR(FIND(\" - \",TablaFronteras[[#This Row],[Frontera]])+2,0)),TablaFronteras[Frontera],0),\"\"))","v":112}]
["Bután",533.8751220703125,132.7244873046875,6.6633858680725098,3.8872439861297607,{"$f":"TablaFronteras[[#This Row],[X]]+TablaFronteras[[#This Row],[Ancho]]/2","v":537.20681500434875},{"$f":"TablaFronteras[[#This Row],[Y]]+TablaFronteras[[#This Row],[Alto]]/2","v":134.66810929775238},{"$f":"IF(AND(TablaFronteras[[#This Row],[Fila]]<>\"\",TablaFronteras[[#This Row],[X]]<miX,miX<TablaFronteras[[#This Row],[X]]+TablaFronteras[[#This Row],[Ancho]],TablaFronteras[[#This Row],[Y]]<miY,miY<TablaFronteras[[#This Row],[Y]]+TablaFronteras[[#This Row],[Alto]]),SQRT((TablaFronteras[[#This Row],[Centro X]]-miX)^2+(TablaFronteras[[#This Row],[Centro Y]]-miY)^2),\"\")","v":""},{"$f":"IF(TablaFronteras[[#This Row],[Frontera]]=\"\",\"\",IFERROR(MATCH(RIGHT(TablaFronteras[[#This Row],[Frontera]],LEN(TablaFronteras[[#This Row],[Frontera]])-IFERROR(FIND(\" - \",TablaFronteras[[#This Row],[Frontera]])+2,0)),TablaFronteras[Frontera],0),\"\"))","v":113}]
["Bangladés",532.95733642578125,136.80661010742188,9.8110237121582031,14.077243804931641,{"$f":"TablaFronteras[[#This Row],[X]]+TablaFronteras[[#This Row],[Ancho]]/2","v":537.86284828186035},{"$f":"TablaFronteras[[#This Row],[Y]]+TablaFronteras[[#This Row],[Alto]]/2","v":143.8452320098877},{"$f":"IF(AND(TablaFronteras[[#This Row],[Fila]]<>\"\",TablaFronteras[[#This Row],[X]]<miX,miX<TablaFronteras[[#This Row],[X]]+TablaFronteras[[#This Row],[Ancho]],TablaFronteras[[#This Row],[Y]]<miY,miY<TablaFronteras[[#This Row],[Y]]+TablaFronteras[[#This Row],[Alto]]),SQRT((TablaFronteras[[#This Row],[Centro X]]-miX)^2+(TablaFronteras[[#This Row],[Centro Y]]-miY)^2),\"\")","v":""},{"$f":"IF(TablaFronteras[[#This Row],[Frontera]]=\"\",\"\",IFERROR(MATCH(RIGHT(TablaFronteras[[#This Row],[Frontera]],LEN(TablaFronteras[[#This Row],[Frontera]])-IFERROR(FIND(\" - \",TablaFronteras[[#This Row],[Frontera]])+2,0)),TablaFronteras[Frontera],0),\"\"))","v":114}]
["Birmania",542.407958984375,132.21937561035156,17.99110221862793,45.039447784423828,{"$f":"TablaFronteras[[#This Row],[X]]+TablaFronteras[[#This Row],[Ancho]]/2","v":551.40351009368896},{"$f":"TablaFronteras[[#This Row],[Y]]+TablaFronteras[[#This Row],[Alto]]/2","v":154.73909950256348},{"$f":"IF(AND(TablaFronteras[[#This Row],[Fila]]<>\"\",TablaFronteras[[#This Row],[X]]<miX,miX<TablaFronteras[[#This Row],[X]]+TablaFronteras[[#This Row],[Ancho]],TablaFronteras[[#This Row],[Y]]<miY,miY<TablaFronteras[[#This Row],[Y]]+TablaFronteras[[#This Row],[Alto]]),SQRT((TablaFronteras[[#This Row],[Centro X]]-miX)^2+(TablaFronteras[[#This Row],[Centro Y]]-miY)^2),\"\")","v":""},{"$f":"IF(TablaFronteras[[#This Row],[Frontera]]=\"\",\"\",IFERROR(MATCH(RIGHT(TablaFronteras[[#This Row],[Frontera]],LEN(TablaFronteras[[#This Row],[Frontera]])-IFERROR(FIND(\" - \",TablaFronteras[[#This Row],[Frontera]])+2,0)),TablaFronteras[Frontera],0),\"\"))","v":115}]
["Vietnam",562.555419921875,144.54158020019531,17.509763717651367,35.966457366943359,{"$f":"TablaFronteras[[#This Row],[X]]+TablaFronteras[[#This Row],[Ancho]]/2","v":571.31030178070068},{"$f":"TablaFronteras[[#This Row],[Y]]+TablaFronteras[[#This Row],[Alto]]/2","v":162.52480888366699},{"$f":"IF(AND(TablaFronteras[[#This Row],[Fila]]<>\"\",TablaFronteras[[#This Row],[X]]<miX,miX<TablaFronteras[[#This Row],[X]]+TablaFronteras[[#This Row],[Ancho]],TablaFronteras[[#This Row],[Y]]<miY,miY<TablaFronteras[[#This Row],[Y]]+TablaFronteras[[#This Row],[Alto]]),SQRT((TablaFronteras[[#This Row],[Centro X]]-miX)^2+(TablaFronteras[[#This Row],[Centro Y]]-miY)^2),\"\")","v":""},{"$f":"IF(TablaFronteras[[#This Row],[Frontera]]=\"\",\"\",IFERROR(MATCH(RIGHT(TablaFronteras[[#This Row],[Frontera]],LEN(TablaFronteras[[#This Row],[Frontera]])-IFERROR(FIND(\" - \",TablaFronteras[[#This Row],[Frontera]])+2,0)),TablaFronteras[Frontera],0),\"\"))","v":116}]
["Tailandia",553.6048583984375,151.77377319335938,19.561182022094727,35.692756652832031,{"$f":"TablaFronteras[[#This Row],[X]]+TablaFronteras[[#This Row],[Ancho]]/2","v":563.38544940948486},{"$f":"TablaFronteras[[#This Row],[Y]]+TablaFronteras[[#This Row],[Alto]]/2","v":169.62015151977539},{"$f":"IF(AND(TablaFronteras[[#This Row],[Fila]]<>\"\",TablaFronteras[[#This Row],[X]]<miX,miX<TablaFronteras[[#This Row],[X]]+TablaFronteras[[#This Row],[Ancho]],TablaFronteras[[#This Row],[Y]]<miY,miY<TablaFronteras[[#This Row],[Y]]+TablaFronteras[[#This Row],[Alto]]),SQRT((TablaFronteras[[#This Row],[Centro X]]-miX)^2+(TablaFronteras[[#This Row],[Centro Y]]-miY)^2),\"\")","v":""},{"$f":"IF(TablaFronteras[[#This Row],[Frontera]]=\"\",\"\",IFERROR(MATCH(RIGHT(TablaFronteras[[#This Row],[Frontera]],LEN(TablaFronteras[[#This Row],[Frontera]])-IFERROR(FIND(\" - \",TablaFronteras[[#This Row],[Frontera]])+2,0)),TablaFronteras[Frontera],0),\"\"))","v":117}]
["Laos",558.99072265625,146.87188720703125,16.732599258422852,20.624725341796875,{"$f":"TablaFronteras[[#This Row],[X]]+TablaFronteras[[#This Row],[Ancho]]/2","v":567.35702228546143},{"$f":"TablaFronteras[[#This Row],[Y]]+TablaFronteras[[#This Row],[Alto]]/2","v":157.18424987792969},{"$f":"IF(AND(TablaFronteras[[#This Row],[Fila]]<>\"\",TablaFronteras[[#This Row],[X]]<miX,miX<TablaFronteras[[#This Row],[X]]+TablaFronteras[[#This Row],[Ancho]],TablaFronteras[[#This Row],[Y]]<miY,miY<TablaFronteras[[#This Row],[Y]]+TablaFronteras[[#This Row],[Alto]]),SQRT((TablaFronteras[[#This Row],[Centro X]]-miX)^2+(TablaFronteras[[#This Row],[Centro Y]]-miY)^2),\"\")","v":""},{"$f":"IF(TablaFronteras[[#This Row],[Frontera]]=\"\",\"\",IFERROR(MATCH(RIGHT(TablaFronteras[[#This Row],[Frontera]],LEN(TablaFronteras[[#This Row],[Frontera]])-IFERROR(FIND(\" - \",TablaFronteras[[#This Row],[Frontera]])+2,0)),TablaFronteras[Frontera],0),\"\"))","v":118}]
["Filipinas",598.14190673828125,151.64425659179688,18.934410095214844,37.522441864013672,{"$f":"TablaFronteras[[#This Row],[X]]+TablaFronteras[[#This Row],[Ancho]]/2","v":607.60911178588867},{"$f":"TablaFronteras[[#This Row],[Y]]+TablaFronteras[[#This Row],[Alto]]/2","v":170.40547752380371},{"$f":"IF(AND(TablaFronteras[[#This Row],[Fila]]<>\"\",TablaFronteras[[#This Row],[X]]<miX,miX<TablaFronteras[[#This Row],[X]]+TablaFronteras[[#This Row],[Ancho]],TablaFronteras[[#This Row],[Y]]<miY,miY<TablaFronteras[[#This Row],[Y]]+TablaFronteras[[#This Row],[Alto]]),SQRT((TablaFronteras[[#This Row],[Centro X]]-miX)^2+(TablaFronteras[[#This Row],[Centro Y]]-miY)^2),\"\")","v":""},{"$f":"IF(TablaFronteras[[#This Row],[Frontera]]=\"\",\"\",IFERROR(MATCH(RIGHT(TablaFronteras[[#This Row],[Frontera]],LEN(TablaFronteras[[#This Row],[Frontera]])-IFERROR(FIND(\" - \",TablaFronteras[[#This Row],[Frontera]])+2,0)),TablaFronteras[Frontera],0),\"\"))","v":119}]
["Brunéi",590.942626953125,188.91700744628906,3.331496000289917,3.2422046661376953,{"$f":"TablaFronteras[[#This Row],[X]]+TablaFronteras[[#This Row],[Ancho]]/2","v":592.60837495326996},{"$f":"TablaFronteras[[#This Row],[Y]]+TablaFronteras[[#This Row],[Alto]]/2","v":190.53810977935791},{"$f":"IF(AND(TablaFronteras[[#This Row],[Fila]]<>\"\",TablaFronteras[[#This Row],[X]]<miX,miX<TablaFronteras[[#This Row],[X]]+TablaFronteras[[#This Row],[Ancho]],TablaFronteras[[#This Row],[Y]]<miY,miY<TablaFronteras[[#This Row],[Y]]+TablaFronteras[[#This Row],[Alto]]),SQRT((TablaFronteras[[#This Row],[Centro X]]-miX)^2+(TablaFronteras[[#This Row],[Centro Y]]-miY)^2),\"\")","v":""},{"$f":"IF(TablaFronteras[[#This Row],[Frontera]]=\"\",\"\",IFERROR(MATCH(RIGHT(TablaFronteras[[#This Row],[Frontera]],LEN(TablaFronteras[[#This Row],[Frontera]])-IFERROR(FIND(\" - \",TablaFronteras[[#This Row],[Frontera]])+2,0)),TablaFronteras[Frontera],0),\"\"))","v":120}]
["Singapur",569.0574951171875,196.35417175292969,4.3488974571228027,3.331496000289917,{"$f":"TablaFronteras[[#This Row],[X]]+TablaFronteras[[#This Row],[Ancho]]/2","v":571.2319438457489},{"$f":"TablaFronteras[[#This Row],[Y]]+TablaFronteras[[#This Row],[Alto]]/2","v":198.01991975307465},{"$f":"IF(AND(TablaFronteras[[#This Row],[Fila]]<>\"\",TablaFronteras[[#This Row],[X]]<miX,miX<TablaFronteras[[#This Row],[X]]+TablaFronteras[[#This Row],[Ancho]],TablaFronteras[[#This Row],[Y]]<miY,miY<TablaFronteras[[#This Row],[Y]]+TablaFronteras[[#This Row],[Alto]]),SQRT((TablaFronteras[[#This Row],[Centro X]]-miX)^2+(TablaFronteras[[#This Row],[Centro Y]]-miY)^2),\"\")","v":""},{"$f":"IF(TablaFronteras[[#This Row],[Frontera]]=\"\",\"\",IFERROR(MATCH(RIGHT(TablaFronteras[[#This Row],[Frontera]],LEN(TablaFronteras[[#This Row],[Frontera]])-IFERROR(FIND(\" - \",TablaFronteras[[#This Row],[Frontera]])+2,0)),TablaFronteras[Frontera],0),\"\"))","v":121}]
["Papúa Nueva Guinea",646.7479248046875,204.72984313964844,31.080629348754883,24.698188781738281,{"$f":"TablaFronteras[[#This Row],[X]]+TablaFronteras[[#This Row],[Ancho]]/2","v":662.28823947906494},{"$f":"TablaFronteras[[#This Row],[Y]]+TablaFronteras[[#This Row],[Alto]]/2","v":217.07893753051758},{"$f":"IF(AND(TablaFronteras[[#This Row],[Fila]]<>\"\",TablaFronteras[[#This Row],[X]]<miX,miX<TablaFronteras[[#This Row],[X]]+TablaFronteras[[#This Row],[Ancho]],TablaFronteras[[#This Row],[Y]]<miY,miY<TablaFronteras[[#This Row],[Y]]+TablaFronteras[[#This Row],[Alto]]),SQRT((TablaFronteras[[#This Row],[Centro X]]-miX)^2+(TablaFronteras[[#This Row],[Centro Y]]-miY)^2),\"\")","v":""},{"$f":"IF(TablaFronteras[[#This Row],[Frontera]]=\"\",\"\",IFERROR(MATCH(RIGHT(TablaFronteras[[#This Row],[Frontera]],LEN(TablaFronteras[[#This Row],[Frontera]])-IFERROR(FIND(\" - \",TablaFronteras[[#This Row],[Frontera]])+2,0)),TablaFronteras[Frontera],0),\"\"))","v":122}]
["Islas Salomón",678.5521240234375,217.20960998535156,20.727638244628906,12.676456451416016,{"$f":"TablaFronteras[[#This Row],[X]]+TablaFronteras[[#This Row],[Ancho]]/2","v":688.91594314575195},{"$f":"TablaFronteras[[#This Row],[Y]]+TablaFronteras[[#This Row],[Alto]]/2","v":223.54783821105957},{"$f":"IF(AND(TablaFronteras[[#This Row],[Fila]]<>\"\",TablaFronteras[[#This Row],[X]]<miX,miX<TablaFronteras[[#This Row],[X]]+TablaFronteras[[#This Row],[Ancho]],TablaFronteras[[#This Row],[Y]]<miY,miY<TablaFronteras[[#This Row],[Y]]+TablaFronteras[[#This Row],[Alto]]),SQRT((TablaFronteras[[#This Row],[Centro X]]-miX)^2+(TablaFronteras[[#This Row],[Centro Y]]-miY)^2),\"\")","v":""},{"$f":"IF(TablaFronteras[[#This Row],[Frontera]]=\"\",\"\",IFERROR(MATCH(RIGHT(TablaFronteras[[#This Row],[Frontera]],LEN(TablaFronteras[[#This Row],[Frontera]])-IFERROR(FIND(\" - \",TablaFronteras[[#This Row],[Frontera]])+2,0)),TablaFronteras[Frontera],0),\"\"))","v":123}]
["Nueva Zelanda",654.6282958984375,284.43612670898438,46.600551605224609,39.191574096679688,{"$f":"TablaFronteras[[#This Row],[X]]+TablaFronteras[[#This Row],[Ancho]]/2","v":677.9285717010498},{"$f":"TablaFronteras[[#This Row],[Y]]+TablaFronteras[[#This Row],[Alto]]/2","v":304.03191375732422},{"$f":"IF(AND(TablaFronteras[[#This Row],[Fila]]<>\"\",TablaFronteras[[#This Row],[X]]<miX,miX<TablaFronteras[[#This Row],[X]]+TablaFronteras[[#This Row],[Ancho]],TablaFronteras[[#This Row],[Y]]<miY,miY<TablaFronteras[[#This Row],[Y]]+TablaFronteras[[#This Row],[Alto]]),SQRT((TablaFronteras[[#This Row],[Centro X]]-miX)^2+(TablaFronteras[[#This Row],[Centro Y]]-miY)^2),\"\")","v":""},{"$f":"IF(TablaFronteras[[#This Row],[Frontera]]=\"\",\"\",IFERROR(MATCH(RIGHT(TablaFronteras[[#This Row],[Frontera]],LEN(TablaFronteras[[#This Row],[Frontera]])-IFERROR(FIND(\" - \",TablaFronteras[[#This Row],[Frontera]])+2,0)),TablaFronteras[Frontera],0),\"\"))","v":124}]
["Sri Lanka",519.718017578125,177.50173950195313,4.3437008857727051,9.3694486618041992,{"$f":"TablaFronteras[[#This Row],[X]]+TablaFronteras[[#This Row],[Ancho]]/2","v":521.88986802101135},{"$f":"TablaFronteras[[#This Row],[Y]]+TablaFronteras[[#This Row],[Alto]]/2","v":182.18646383285522},{"$f":"IF(AND(TablaFronteras[[#This Row],[Fila]]<>\"\",TablaFronteras[[#This Row],[X]]<miX,miX<TablaFronteras[[#This Row],[X]]+TablaFronteras[[#This Row],[Ancho]],TablaFronteras[[#This Row],[Y]]<miY,miY<TablaFronteras[[#This Row],[Y]]+TablaFronteras[[#This Row],[Alto]]),SQRT((TablaFronteras[[#This Row],[Centro X]]-miX)^2+(TablaFronteras[[#This Row],[Centro Y]]-miY)^2),\"\")","v":""},{"$f":"IF(TablaFronteras[[#This Row],[Frontera]]=\"\",\"\",IFERROR(MATCH(RIGHT(TablaFronteras[[#This Row],[Frontera]],LEN(TablaFronteras[[#This Row],[Frontera]])-IFERROR(FIND(\" - \",TablaFronteras[[#This Row],[Frontera]])+2,0)),TablaFronteras[Frontera],0),\"\"))","v":125}]
["Yemen",442.31991577148438,154.99771118164063,24.752126693725586,16.786693572998047,{"$f":"TablaFronteras[[#This Row],[X]]+TablaFronteras[[#This Row],[Ancho]]/2","v":454.69597911834717},{"$f":"TablaFronteras[[#This Row],[Y]]+TablaFronteras[[#This Row],[Alto]]/2","v":163.39105796813965},{"$f":"IF(AND(TablaFronteras[[#This Row],[Fila]]<>\"\",TablaFronteras[[#This Row],[X]]<miX,miX<TablaFronteras[[#This Row],[X]]+TablaFronteras[[#This Row],[Ancho]],TablaFronteras[[#This Row],[Y]]<miY,miY<TablaFronteras[[#This Row],[Y]]+TablaFronteras[[#This Row],[Alto]]),SQRT((TablaFronteras[[#This Row],[Centro X]]-miX)^2+(TablaFronteras[[#This Row],[Centro Y]]-miY)^2),\"\")","v":""},{"$f":"IF(TablaFronteras[[#This Row],[Frontera]]=\"\",\"\",IFERROR(MATCH(RIGHT(TablaFronteras[[#This Row],[Frontera]],LEN(TablaFronteras[[#This Row],[Frontera]])-IFERROR(FIND(\" - \",TablaFronteras[[#This Row],[Frontera]])+2,0)),TablaFronteras[Frontera],0),\"\"))","v":126}]
["Omán",461.03927612304688,137.36575317382813,14.976377487182617,23.594015121459961,{"$f":"TablaFronteras[[#This Row],[X]]+TablaFronteras[[#This Row],[Ancho]]/2","v":468.52746486663818},{"$f":"TablaFronteras[[#This Row],[Y]]+TablaFronteras[[#This Row],[Alto]]/2","v":149.16276073455811},{"$f":"IF(AND(TablaFronteras[[#This Row],[Fila]]<>\"\",TablaFronteras[[#This Row],[X]]<miX,miX<TablaFronteras[[#This Row],[X]]+TablaFronteras[[#This Row],[Ancho]],TablaFronteras[[#This Row],[Y]]<miY,miY<TablaFronteras[[#This Row],[Y]]+TablaFronteras[[#This Row],[Alto]]),SQRT((TablaFronteras[[#This Row],[Centro X]]-miX)^2+(TablaFronteras[[#This Row],[Centro Y]]-miY)^2),\"\")","v":""},{"$f":"IF(TablaFronteras[[#This Row],[Frontera]]=\"\",\"\",IFERROR(MATCH(RIGHT(TablaFronteras[[#This Row],[Frontera]],LEN(TablaFronteras[[#This Row],[Frontera]])-IFERROR(FIND(\" - \",TablaFronteras[[#This Row],[Frontera]])+2,0)),TablaFronteras[Frontera],0),\"\"))","v":127}]
["Emiratos Árabes Unidos",459.28463745117188,138.09346008300781,9.8600788116455078,8.4467716217041016,{"$f":"TablaFronteras[[#This Row],[X]]+TablaFronteras[[#This Row],[Ancho]]/2","v":464.21467685699463},{"$f":"TablaFronteras[[#This Row],[Y]]+TablaFronteras[[#This Row],[Alto]]/2","v":142.31684589385986},{"$f":"IF(AND(TablaFronteras[[#This Row],[Fila]]<>\"\",TablaFronteras[[#This Row],[X]]<miX,miX<TablaFronteras[[#This Row],[X]]+TablaFronteras[[#This Row],[Ancho]],TablaFronteras[[#This Row],[Y]]<miY,miY<TablaFronteras[[#This Row],[Y]]+TablaFronteras[[#This Row],[Alto]]),SQRT((TablaFronteras[[#This Row],[Centro X]]-miX)^2+(TablaFronteras[[#This Row],[Centro Y]]-miY)^2),\"\")","v":""},{"$f":"IF(TablaFronteras[[#This Row],[Frontera]]=\"\",\"\",IFERROR(MATCH(RIGHT(TablaFronteras[[#This Row],[Frontera]],LEN(TablaFronteras[[#This Row],[Frontera]])-IFERROR(FIND(\" - \",TablaFronteras[[#This Row],[Frontera]])+2,0)),TablaFronteras[Frontera],0),\"\"))","v":128}]
["Arabia Saudita",424.30630493164063,123.39054870605469,43.920314788818359,38.343780517578125,{"$f":"TablaFronteras[[#This Row],[X]]+TablaFronteras[[#This Row],[Ancho]]/2","v":446.2664623260498},{"$f":"TablaFronteras[[#This Row],[Y]]+TablaFronteras[[#This Row],[Alto]]/2","v":142.56243896484375},{"$f":"IF(AND(TablaFronteras[[#This Row],[Fila]]<>\"\",TablaFronteras[[#This Row],[X]]<miX,miX<TablaFronteras[[#This Row],[X]]+TablaFronteras[[#This Row],[Ancho]],TablaFronteras[[#This Row],[Y]]<miY,miY<TablaFronteras[[#This Row],[Y]]+TablaFronteras[[#This Row],[Alto]]),SQRT((TablaFronteras[[#This Row],[Centro X]]-miX)^2+(TablaFronteras[[#This Row],[Centro Y]]-miY)^2),\"\")","v":""},{"$f":"IF(TablaFronteras[[#This Row],[Frontera]]=\"\",\"\",IFERROR(MATCH(RIGHT(TablaFronteras[[#This Row],[Frontera]],LEN(TablaFronteras[[#This Row],[Frontera]])-IFERROR(FIND(\" - \",TablaFronteras[[#This Row],[Frontera]])+2,0)),TablaFronteras[Frontera],0),\"\"))","v":129}]
["Baréin",454.32638549804688,135.70724487304688,4.6266927719116211,3.331496000289917,{"$f":"TablaFronteras[[#This Row],[X]]+TablaFronteras[[#This Row],[Ancho]]/2","v":456.63973188400269},{"$f":"TablaFronteras[[#This Row],[Y]]+TablaFronteras[[#This Row],[Alto]]/2","v":137.37299287319183},{"$f":"IF(AND(TablaFronteras[[#This Row],[Fila]]<>\"\",TablaFronteras[[#This Row],[X]]<miX,miX<TablaFronteras[[#This Row],[X]]+TablaFronteras[[#This Row],[Ancho]],TablaFronteras[[#This Row],[Y]]<miY,miY<TablaFronteras[[#This Row],[Y]]+TablaFronteras[[#This Row],[Alto]]),SQRT((TablaFronteras[[#This Row],[Centro X]]-miX)^2+(TablaFronteras[[#This Row],[Centro Y]]-miY)^2),\"\")","v":""},{"$f":"IF(TablaFronteras[[#This Row],[Frontera]]=\"\",\"\",IFERROR(MATCH(RIGHT(TablaFronteras[[#This Row],[Frontera]],LEN(TablaFronteras[[#This Row],[Frontera]])-IFERROR(FIND(\" - \",TablaFronteras[[#This Row],[Frontera]])+2,0)),TablaFronteras[Frontera],0),\"\"))","v":130}]
["Catar",456.24197387695313,137.98826599121094,3.6062204837799072,3.9755117893218994,{"$f":"TablaFronteras[[#This Row],[X]]+TablaFronteras[[#This Row],[Ancho]]/2","v":458.04508411884308},{"$f":"TablaFronteras[[#This Row],[Y]]+TablaFronteras[[#This Row],[Alto]]/2","v":139.97602188587189},{"$f":"IF(AND(TablaFronteras[[#This Row],[Fila]]<>\"\",TablaFronteras[[#This Row],[X]]<miX,miX<TablaFronteras[[#This Row],[X]]+TablaFronteras[[#This Row],[Ancho]],TablaFronteras[[#This Row],[Y]]<miY,miY<TablaFronteras[[#This Row],[Y]]+TablaFronteras[[#This Row],[Alto]]),SQRT((TablaFronteras[[#This Row],[Centro X]]-miX)^2+(TablaFronteras[[#This Row],[Centro Y]]-miY)^2),\"\")","v":""},{"$f":"IF(TablaFronteras[[#This Row],[Frontera]]=\"\",\"\",IFERROR(MATCH(RIGHT(TablaFronteras[[#This Row],[Frontera]],LEN(TablaFronteras[[#This Row],[Frontera]])-IFERROR(FIND(\" - \",TablaFronteras[[#This Row],[Frontera]])+2,0)),TablaFronteras[Frontera],0),\"\"))","v":131}]
["Irak",431.55282592773438,110.69882202148438,20.063779830932617,20.285432815551758,{"$f":"TablaFronteras[[#This Row],[X]]+TablaFronteras[[#This Row],[Ancho]]/2","v":441.58471584320068},{"$f":"TablaFronteras[[#This Row],[Y]]+TablaFronteras[[#This Row],[Alto]]/2","v":120.84153842926025},{"$f":"IF(AND(TablaFronteras[[#This Row],[Fila]]<>\"\",TablaFronteras[[#This Row],[X]]<miX,miX<TablaFronteras[[#This Row],[X]]+TablaFronteras[[#This Row],[Ancho]],TablaFronteras[[#This Row],[Y]]<miY,miY<TablaFronteras[[#This Row],[Y]]+TablaFronteras[[#This Row],[Alto]]),SQRT((TablaFronteras[[#This Row],[Centro X]]-miX)^2+(TablaFronteras[[#This Row],[Centro Y]]-miY)^2),\"\")","v":""},{"$f":"IF(TablaFronteras[[#This Row],[Frontera]]=\"\",\"\",IFERROR(MATCH(RIGHT(TablaFronteras[[#This Row],[Frontera]],LEN(TablaFronteras[[#This Row],[Frontera]])-IFERROR(FIND(\" - \",TablaFronteras[[#This Row],[Frontera]])+2,0)),TablaFronteras[Frontera],0),\"\"))","v":132}]
["Jordania",424.78591918945313,120.41046905517578,9.2484254837036133,10.262205123901367,{"$f":"TablaFronteras[[#This Row],[X]]+TablaFronteras[[#This Row],[Ancho]]/2","v":429.41013193130493},{"$f":"TablaFronteras[[#This Row],[Y]]+TablaFronteras[[#This Row],[Alto]]/2","v":125.54157161712646},{"$f":"IF(AND(TablaFronteras[[#This Row],[Fila]]<>\"\",TablaFronteras[[#This Row],[X]]<miX,miX<TablaFronteras[[#This Row],[X]]+TablaFronteras[[#This Row],[Ancho]],TablaFronteras[[#This Row],[Y]]<miY,miY<TablaFronteras[[#This Row],[Y]]+TablaFronteras[[#This Row],[Alto]]),SQRT((TablaFronteras[[#This Row],[Centro X]]-miX)^2+(TablaFronteras[[#This Row],[Centro Y]]-miY)^2),\"\")","v":""},{"$f":"IF(TablaFronteras[[#This Row],[Frontera]]=\"\",\"\",IFERROR(MATCH(RIGHT(TablaFronteras[[#This Row],[Frontera]],LEN(TablaFronteras[[#This Row],[Frontera]])-IFERROR(FIND(\" - \",TablaFronteras[[#This Row],[Frontera]])+2,0)),TablaFronteras[Frontera],0),\"\"))","v":133}]
["Siria",425.12557983398438,110.87330627441406,12.890235900878906,12.045196533203125,{"$f":"TablaFronteras[[#This Row],[X]]+TablaFronteras[[#This Row],[Ancho]]/2","v":431.57069778442383},{"$f":"TablaFronteras[[#This Row],[Y]]+TablaFronteras[[#This Row],[Alto]]/2","v":116.89590454101563},{"$f":"IF(AND(TablaFronteras[[#This Row],[Fila]]<>\"\",TablaFronteras[[#This Row],[X]]<miX,miX<TablaFronteras[[#This Row],[X]]+TablaFronteras[[#This Row],[Ancho]],TablaFronteras[[#This Row],[Y]]<miY,miY<TablaFronteras[[#This Row],[Y]]+TablaFronteras[[#This Row],[Alto]]),SQRT((TablaFronteras[[#This Row],[Centro X]]-miX)^2+(TablaFronteras[[#This Row],[Centro Y]]-miY)^2),\"\")","v":""},{"$f":"IF(TablaFronteras[[#This Row],[Frontera]]=\"\",\"\",IFERROR(MATCH(RIGHT(TablaFronteras[[#This Row],[Frontera]],LEN(TablaFronteras[[#This Row],[Frontera]])-IFERROR(FIND(\" - \",TablaFronteras[[#This Row],[Frontera]])+2,0)),TablaFronteras[Frontera],0),\"\"))","v":134}]
["Israel",422.09906005859375,120.61118316650391,3.3734645843505859,9.1358270645141602,{"$f":"TablaFronteras[[#This Row],[X]]+TablaFronteras[[#This Row],[Ancho]]/2","v":423.78579235076904},{"$f":"TablaFronteras[[#This Row],[Y]]+TablaFronteras[[#This Row],[Alto]]/2","v":125.17909669876099},{"$f":"IF(AND(TablaFronteras[[#This Row],[Fila]]<>\"\",TablaFronteras[[#This Row],[X]]<miX,miX<TablaFronteras[[#This Row],[X]]+TablaFronteras[[#This Row],[Ancho]],TablaFronteras[[#This Row],[Y]]<miY,miY<TablaFronteras[[#This Row],[Y]]+TablaFronteras[[#This Row],[Alto]]),SQRT((TablaFronteras[[#This Row],[Centro X]]-miX)^2+(TablaFronteras[[#This Row],[Centro Y]]-miY)^2),\"\")","v":""},{"$f":"IF(TablaFronteras[[#This Row],[Frontera]]=\"\",\"\",IFERROR(MATCH(RIGHT(TablaFronteras[[#This Row],[Frontera]],LEN(TablaFronteras[[#This Row],[Frontera]])-IFERROR(FIND(\" - \",TablaFronteras[[#This Row],[Frontera]])+2,0)),TablaFronteras[Frontera],0),\"\"))","v":135}]
["Camboya",565.6732177734375,165.61613464355469,10.559370040893555,11.404330253601074,{"$f":"TablaFronteras[[#This Row],[X]]+TablaFronteras[[#This Row],[Ancho]]/2","v":570.95290279388428},{"$f":"TablaFronteras[[#This Row],[Y]]+TablaFronteras[[#This Row],[Alto]]/2","v":171.31829977035522},{"$f":"IF(AND(TablaFronteras[[#This Row],[Fila]]<>\"\",TablaFronteras[[#This Row],[X]]<miX,miX<TablaFronteras[[#This Row],[X]]+TablaFronteras[[#This Row],[Ancho]],TablaFronteras[[#This Row],[Y]]<miY,miY<TablaFronteras[[#This Row],[Y]]+TablaFronteras[[#This Row],[Alto]]),SQRT((TablaFronteras[[#This Row],[Centro X]]-miX)^2+(TablaFronteras[[#This Row],[Centro Y]]-miY)^2),\"\")","v":""},{"$f":"IF(TablaFronteras[[#This Row],[Frontera]]=\"\",\"\",IFERROR(MATCH(RIGHT(TablaFronteras[[#This Row],[Frontera]],LEN(TablaFronteras[[#This Row],[Frontera]])-IFERROR(FIND(\" - \",TablaFronteras[[#This Row],[Frontera]])+2,0)),TablaFronteras[Frontera],0),\"\"))","v":136}]
["México",118.15873718261719,121.99575042724609,59.104015350341797,44.012992858886719,{"$f":"TablaFronteras[[#This Row],[X]]+TablaFronteras[[#This Row],[Ancho]]/2","v":147.71074485778809},{"$f":"TablaFronteras[[#This Row],[Y]]+TablaFronteras[[#This Row],[Alto]]/2","v":144.00224685668945},{"$f":"IF(AND(TablaFronteras[[#This Row],[Fila]]<>\"\",TablaFronteras[[#This Row],[X]]<miX,miX<TablaFronteras[[#This Row],[X]]+TablaFronteras[[#This Row],[Ancho]],TablaFronteras[[#This Row],[Y]]<miY,miY<TablaFronteras[[#This Row],[Y]]+TablaFronteras[[#This Row],[Alto]]),SQRT((TablaFronteras[[#This Row],[Centro X]]-miX)^2+(TablaFronteras[[#This Row],[Centro Y]]-miY)^2),\"\")","v":""},{"$f":"IF(TablaFronteras[[#This Row],[Frontera]]=\"\",\"\",IFERROR(MATCH(RIGHT(TablaFronteras[[#This Row],[Frontera]],LEN(TablaFronteras[[#This Row],[Frontera]])-IFERROR(FIND(\" - \",TablaFronteras[[#This Row],[Frontera]])+2,0)),TablaFronteras[Frontera],0),\"\"))","v":137}]
["Cuba",181.3897705078125,145.19700622558594,21.375354766845703,7.9890551567077637,{"$f":"TablaFronteras[[#This Row],[X]]+TablaFronteras[[#This Row],[Ancho]]/2","v":192.07744789123535},{"$f":"TablaFronteras[[#This Row],[Y]]+TablaFronteras[[#This Row],[Alto]]/2","v":149.19153380393982},{"$f":"IF(AND(TablaFronteras[[#This Row],[Fila]]<>\"\",TablaFronteras[[#This Row],[X]]<miX,miX<TablaFronteras[[#This Row],[X]]+TablaFronteras[[#This Row],[Ancho]],TablaFronteras[[#This Row],[Y]]<miY,miY<TablaFronteras[[#This Row],[Y]]+TablaFronteras[[#This Row],[Alto]]),SQRT((TablaFronteras[[#This Row],[Centro X]]-miX)^2+(TablaFronteras[[#This Row],[Centro Y]]-miY)^2),\"\")","v":""},{"$f":"IF(TablaFronteras[[#This Row],[Frontera]]=\"\",\"\",IFERROR(MATCH(RIGHT(TablaFronteras[[#This Row],[Frontera]],LEN(TablaFronteras[[#This Row],[Frontera]])-IFERROR(FIND(\" - \",TablaFronteras[[#This Row],[Frontera]])+2,0)),TablaFronteras[Frontera],0),\"\"))","v":138}]
["Jamaica",194.09747314453125,155.54771423339844,2.9575591087341309,3.331496000289917,{"$f":"TablaFronteras[[#This Row],[X]]+TablaFronteras[[#This Row],[Ancho]]/2","v":195.57625269889832},{"$f":"TablaFronteras[[#This Row],[Y]]+TablaFronteras[[#This Row],[Alto]]/2","v":157.2134622335434},{"$f":"IF(AND(TablaFronteras[[#This Row],[Fila]]<>\"\",TablaFronteras[[#This Row],[X]]<miX,miX<TablaFronteras[[#This Row],[X]]+TablaFronteras[[#This Row],[Ancho]],TablaFronteras[[#This Row],[Y]]<miY,miY<TablaFronteras[[#This Row],[Y]]+TablaFronteras[[#This Row],[Alto]]),SQRT((TablaFronteras[[#This Row],[Centro X]]-miX)^2+(TablaFronteras[[#This Row],[Centro Y]]-miY)^2),\"\")","v":""},{"$f":"IF(TablaFronteras[[#This Row],[Frontera]]=\"\",\"\",IFERROR(MATCH(RIGHT(TablaFronteras[[#This Row],[Frontera]],LEN(TablaFronteras[[#This Row],[Frontera]])-IFERROR(FIND(\" - \",TablaFronteras[[#This Row],[Frontera]])+2,0)),TablaFronteras[Frontera],0),\"\"))","v":139}]
["República Dominicana",206.77133178710938,153.01779174804688,7.8925986289978027,5.5292911529541016,{"$f":"TablaFronteras[[#This Row],[X]]+TablaFronteras[[#This Row],[Ancho]]/2","v":210.71763110160828},{"$f":"TablaFronteras[[#This Row],[Y]]+TablaFronteras[[#This Row],[Alto]]/2","v":155.78243732452393},{"$f":"IF(AND(TablaFronteras[[#This Row],[Fila]]<>\"\",TablaFronteras[[#This Row],[X]]<miX,miX<TablaFronteras[[#This Row],[X]]+TablaFronteras[[#This Row],[Ancho]],TablaFronteras[[#This Row],[Y]]<miY,miY<TablaFronteras[[#This Row],[Y]]+TablaFronteras[[#This Row],[Alto]]),SQRT((TablaFronteras[[#This Row],[Centro X]]-miX)^2+(TablaFronteras[[#This Row],[Centro Y]]-miY)^2),\"\")","v":""},{"$f":"IF(TablaFronteras[[#This Row],[Frontera]]=\"\",\"\",IFERROR(MATCH(RIGHT(TablaFronteras[[#This Row],[Frontera]],LEN(TablaFronteras[[#This Row],[Frontera]])-IFERROR(FIND(\" - \",TablaFronteras[[#This Row],[Frontera]])+2,0)),TablaFronteras[Frontera],0),\"\"))","v":140}]
["Belice",170.30094909667969,156.79322814941406,2.9366142749786377,6.3703937530517578,{"$f":"TablaFronteras[[#This Row],[X]]+TablaFronteras[[#This Row],[Ancho]]/2","v":171.76925623416901},{"$f":"TablaFronteras[[#This Row],[Y]]+TablaFronteras[[#This Row],[Alto]]/2","v":159.97842502593994},{"$f":"IF(AND(TablaFronteras[[#This Row],[Fila]]<>\"\",TablaFronteras[[#This Row],[X]]<miX,miX<TablaFronteras[[#This Row],[X]]+TablaFronteras[[#This Row],[Ancho]],TablaFronteras[[#This Row],[Y]]<miY,miY<TablaFronteras[[#This Row],[Y]]+TablaFronteras[[#This Row],[Alto]]),SQRT((TablaFronteras[[#This Row],[Centro X]]-miX)^2+(TablaFronteras[[#This Row],[Centro Y]]-miY)^2),\"\")","v":""},{"$f":"IF(TablaFronteras[[#This Row],[Frontera]]=\"\",\"\",IFERROR(MATCH(RIGHT(TablaFronteras[[#This Row],[Frontera]],LEN(TablaFronteras[[#This Row],[Frontera]])-IFERROR(FIND(\" - \",TablaFronteras[[#This Row],[Frontera]])+2,0)),TablaFronteras[Frontera],0),\"\"))","v":141}]
["Guatemala",164.43354797363281,157.95527648925781,7.2960629463195801,9.9842519760131836,{"$f":"TablaFronteras[[#This Row],[X]]+TablaFronteras[[#This Row],[Ancho]]/2","v":168.0815794467926},{"$f":"TablaFronteras[[#This Row],[Y]]+TablaFronteras[[#This Row],[Alto]]/2","v":162.9474024772644},{"$f":"IF(AND(TablaFronteras[[#This Row],[Fila]]<>\"\",TablaFronteras[[#This Row],[X]]<miX,miX<TablaFronteras[[#This Row],[X]]+TablaFronteras[[#This Row],[Ancho]],TablaFronteras[[#This Row],[Y]]<miY,miY<TablaFronteras[[#This Row],[Y]]+TablaFronteras[[#This Row],[Alto]]),SQRT((TablaFronteras[[#This Row],[Centro X]]-miX)^2+(TablaFronteras[[#This Row],[Centro Y]]-miY)^2),\"\")","v":""},{"$f":"IF(TablaFronteras[[#This Row],[Frontera]]=\"\",\"\",IFERROR(MATCH(RIGHT(TablaFronteras[[#This Row],[Frontera]],LEN(TablaFronteras[[#This Row],[Frontera]])-IFERROR(FIND(\" - \",TablaFronteras[[#This Row],[Frontera]])+2,0)),TablaFronteras[Frontera],0),\"\"))","v":142}]
["El Salvador",168.35661315917969,166.31425476074219,4.5190548896789551,3.0512597560882568,{"$f":"TablaFronteras[[#This Row],[X]]+TablaFronteras[[#This Row],[Ancho]]/2","v":170.61614060401917},{"$f":"TablaFronteras[[#This Row],[Y]]+TablaFronteras[[#This Row],[Alto]]/2","v":167.83988463878632},{"$f":"IF(AND(TablaFronteras[[#This Row],[Fila]]<>\"\",TablaFronteras[[#This Row],[X]]<miX,miX<TablaFronteras[[#This Row],[X]]+TablaFronteras[[#This Row],[Ancho]],TablaFronteras[[#This Row],[Y]]<miY,miY<TablaFronteras[[#This Row],[Y]]+TablaFronteras[[#This Row],[Alto]]),SQRT((TablaFronteras[[#This Row],[Centro X]]-miX)^2+(TablaFronteras[[#This Row],[Centro Y]]-miY)^2),\"\")","v":""},{"$f":"IF(TablaFronteras[[#This Row],[Frontera]]=\"\",\"\",IFERROR(MATCH(RIGHT(TablaFronteras[[#This Row],[Frontera]],LEN(TablaFronteras[[#This Row],[Frontera]])-IFERROR(FIND(\" - \",TablaFronteras[[#This Row],[Frontera]])+2,0)),TablaFronteras[Frontera],0),\"\"))","v":143}]
["Honduras",169.99118041992188,161.32377624511719,11.689212799072266,8.1855907440185547,{"$f":"TablaFronteras[[#This Row],[X]]+TablaFronteras[[#This Row],[Ancho]]/2","v":175.83578681945801},{"$f":"TablaFronteras[[#This Row],[Y]]+TablaFronteras[[#This Row],[Alto]]/2","v":165.41657161712646},{"$f":"IF(AND(TablaFronteras[[#This Row],[Fila]]<>\"\",TablaFronteras[[#This Row],[X]]<miX,miX<TablaFronteras[[#This Row],[X]]+TablaFronteras[[#This Row],[Ancho]],TablaFronteras[[#This Row],[Y]]<miY,miY<TablaFronteras[[#This Row],[Y]]+TablaFronteras[[#This Row],[Alto]]),SQRT((TablaFronteras[[#This Row],[Centro X]]-miX)^2+(TablaFronteras[[#This Row],[Centro Y]]-miY)^2),\"\")","v":""},{"$f":"IF(TablaFronteras[[#This Row],[Frontera]]=\"\",\"\",IFERROR(MATCH(RIGHT(TablaFronteras[[#This Row],[Frontera]],LEN(TablaFronteras[[#This Row],[Frontera]])-IFERROR(FIND(\" - \",TablaFronteras[[#This Row],[Frontera]])+2,0)),TablaFronteras[Frontera],0),\"\"))","v":144}]
["Nicaragua",173.26504516601563,164.92709350585938,8.9144096374511719,10.440550804138184,{"$f":"TablaFronteras[[#This Row],[X]]+TablaFronteras[[#This Row],[Ancho]]/2","v":177.72224998474121},{"$f":"TablaFronteras[[#This Row],[Y]]+TablaFronteras[[#This Row],[Alto]]/2","v":170.14736890792847},{"$f":"IF(AND(TablaFronteras[[#This Row],[Fila]]<>\"\",TablaFronteras[[#This Row],[X]]<miX,miX<TablaFronteras[[#This Row],[X]]+TablaFronteras[[#This Row],[Ancho]],TablaFronteras[[#This Row],[Y]]<miY,miY<TablaFronteras[[#This Row],[Y]]+TablaFronteras[[#This Row],[Alto]]),SQRT((TablaFronteras[[#This Row],[Centro X]]-miX)^2+(TablaFronteras[[#This Row],[Centro Y]]-miY)^2),\"\")","v":""},{"$f":"IF(TablaFronteras[[#This Row],[Frontera]]=\"\",\"\",IFERROR(MATCH(RIGHT(TablaFronteras[[#This Row],[Frontera]],LEN(TablaFronteras[[#This Row],[Frontera]])-IFERROR(FIND(\" - \",TablaFronteras[[#This Row],[Frontera]])+2,0)),TablaFronteras[Frontera],0),\"\"))","v":145}]
["Costa Rica",174.71676635742188,174.40370178222656,7.768897533416748,14.155117988586426,{"$f":"TablaFronteras[[#This Row],[X]]+TablaFronteras[[#This Row],[Ancho]]/2","v":178.60121512413025},{"$f":"TablaFronteras[[#This Row],[Y]]+TablaFronteras[[#This Row],[Alto]]/2","v":181.48126077651978},{"$f":"IF(AND(TablaFronteras[[#This Row],[Fila]]<>\"\",TablaFronteras[[#This Row],[X]]<miX,miX<TablaFronteras[[#This Row],[X]]+TablaFronteras[[#This Row],[Ancho]],TablaFronteras[[#This Row],[Y]]<miY,miY<TablaFronteras[[#This Row],[Y]]+TablaFronteras[[#This Row],[Alto]]),SQRT((TablaFronteras[[#This Row],[Centro X]]-miX)^2+(TablaFronteras[[#This Row],[Centro Y]]-miY)^2),\"\")","v":""},{"$f":"IF(TablaFronteras[[#This Row],[Frontera]]=\"\",\"\",IFERROR(MATCH(RIGHT(TablaFronteras[[#This Row],[Frontera]],LEN(TablaFronteras[[#This Row],[Frontera]])-IFERROR(FIND(\" - \",TablaFronteras[[#This Row],[Frontera]])+2,0)),TablaFronteras[Frontera],0),\"\"))","v":146}]
["Panamá",181.90432739257813,178.01701354980469,12.470157623291016,5.7596850395202637,{"$f":"TablaFronteras[[#This Row],[X]]+TablaFronteras[[#This Row],[Ancho]]/2","v":188.13940620422363},{"$f":"TablaFronteras[[#This Row],[Y]]+TablaFronteras[[#This Row],[Alto]]/2","v":180.89685606956482},{"$f":"IF(AND(TablaFronteras[[#This Row],[Fila]]<>\"\",TablaFronteras[[#This Row],[X]]<miX,miX<TablaFronteras[[#This Row],[X]]+TablaFronteras[[#This Row],[Ancho]],TablaFronteras[[#This Row],[Y]]<miY,miY<TablaFronteras[[#This Row],[Y]]+TablaFronteras[[#This Row],[Alto]]),SQRT((TablaFronteras[[#This Row],[Centro X]]-miX)^2+(TablaFronteras[[#This Row],[Centro Y]]-miY)^2),\"\")","v":""},{"$f":"IF(TablaFronteras[[#This Row],[Frontera]]=\"\",\"\",IFERROR(MATCH(RIGHT(TablaFronteras[[#This Row],[Frontera]],LEN(TablaFronteras[[#This Row],[Frontera]])-IFERROR(FIND(\" - \",TablaFronteras[[#This Row],[Frontera]])+2,0)),TablaFronteras[Frontera],0),\"\"))","v":147}]
["Colombia",189.93968200683594,171.12094116210938,25.365354537963867,40.393623352050781,{"$f":"TablaFronteras[[#This Row],[X]]+TablaFronteras[[#This Row],[Ancho]]/2","v":202.62235927581787},{"$f":"TablaFronteras[[#This Row],[Y]]+TablaFronteras[[#This Row],[Alto]]/2","v":191.31775283813477},{"$f":"IF(AND(TablaFronteras[[#This Row],[Fila]]<>\"\",TablaFronteras[[#This Row],[X]]<miX,miX<TablaFronteras[[#This Row],[X]]+TablaFronteras[[#This Row],[Ancho]],TablaFronteras[[#This Row],[Y]]<miY,miY<TablaFronteras[[#This Row],[Y]]+TablaFronteras[[#This Row],[Alto]]),SQRT((TablaFronteras[[#This Row],[Centro X]]-miX)^2+(TablaFronteras[[#This Row],[Centro Y]]-miY)^2),\"\")","v":""},{"$f":"IF(TablaFronteras[[#This Row],[Frontera]]=\"\",\"\",IFERROR(MATCH(RIGHT(TablaFronteras[[#This Row],[Frontera]],LEN(TablaFronteras[[#This Row],[Frontera]])-IFERROR(FIND(\" - \",TablaFronteras[[#This Row],[Frontera]])+2,0)),TablaFronteras[Frontera],0),\"\"))","v":148}]
["Venezuela",201.85733032226563,171.62724304199219,28.041574478149414,28.022520065307617,{"$f":"TablaFronteras[[#This Row],[X]]+TablaFronteras[[#This Row],[Ancho]]/2","v":215.87811756134033},{"$f":"TablaFronteras[[#This Row],[Y]]+TablaFronteras[[#This Row],[Alto]]/2","v":185.638503074646},{"$f":"IF(AND(TablaFronteras[[#This Row],[Fila]]<>\"\",TablaFronteras[[#This Row],[X]]<miX,miX<TablaFronteras[[#This Row],[X]]+TablaFronteras[[#This Row],[Ancho]],TablaFronteras[[#This Row],[Y]]<miY,miY<TablaFronteras[[#This Row],[Y]]+TablaFronteras[[#This Row],[Alto]]),SQRT((TablaFronteras[[#This Row],[Centro X]]-miX)^2+(TablaFronteras[[#This Row],[Centro Y]]-miY)^2),\"\")","v":""},{"$f":"IF(TablaFronteras[[#This Row],[Frontera]]=\"\",\"\",IFERROR(MATCH(RIGHT(TablaFronteras[[#This Row],[Frontera]],LEN(TablaFronteras[[#This Row],[Frontera]])-IFERROR(FIND(\" - \",TablaFronteras[[#This Row],[Frontera]])+2,0)),TablaFronteras[Frontera],0),\"\"))","v":149}]
["Guyana",226.38432312011719,180.577880859375,10.449448585510254,17.681495666503906,{"$f":"TablaFronteras[[#This Row],[X]]+TablaFronteras[[#This Row],[Ancho]]/2","v":231.60904741287231},{"$f":"TablaFronteras[[#This Row],[Y]]+TablaFronteras[[#This Row],[Alto]]/2","v":189.41862869262695},{"$f":"IF(AND(TablaFronteras[[#This Row],[Fila]]<>\"\",TablaFronteras[[#This Row],[X]]<miX,miX<TablaFronteras[[#This Row],[X]]+TablaFronteras[[#This Row],[Ancho]],TablaFronteras[[#This Row],[Y]]<miY,miY<TablaFronteras[[#This Row],[Y]]+TablaFronteras[[#This Row],[Alto]]),SQRT((TablaFronteras[[#This Row],[Centro X]]-miX)^2+(TablaFronteras[[#This Row],[Centro Y]]-miY)^2),\"\")","v":""},{"$f":"IF(TablaFronteras[[#This Row],[Frontera]]=\"\",\"\",IFERROR(MATCH(RIGHT(TablaFronteras[[#This Row],[Frontera]],LEN(TablaFronteras[[#This Row],[Frontera]])-IFERROR(FIND(\" - \",TablaFronteras[[#This Row],[Frontera]])+2,0)),TablaFronteras[Frontera],0),\"\"))","v":150}]
["Surinam",233.93173217773438,186.64149475097656,8.2827558517456055,10.082283020019531,{"$f":"TablaFronteras[[#This Row],[X]]+TablaFronteras[[#This Row],[Ancho]]/2","v":238.07311010360718},{"$f":"TablaFronteras[[#This Row],[Y]]+TablaFronteras[[#This Row],[Alto]]/2","v":191.68263626098633},{"$f":"IF(AND(TablaFronteras[[#This Row],[Fila]]<>\"\",TablaFronteras[[#This Row],[X]]<miX,miX<TablaFronteras[[#This Row],[X]]+TablaFronteras[[#This Row],[Ancho]],TablaFronteras[[#This Row],[Y]]<miY,miY<TablaFronteras[[#This Row],[Y]]+TablaFronteras[[#This Row],[Alto]]),SQRT((TablaFronteras[[#This Row],[Centro X]]-miX)^2+(TablaFronteras[[#This Row],[Centro Y]]-miY)^2),\"\")","v":""},{"$f":"IF(TablaFronteras[[#This Row],[Frontera]]=\"\",\"\",IFERROR(MATCH(RIGHT(TablaFronteras[[#This Row],[Frontera]],LEN(TablaFronteras[[#This Row],[Frontera]])-IFERROR(FIND(\" - \",TablaFronteras[[#This Row],[Frontera]])+2,0)),TablaFronteras[Frontera],0),\"\"))","v":151}]
["Guayana Francesa",240.85952758789063,187.28024291992188,7.3321261405944824,8.8313388824462891,{"$f":"TablaFronteras[[#This Row],[X]]+TablaFronteras[[#This Row],[Ancho]]/2","v":244.52559065818787},{"$f":"TablaFronteras[[#This Row],[Y]]+TablaFronteras[[#This Row],[Alto]]/2","v":191.69591236114502},{"$f":"IF(AND(TablaFronteras[[#This Row],[Fila]]<>\"\",TablaFronteras[[#This Row],[X]]<miX,miX<TablaFronteras[[#This Row],[X]]+TablaFronteras[[#This Row],[Ancho]],TablaFronteras[[#This Row],[Y]]<miY,miY<TablaFronteras[[#This Row],[Y]]+TablaFronteras[[#This Row],[Alto]]),SQRT((TablaFronteras[[#This Row],[Centro X]]-miX)^2+(TablaFronteras[[#This Row],[Centro Y]]-miY)^2),\"\")","v":""},{"$f":"IF(TablaFronteras[[#This Row],[Frontera]]=\"\",\"\",IFERROR(MATCH(RIGHT(TablaFronteras[[#This Row],[Frontera]],LEN(TablaFronteras[[#This Row],[Frontera]])-IFERROR(FIND(\" - \",TablaFronteras[[#This Row],[Frontera]])+2,0)),TablaFronteras[Frontera],0),\"\"))","v":152}]
["Brasil",200.35810852050781,188.62786865234375,81.415985107421875,94.307167053222656,{"$f":"TablaFronteras[[#This Row],[X]]+TablaFronteras[[#This Row],[Ancho]]/2","v":241.06610107421875},{"$f":"TablaFronteras[[#This Row],[Y]]+TablaFronteras[[#This Row],[Alto]]/2","v":235.78145217895508},{"$f":"IF(AND(TablaFronteras[[#This Row],[Fila]]<>\"\",TablaFronteras[[#This Row],[X]]<miX,miX<TablaFronteras[[#This Row],[X]]+TablaFronteras[[#This Row],[Ancho]],TablaFronteras[[#This Row],[Y]]<miY,miY<TablaFronteras[[#This Row],[Y]]+TablaFronteras[[#This Row],[Alto]]),SQRT((TablaFronteras[[#This Row],[Centro X]]-miX)^2+(TablaFronteras[[#This Row],[Centro Y]]-miY)^2),\"\")","v":""},{"$f":"IF(TablaFronteras[[#This Row],[Frontera]]=\"\",\"\",IFERROR(MATCH(RIGHT(TablaFronteras[[#This Row],[Frontera]],LEN(TablaFronteras[[#This Row],[Frontera]])-IFERROR(FIND(\" - \",TablaFronteras[[#This Row],[Frontera]])+2,0)),TablaFronteras[Frontera],0),\"\"))","v":153}]
["Ecuador",163.71315002441406,197.75448608398438,34.590629577636719,15.501811027526855,{"$f":"TablaFronteras[[#This Row],[X]]+TablaFronteras[[#This Row],[Ancho]]/2","v":181.00846481323242},{"$f":"TablaFronteras[[#This Row],[Y]]+TablaFronteras[[#This Row],[Alto]]/2","v":205.5053915977478},{"$f":"IF(AND(TablaFronteras[[#This Row],[Fila]]<>\"\",TablaFronteras[[#This Row],[X]]<miX,miX<TablaFronteras[[#This Row],[X]]+TablaFronteras[[#This Row],[Ancho]],TablaFronteras[[#This Row],[Y]]<miY,miY<TablaFronteras[[#This Row],[Y]]+TablaFronteras[[#This Row],[Alto]]),SQRT((TablaFronteras[[#This Row],[Centro X]]-miX)^2+(TablaFronteras[[#This Row],[Centro Y]]-miY)^2),\"\")","v":""},{"$f":"IF(TablaFronteras[[#This Row],[Frontera]]=\"\",\"\",IFERROR(MATCH(RIGHT(TablaFronteras[[#This Row],[Frontera]],LEN(TablaFronteras[[#This Row],[Frontera]])-IFERROR(FIND(\" - \",TablaFronteras[[#This Row],[Frontera]])+2,0)),TablaFronteras[Frontera],0),\"\"))","v":154}]
["Perú",185.28054809570313,201.33338928222656,27.492046356201172,44.248897552490234,{"$f":"TablaFronteras[[#This Row],[X]]+TablaFronteras[[#This Row],[Ancho]]/2","v":199.02657127380371},{"$f":"TablaFronteras[[#This Row],[Y]]+TablaFronteras[[#This Row],[Alto]]/2","v":223.45783805847168},{"$f":"IF(AND(TablaFronteras[[#This Row],[Fila]]<>\"\",TablaFronteras[[#This Row],[X]]<miX,miX<TablaFronteras[[#This Row],[X]]+TablaFronteras[[#This Row],[Ancho]],TablaFronteras[[#This Row],[Y]]<miY,miY<TablaFronteras[[#This Row],[Y]]+TablaFronteras[[#This Row],[Alto]]),SQRT((TablaFronteras[[#This Row],[Centro X]]-miX)^2+(TablaFronteras[[#This Row],[Centro Y]]-miY)^2),\"\")","v":""},{"$f":"IF(TablaFronteras[[#This Row],[Frontera]]=\"\",\"\",IFERROR(MATCH(RIGHT(TablaFronteras[[#This Row],[Frontera]],LEN(TablaFronteras[[#This Row],[Frontera]])-IFERROR(FIND(\" - \",TablaFronteras[[#This Row],[Frontera]])+2,0)),TablaFronteras[Frontera],0),\"\"))","v":155}]
["Bolivia",210.42779541015625,224.71078491210938,26.204959869384766,32.001731872558594,{"$f":"TablaFronteras[[#This Row],[X]]+TablaFronteras[[#This Row],[Ancho]]/2","v":223.53027534484863},{"$f":"TablaFronteras[[#This Row],[Y]]+TablaFronteras[[#This Row],[Alto]]/2","v":240.71165084838867},{"$f":"IF(AND(TablaFronteras[[#This Row],[Fila]]<>\"\",TablaFronteras[[#This Row],[X]]<miX,miX<TablaFronteras[[#This Row],[X]]+TablaFronteras[[#This Row],[Ancho]],TablaFronteras[[#This Row],[Y]]<miY,miY<TablaFronteras[[#This Row],[Y]]+TablaFronteras[[#This Row],[Alto]]),SQRT((TablaFronteras[[#This Row],[Centro X]]-miX)^2+(TablaFronteras[[#This Row],[Centro Y]]-miY)^2),\"\")","v":""},{"$f":"IF(TablaFronteras[[#This Row],[Frontera]]=\"\",\"\",IFERROR(MATCH(RIGHT(TablaFronteras[[#This Row],[Frontera]],LEN(TablaFronteras[[#This Row],[Frontera]])-IFERROR(FIND(\" - \",TablaFronteras[[#This Row],[Frontera]])+2,0)),TablaFronteras[Frontera],0),\"\"))","v":156}]
["Paraguay",226.78323364257813,248.08511352539063,18.165826797485352,20.016378402709961,{"$f":"TablaFronteras[[#This Row],[X]]+TablaFronteras[[#This Row],[Ancho]]/2","v":235.8661470413208},{"$f":"TablaFronteras[[#This Row],[Y]]+TablaFronteras[[#This Row],[Alto]]/2","v":258.09330272674561},{"$f":"IF(AND(TablaFronteras[[#This Row],[Fila]]<>\"\",TablaFronteras[[#This Row],[X]]<miX,miX<TablaFronteras[[#This Row],[X]]+TablaFronteras[[#This Row],[Ancho]],TablaFronteras[[#This Row],[Y]]<miY,miY<TablaFronteras[[#This Row],[Y]]+TablaFronteras[[#This Row],[Alto]]),SQRT((TablaFronteras[[#This Row],[Centro X]]-miX)^2+(TablaFronteras[[#This Row],[Centro Y]]-miY)^2),\"\")","v":""},{"$f":"IF(TablaFronteras[[#This Row],[Frontera]]=\"\",\"\",IFERROR(MATCH(RIGHT(TablaFronteras[[#This Row],[Frontera]],LEN(TablaFronteras[[#This Row],[Frontera]])-IFERROR(FIND(\" - \",TablaFronteras[[#This Row],[Frontera]])+2,0)),TablaFronteras[Frontera],0),\"\"))","v":157}]
["Uruguay",239.79299926757813,274.09402465820313,10.096771240234375,11.588346481323242,{"$f":"TablaFronteras[[#This Row],[X]]+TablaFronteras[[#This Row],[Ancho]]/2","v":244.84138488769531},{"$f":"TablaFronteras[[#This Row],[Y]]+TablaFronteras[[#This Row],[Alto]]/2","v":279.88819789886475},{"$f":"IF(AND(TablaFronteras[[#This Row],[Fila]]<>\"\",TablaFronteras[[#This Row],[X]]<miX,miX<TablaFronteras[[#This Row],[X]]+TablaFronteras[[#This Row],[Ancho]],TablaFronteras[[#This Row],[Y]]<miY,miY<TablaFronteras[[#This Row],[Y]]+TablaFronteras[[#This Row],[Alto]]),SQRT((TablaFronteras[[#This Row],[Centro X]]-miX)^2+(TablaFronteras[[#This Row],[Centro Y]]-miY)^2),\"\")","v":""},{"$f":"IF(TablaFronteras[[#This Row],[Frontera]]=\"\",\"\",IFERROR(MATCH(RIGHT(TablaFronteras[[#This Row],[Frontera]],LEN(TablaFronteras[[#This Row],[Frontera]])-IFERROR(FIND(\" - \",TablaFronteras[[#This Row],[Frontera]])+2,0)),TablaFronteras[Frontera],0),\"\"))","v":158}]
["Chile",134.86369323730469,243.62290954589844,107.19882202148438,91.815750122070313,{"$f":"TablaFronteras[[#This Row],[X]]+TablaFronteras[[#This Row],[Ancho]]/2","v":188.46310424804688},{"$f":"TablaFronteras[[#This Row],[Y]]+TablaFronteras[[#This Row],[Alto]]/2","v":289.53078460693359},{"$f":"IF(AND(TablaFronteras[[#This Row],[Fila]]<>\"\",TablaFronteras[[#This Row],[X]]<miX,miX<TablaFronteras[[#This Row],[X]]+TablaFronteras[[#This Row],[Ancho]],TablaFronteras[[#This Row],[Y]]<miY,miY<TablaFronteras[[#This Row],[Y]]+TablaFronteras[[#This Row],[Alto]]),SQRT((TablaFronteras[[#This Row],[Centro X]]-miX)^2+(TablaFronteras[[#This Row],[Centro Y]]-miY)^2),\"\")","v":""},{"$f":"IF(TablaFronteras[[#This Row],[Frontera]]=\"\",\"\",IFERROR(MATCH(RIGHT(TablaFronteras[[#This Row],[Frontera]],LEN(TablaFronteras[[#This Row],[Frontera]])-IFERROR(FIND(\" - \",TablaFronteras[[#This Row],[Frontera]])+2,0)),TablaFronteras[Frontera],0),\"\"))","v":159}]
["Argentina",214.96385192871094,254.02394104003906,31.879291534423828,79.166297912597656,{"$f":"TablaFronteras[[#This Row],[X]]+TablaFronteras[[#This Row],[Ancho]]/2","v":230.90349769592285},{"$f":"TablaFronteras[[#This Row],[Y]]+TablaFronteras[[#This Row],[Alto]]/2","v":293.60708999633789},{"$f":"IF(AND(TablaFronteras[[#This Row],[Fila]]<>\"\",TablaFronteras[[#This Row],[X]]<miX,miX<TablaFronteras[[#This Row],[X]]+TablaFronteras[[#This Row],[Ancho]],TablaFronteras[[#This Row],[Y]]<miY,miY<TablaFronteras[[#This Row],[Y]]+TablaFronteras[[#This Row],[Alto]]),SQRT((TablaFronteras[[#This Row],[Centro X]]-miX)^2+(TablaFronteras[[#This Row],[Centro Y]]-miY)^2),\"\")","v":""},{"$f":"IF(TablaFronteras[[#This Row],[Frontera]]=\"\",\"\",IFERROR(MATCH(RIGHT(TablaFronteras[[#This Row],[Frontera]],LEN(TablaFronteras[[#This Row],[Frontera]])-IFERROR(FIND(\" - \",TablaFronteras[[#This Row],[Frontera]])+2,0)),TablaFronteras[Frontera],0),\"\"))","v":160}]
["Puerto Rico",216.238037109375,155.1007080078125,4.0050392150878906,3.331496000289917,{"$f":"TablaFronteras[[#This Row],[X]]+TablaFronteras[[#This Row],[Ancho]]/2","v":218.24055671691895},{"$f":"TablaFronteras[[#This Row],[Y]]+TablaFronteras[[#This Row],[Alto]]/2","v":156.76645600795746},{"$f":"IF(AND(TablaFronteras[[#This Row],[Fila]]<>\"\",TablaFronteras[[#This Row],[X]]<miX,miX<TablaFronteras[[#This Row],[X]]+TablaFronteras[[#This Row],[Ancho]],TablaFronteras[[#This Row],[Y]]<miY,miY<TablaFronteras[[#This Row],[Y]]+TablaFronteras[[#This Row],[Alto]]),SQRT((TablaFronteras[[#This Row],[Centro X]]-miX)^2+(TablaFronteras[[#This Row],[Centro Y]]-miY)^2),\"\")","v":""},{"$f":"IF(TablaFronteras[[#This Row],[Frontera]]=\"\",\"\",IFERROR(MATCH(RIGHT(TablaFronteras[[#This Row],[Frontera]],LEN(TablaFronteras[[#This Row],[Frontera]])-IFERROR(FIND(\" - \",TablaFronteras[[#This Row],[Frontera]])+2,0)),TablaFronteras[Frontera],0),\"\"))","v":161}]
["Antigua y Barbuda",225.01960754394531,157.4405517578125,0.147480309009552,8.9370079338550568E-2,{"$f":"TablaFronteras[[#This Row],[X]]+TablaFronteras[[#This Row],[Ancho]]/2","v":225.09334769845009},{"$f":"TablaFronteras[[#This Row],[Y]]+TablaFronteras[[#This Row],[Alto]]/2","v":157.48523679748178},{"$f":"IF(AND(TablaFronteras[[#This Row],[Fila]]<>\"\",TablaFronteras[[#This Row],[X]]<miX,miX<TablaFronteras[[#This Row],[X]]+TablaFronteras[[#This Row],[Ancho]],TablaFronteras[[#This Row],[Y]]<miY,miY<TablaFronteras[[#This Row],[Y]]+TablaFronteras[[#This Row],[Alto]]),SQRT((TablaFronteras[[#This Row],[Centro X]]-miX)^2+(TablaFronteras[[#This Row],[Centro Y]]-miY)^2),\"\")","v":""},{"$f":"IF(TablaFronteras[[#This Row],[Frontera]]=\"\",\"\",IFERROR(MATCH(RIGHT(TablaFronteras[[#This Row],[Frontera]],LEN(TablaFronteras[[#This Row],[Frontera]])-IFERROR(FIND(\" - \",TablaFronteras[[#This Row],[Frontera]])+2,0)),TablaFronteras[Frontera],0),\"\"))","v":162}]
["Islas Vírgenes Británicas",221.78094482421875,155.82646179199219,1.6633858680725098,1.0143307447433472,{"$f":"TablaFronteras[[#This Row],[X]]+TablaFronteras[[#This Row],[Ancho]]/2","v":222.612637758255},{"$f":"TablaFronteras[[#This Row],[Y]]+TablaFronteras[[#This Row],[Alto]]/2","v":156.33362716436386},{"$f":"IF(AND(TablaFronteras[[#This Row],[Fila]]<>\"\",TablaFronteras[[#This Row],[X]]<miX,miX<TablaFronteras[[#This Row],[X]]+TablaFronteras[[#This Row],[Ancho]],TablaFronteras[[#This Row],[Y]]<miY,miY<TablaFronteras[[#This Row],[Y]]+TablaFronteras[[#This Row],[Alto]]),SQRT((TablaFronteras[[#This Row],[Centro X]]-miX)^2+(TablaFronteras[[#This Row],[Centro Y]]-miY)^2),\"\")","v":""},{"$f":"IF(TablaFronteras[[#This Row],[Frontera]]=\"\",\"\",IFERROR(MATCH(RIGHT(TablaFronteras[[#This Row],[Frontera]],LEN(TablaFronteras[[#This Row],[Frontera]])-IFERROR(FIND(\" - \",TablaFronteras[[#This Row],[Frontera]])+2,0)),TablaFronteras[Frontera],0),\"\"))","v":163}]
["Islas Vírgenes de Estados Unidos",220.89614868164063,157.203857421875,2.4066140651702881,1.1562204360961914,{"$f":"TablaFronteras[[#This Row],[X]]+TablaFronteras[[#This Row],[Ancho]]/2","v":222.09945571422577},{"$f":"TablaFronteras[[#This Row],[Y]]+TablaFronteras[[#This Row],[Alto]]/2","v":157.7819676399231},{"$f":"IF(AND(TablaFronteras[[#This Row],[Fila]]<>\"\",TablaFronteras[[#This Row],[X]]<miX,miX<TablaFronteras[[#This Row],[X]]+TablaFronteras[[#This Row],[Ancho]],TablaFronteras[[#This Row],[Y]]<miY,miY<TablaFronteras[[#This Row],[Y]]+TablaFronteras[[#This Row],[Alto]]),SQRT((TablaFronteras[[#This Row],[Centro X]]-miX)^2+(TablaFronteras[[#This Row],[Centro Y]]-miY)^2),\"\")","v":""},{"$f":"IF(TablaFronteras[[#This Row],[Frontera]]=\"\",\"\",IFERROR(MATCH(RIGHT(TablaFronteras[[#This Row],[Frontera]],LEN(TablaFronteras[[#This Row],[Frontera]])-IFERROR(FIND(\" - \",TablaFronteras[[#This Row],[Frontera]])+2,0)),TablaFronteras[Frontera],0),\"\"))","v":164}]
["Montserrat",226.31440734863281,160.87724304199219,8.6771652102470398E-2,0.19314961135387421,{"$f":"TablaFronteras[[#This Row],[X]]+TablaFronteras[[#This Row],[Ancho]]/2","v":226.35779317468405},{"$f":"TablaFronteras[[#This Row],[Y]]+TablaFronteras[[#This Row],[Alto]]/2","v":160.97381784766912},{"$f":"IF(AND(TablaFronteras[[#This Row],[Fila]]<>\"\",TablaFronteras[[#This Row],[X]]<miX,miX<TablaFronteras[[#This Row],[X]]+TablaFronteras[[#This Row],[Ancho]],TablaFronteras[[#This Row],[Y]]<miY,miY<TablaFronteras[[#This Row],[Y]]+TablaFronteras[[#This Row],[Alto]]),SQRT((TablaFronteras[[#This Row],[Centro X]]-miX)^2+(TablaFronteras[[#This Row],[Centro Y]]-miY)^2),\"\")","v":""},{"$f":"IF(TablaFronteras[[#This Row],[Frontera]]=\"\",\"\",IFERROR(MATCH(RIGHT(TablaFronteras[[#This Row],[Frontera]],LEN(TablaFronteras[[#This Row],[Frontera]])-IFERROR(FIND(\" - \",TablaFronteras[[#This Row],[Frontera]])+2,0)),TablaFronteras[Frontera],0),\"\"))","v":165}]
["Guadalupe",227.00117492675781,161.35322570800781,1.2813385725021362,1.4451968669891357,{"$f":"TablaFronteras[[#This Row],[X]]+TablaFronteras[[#This Row],[Ancho]]/2","v":227.64184421300888},{"$f":"TablaFronteras[[#This Row],[Y]]+TablaFronteras[[#This Row],[Alto]]/2","v":162.07582414150238},{"$f":"IF(AND(TablaFronteras[[#This Row],[Fila]]<>\"\",TablaFronteras[[#This Row],[X]]<miX,miX<TablaFronteras[[#This Row],[X]]+TablaFronteras[[#This Row],[Ancho]],TablaFronteras[[#This Row],[Y]]<miY,miY<TablaFronteras[[#This Row],[Y]]+TablaFronteras[[#This Row],[Alto]]),SQRT((TablaFronteras[[#This Row],[Centro X]]-miX)^2+(TablaFronteras[[#This Row],[Centro Y]]-miY)^2),\"\")","v":""},{"$f":"IF(TablaFronteras[[#This Row],[Frontera]]=\"\",\"\",IFERROR(MATCH(RIGHT(TablaFronteras[[#This Row],[Frontera]],LEN(TablaFronteras[[#This Row],[Frontera]])-IFERROR(FIND(\" - \",TablaFronteras[[#This Row],[Frontera]])+2,0)),TablaFronteras[Frontera],0),\"\"))","v":166}]
["Santa Lucía",228.06268310546875,167.3626708984375,0.3990551233291626,0.61543309688568115,{"$f":"TablaFronteras[[#This Row],[X]]+TablaFronteras[[#This Row],[Ancho]]/2","v":228.26221066713333},{"$f":"TablaFronteras[[#This Row],[Y]]+TablaFronteras[[#This Row],[Alto]]/2","v":167.67038744688034},{"$f":"IF(AND(TablaFronteras[[#This Row],[Fila]]<>\"\",TablaFronteras[[#This Row],[X]]<miX,miX<TablaFronteras[[#This Row],[X]]+TablaFronteras[[#This Row],[Ancho]],TablaFronteras[[#This Row],[Y]]<miY,miY<TablaFronteras[[#This Row],[Y]]+TablaFronteras[[#This Row],[Alto]]),SQRT((TablaFronteras[[#This Row],[Centro X]]-miX)^2+(TablaFronteras[[#This Row],[Centro Y]]-miY)^2),\"\")","v":""},{"$f":"IF(TablaFronteras[[#This Row],[Frontera]]=\"\",\"\",IFERROR(MATCH(RIGHT(TablaFronteras[[#This Row],[Frontera]],LEN(TablaFronteras[[#This Row],[Frontera]])-IFERROR(FIND(\" - \",TablaFronteras[[#This Row],[Frontera]])+2,0)),TablaFronteras[Frontera],0),\"\"))","v":167}]
["Martinica",227.98504638671875,165.17779541015625,0.70015746355056763,1.2756693363189697,{"$f":"TablaFronteras[[#This Row],[X]]+TablaFronteras[[#This Row],[Ancho]]/2","v":228.33512511849403},{"$f":"TablaFronteras[[#This Row],[Y]]+TablaFronteras[[#This Row],[Alto]]/2","v":165.81563007831573},{"$f":"IF(AND(TablaFronteras[[#This Row],[Fila]]<>\"\",TablaFronteras[[#This Row],[X]]<miX,miX<TablaFronteras[[#This Row],[X]]+TablaFronteras[[#This Row],[Ancho]],TablaFronteras[[#This Row],[Y]]<miY,miY<TablaFronteras[[#This Row],[Y]]+TablaFronteras[[#This Row],[Alto]]),SQRT((TablaFronteras[[#This Row],[Centro X]]-miX)^2+(TablaFronteras[[#This Row],[Centro Y]]-miY)^2),\"\")","v":""},{"$f":"IF(TablaFronteras[[#This Row],[Frontera]]=\"\",\"\",IFERROR(MATCH(RIGHT(TablaFronteras[[#This Row],[Frontera]],LEN(TablaFronteras[[#This Row],[Frontera]])-IFERROR(FIND(\" - \",TablaFronteras[[#This Row],[Frontera]])+2,0)),TablaFronteras[Frontera],0),\"\"))","v":168}]
["Dominica",227.51275634765625,163.42236328125,0.48007872700691223,1.0193700790405273,{"$f":"TablaFronteras[[#This Row],[X]]+TablaFronteras[[#This Row],[Ancho]]/2","v":227.75279571115971},{"$f":"TablaFronteras[[#This Row],[Y]]+TablaFronteras[[#This Row],[Alto]]/2","v":163.93204832077026},{"$f":"IF(AND(TablaFronteras[[#This Row],[Fila]]<>\"\",TablaFronteras[[#This Row],[X]]<miX,miX<TablaFronteras[[#This Row],[X]]+TablaFronteras[[#This Row],[Ancho]],TablaFronteras[[#This Row],[Y]]<miY,miY<TablaFronteras[[#This Row],[Y]]+TablaFronteras[[#This Row],[Alto]]),SQRT((TablaFronteras[[#This Row],[Centro X]]-miX)^2+(TablaFronteras[[#This Row],[Centro Y]]-miY)^2),\"\")","v":""},{"$f":"IF(TablaFronteras[[#This Row],[Frontera]]=\"\",\"\",IFERROR(MATCH(RIGHT(TablaFronteras[[#This Row],[Frontera]],LEN(TablaFronteras[[#This Row],[Frontera]])-IFERROR(FIND(\" - \",TablaFronteras[[#This Row],[Frontera]])+2,0)),TablaFronteras[Frontera],0),\"\"))","v":169}]
["Barbados",231.06692504882813,168.99929809570313,0.4637008011341095,0.59960627555847168,{"$f":"TablaFronteras[[#This Row],[X]]+TablaFronteras[[#This Row],[Ancho]]/2","v":231.29877544939518},{"$f":"TablaFronteras[[#This Row],[Y]]+TablaFronteras[[#This Row],[Alto]]/2","v":169.29910123348236},{"$f":"IF(AND(TablaFronteras[[#This Row],[Fila]]<>\"\",TablaFronteras[[#This Row],[X]]<miX,miX<TablaFronteras[[#This Row],[X]]+TablaFronteras[[#This Row],[Ancho]],TablaFronteras[[#This Row],[Y]]<miY,miY<TablaFronteras[[#This Row],[Y]]+TablaFronteras[[#This Row],[Alto]]),SQRT((TablaFronteras[[#This Row],[Centro X]]-miX)^2+(TablaFronteras[[#This Row],[Centro Y]]-miY)^2),\"\")","v":""},{"$f":"IF(TablaFronteras[[#This Row],[Frontera]]=\"\",\"\",IFERROR(MATCH(RIGHT(TablaFronteras[[#This Row],[Frontera]],LEN(TablaFronteras[[#This Row],[Frontera]])-IFERROR(FIND(\" - \",TablaFronteras[[#This Row],[Frontera]])+2,0)),TablaFronteras[Frontera],0),\"\"))","v":170}]
["San Vicente y las Granadinas",227.53929138183594,168.7996826171875,0.28740158677101135,0.61937010288238525,{"$f":"TablaFronteras[[#This Row],[X]]+TablaFronteras[[#This Row],[Ancho]]/2","v":227.68299217522144},{"$f":"TablaFronteras[[#This Row],[Y]]+TablaFronteras[[#This Row],[Alto]]/2","v":169.10936766862869},{"$f":"IF(AND(TablaFronteras[[#This Row],[Fila]]<>\"\",TablaFronteras[[#This Row],[X]]<miX,miX<TablaFronteras[[#This Row],[X]]+TablaFronteras[[#This Row],[Ancho]],TablaFronteras[[#This Row],[Y]]<miY,miY<TablaFronteras[[#This Row],[Y]]+TablaFronteras[[#This Row],[Alto]]),SQRT((TablaFronteras[[#This Row],[Centro X]]-miX)^2+(TablaFronteras[[#This Row],[Centro Y]]-miY)^2),\"\")","v":""},{"$f":"IF(TablaFronteras[[#This Row],[Frontera]]=\"\",\"\",IFERROR(MATCH(RIGHT(TablaFronteras[[#This Row],[Frontera]],LEN(TablaFronteras[[#This Row],[Frontera]])-IFERROR(FIND(\" - \",TablaFronteras[[#This Row],[Frontera]])+2,0)),TablaFronteras[Frontera],0),\"\"))","v":171}]
["Granada",226.42039489746094,171.55763244628906,0.284645676612854,0.5599212646484375,{"$f":"TablaFronteras[[#This Row],[X]]+TablaFronteras[[#This Row],[Ancho]]/2","v":226.56271773576736},{"$f":"TablaFronteras[[#This Row],[Y]]+TablaFronteras[[#This Row],[Alto]]/2","v":171.83759307861328},{"$f":"IF(AND(TablaFronteras[[#This Row],[Fila]]<>\"\",TablaFronteras[[#This Row],[X]]<miX,miX<TablaFronteras[[#This Row],[X]]+TablaFronteras[[#This Row],[Ancho]],TablaFronteras[[#This Row],[Y]]<miY,miY<TablaFronteras[[#This Row],[Y]]+TablaFronteras[[#This Row],[Alto]]),SQRT((TablaFronteras[[#This Row],[Centro X]]-miX)^2+(TablaFronteras[[#This Row],[Centro Y]]-miY)^2),\"\")","v":""},{"$f":"IF(TablaFronteras[[#This Row],[Frontera]]=\"\",\"\",IFERROR(MATCH(RIGHT(TablaFronteras[[#This Row],[Frontera]],LEN(TablaFronteras[[#This Row],[Frontera]])-IFERROR(FIND(\" - \",TablaFronteras[[#This Row],[Frontera]])+2,0)),TablaFronteras[Frontera],0),\"\"))","v":172}]
["Trinidad y Tobago",225.68582153320313,173.73574829101563,2.9988975524902344,3.2324409484863281,{"$f":"TablaFronteras[[#This Row],[X]]+TablaFronteras[[#This Row],[Ancho]]/2","v":227.18527030944824},{"$f":"TablaFronteras[[#This Row],[Y]]+TablaFronteras[[#This Row],[Alto]]/2","v":175.35196876525879},{"$f":"IF(AND(TablaFronteras[[#This Row],[Fila]]<>\"\",TablaFronteras[[#This Row],[X]]<miX,miX<TablaFronteras[[#This Row],[X]]+TablaFronteras[[#This Row],[Ancho]],TablaFronteras[[#This Row],[Y]]<miY,miY<TablaFronteras[[#This Row],[Y]]+TablaFronteras[[#This Row],[Alto]]),SQRT((TablaFronteras[[#This Row],[Centro X]]-miX)^2+(TablaFronteras[[#This Row],[Centro Y]]-miY)^2),\"\")","v":""},{"$f":"IF(TablaFronteras[[#This Row],[Frontera]]=\"\",\"\",IFERROR(MATCH(RIGHT(TablaFronteras[[#This Row],[Frontera]],LEN(TablaFronteras[[#This Row],[Frontera]])-IFERROR(FIND(\" - \",TablaFronteras[[#This Row],[Frontera]])+2,0)),TablaFronteras[Frontera],0),\"\"))","v":173}]
["Aruba",209.58802795410156,170.74362182617188,0.36929133534431458,0.39448818564414978,{"$f":"TablaFronteras[[#This Row],[X]]+TablaFronteras[[#This Row],[Ancho]]/2","v":209.77267362177372},{"$f":"TablaFronteras[[#This Row],[Y]]+TablaFronteras[[#This Row],[Alto]]/2","v":170.94086591899395},{"$f":"IF(AND(TablaFronteras[[#This Row],[Fila]]<>\"\",TablaFronteras[[#This Row],[X]]<miX,miX<TablaFronteras[[#This Row],[X]]+TablaFronteras[[#This Row],[Ancho]],TablaFronteras[[#This Row],[Y]]<miY,miY<TablaFronteras[[#This Row],[Y]]+TablaFronteras[[#This Row],[Alto]]),SQRT((TablaFronteras[[#This Row],[Centro X]]-miX)^2+(TablaFronteras[[#This Row],[Centro Y]]-miY)^2),\"\")","v":""},{"$f":"IF(TablaFronteras[[#This Row],[Frontera]]=\"\",\"\",IFERROR(MATCH(RIGHT(TablaFronteras[[#This Row],[Frontera]],LEN(TablaFronteras[[#This Row],[Frontera]])-IFERROR(FIND(\" - \",TablaFronteras[[#This Row],[Frontera]])+2,0)),TablaFronteras[Frontera],0),\"\"))","v":174}]
["Islas Caimán",188.12071228027344,154.23968505859375,0.61960631608963013,0.21897637844085693,{"$f":"TablaFronteras[[#This Row],[X]]+TablaFronteras[[#This Row],[Ancho]]/2","v":188.43051543831825},{"$f":"TablaFronteras[[#This Row],[Y]]+TablaFronteras[[#This Row],[Alto]]/2","v":154.34917324781418},{"$f":"IF(AND(TablaFronteras[[#This Row],[Fila]]<>\"\",TablaFronteras[[#This Row],[X]]<miX,miX<TablaFronteras[[#This Row],[X]]+TablaFronteras[[#This Row],[Ancho]],TablaFronteras[[#This Row],[Y]]<miY,miY<TablaFronteras[[#This Row],[Y]]+TablaFronteras[[#This Row],[Alto]]),SQRT((TablaFronteras[[#This Row],[Centro X]]-miX)^2+(TablaFronteras[[#This Row],[Centro Y]]-miY)^2),\"\")","v":""},{"$f":"IF(TablaFronteras[[#This Row],[Frontera]]=\"\",\"\",IFERROR(MATCH(RIGHT(TablaFronteras[[#This Row],[Frontera]],LEN(TablaFronteras[[#This Row],[Frontera]])-IFERROR(FIND(\" - \",TablaFronteras[[#This Row],[Frontera]])+2,0)),TablaFronteras[Frontera],0),\"\"))","v":175}]
["Bahamas",195.9964599609375,136.00126647949219,10.257716178894043,14.583070755004883,{"$f":"TablaFronteras[[#This Row],[X]]+TablaFronteras[[#This Row],[Ancho]]/2","v":201.12531805038452},{"$f":"TablaFronteras[[#This Row],[Y]]+TablaFronteras[[#This Row],[Alto]]/2","v":143.29280185699463},{"$f":"IF(AND(TablaFronteras[[#This Row],[Fila]]<>\"\",TablaFronteras[[#This Row],[X]]<miX,miX<TablaFronteras[[#This Row],[X]]+TablaFronteras[[#This Row],[Ancho]],TablaFronteras[[#This Row],[Y]]<miY,miY<TablaFronteras[[#This Row],[Y]]+TablaFronteras[[#This Row],[Alto]]),SQRT((TablaFronteras[[#This Row],[Centro X]]-miX)^2+(TablaFronteras[[#This Row],[Centro Y]]-miY)^2),\"\")","v":""},{"$f":"IF(TablaFronteras[[#This Row],[Frontera]]=\"\",\"\",IFERROR(MATCH(RIGHT(TablaFronteras[[#This Row],[Frontera]],LEN(TablaFronteras[[#This Row],[Frontera]])-IFERROR(FIND(\" - \",TablaFronteras[[#This Row],[Frontera]])+2,0)),TablaFronteras[Frontera],0),\"\"))","v":176}]
["Islas Turcas y Caicos",207.06512451171875,148.412841796875,1.8811811208724976,0.40362206101417542,{"$f":"TablaFronteras[[#This Row],[X]]+TablaFronteras[[#This Row],[Ancho]]/2","v":208.005715072155},{"$f":"TablaFronteras[[#This Row],[Y]]+TablaFronteras[[#This Row],[Alto]]/2","v":148.61465282738209},{"$f":"IF(AND(TablaFronteras[[#This Row],[Fila]]<>\"\",TablaFronteras[[#This Row],[X]]<miX,miX<TablaFronteras[[#This Row],[X]]+TablaFronteras[[#This Row],[Ancho]],TablaFronteras[[#This Row],[Y]]<miY,miY<TablaFronteras[[#This Row],[Y]]+TablaFronteras[[#This Row],[Alto]]),SQRT((TablaFronteras[[#This Row],[Centro X]]-miX)^2+(TablaFronteras[[#This Row],[Centro Y]]-miY)^2),\"\")","v":""},{"$f":"IF(TablaFronteras[[#This Row],[Frontera]]=\"\",\"\",IFERROR(MATCH(RIGHT(TablaFronteras[[#This Row],[Frontera]],LEN(TablaFronteras[[#This Row],[Frontera]])-IFERROR(FIND(\" - \",TablaFronteras[[#This Row],[Frontera]])+2,0)),TablaFronteras[Frontera],0),\"\"))","v":177}]
["Haití",201.548583984375,152.64306640625,7.3970866203308105,4.8582677841186523,{"$f":"TablaFronteras[[#This Row],[X]]+TablaFronteras[[#This Row],[Ancho]]/2","v":205.24712729454041},{"$f":"TablaFronteras[[#This Row],[Y]]+TablaFronteras[[#This Row],[Alto]]/2","v":155.07220029830933},{"$f":"IF(AND(TablaFronteras[[#This Row],[Fila]]<>\"\",TablaFronteras[[#This Row],[X]]<miX,miX<TablaFronteras[[#This Row],[X]]+TablaFronteras[[#This Row],[Ancho]],TablaFronteras[[#This Row],[Y]]<miY,miY<TablaFronteras[[#This Row],[Y]]+TablaFronteras[[#This Row],[Alto]]),SQRT((TablaFronteras[[#This Row],[Centro X]]-miX)^2+(TablaFronteras[[#This Row],[Centro Y]]-miY)^2),\"\")","v":""},{"$f":"IF(TablaFronteras[[#This Row],[Frontera]]=\"\",\"\",IFERROR(MATCH(RIGHT(TablaFronteras[[#This Row],[Frontera]],LEN(TablaFronteras[[#This Row],[Frontera]])-IFERROR(FIND(\" - \",TablaFronteras[[#This Row],[Frontera]])+2,0)),TablaFronteras[Frontera],0),\"\"))","v":178}]
["Santo Tomé y Príncipe",367.89749145507813,197.11433410644531,2.0002362728118896,4.0369291305541992,{"$f":"TablaFronteras[[#This Row],[X]]+TablaFronteras[[#This Row],[Ancho]]/2","v":368.89760959148407},{"$f":"TablaFronteras[[#This Row],[Y]]+TablaFronteras[[#This Row],[Alto]]/2","v":199.13279867172241},{"$f":"IF(AND(TablaFronteras[[#This Row],[Fila]]<>\"\",TablaFronteras[[#This Row],[X]]<miX,miX<TablaFronteras[[#This Row],[X]]+TablaFronteras[[#This Row],[Ancho]],TablaFronteras[[#This Row],[Y]]<miY,miY<TablaFronteras[[#This Row],[Y]]+TablaFronteras[[#This Row],[Alto]]),SQRT((TablaFronteras[[#This Row],[Centro X]]-miX)^2+(TablaFronteras[[#This Row],[Centro Y]]-miY)^2),\"\")","v":""},{"$f":"IF(TablaFronteras[[#This Row],[Frontera]]=\"\",\"\",IFERROR(MATCH(RIGHT(TablaFronteras[[#This Row],[Frontera]],LEN(TablaFronteras[[#This Row],[Frontera]])-IFERROR(FIND(\" - \",TablaFronteras[[#This Row],[Frontera]])+2,0)),TablaFronteras[Frontera],0),\"\"))","v":179}]
["Cabo Verde",302.0809326171875,159.73393249511719,6.7355117797851563,5.6478738784790039,{"$f":"TablaFronteras[[#This Row],[X]]+TablaFronteras[[#This Row],[Ancho]]/2","v":305.44868850708008},{"$f":"TablaFronteras[[#This Row],[Y]]+TablaFronteras[[#This Row],[Alto]]/2","v":162.55786943435669},{"$f":"IF(AND(TablaFronteras[[#This Row],[Fila]]<>\"\",TablaFronteras[[#This Row],[X]]<miX,miX<TablaFronteras[[#This Row],[X]]+TablaFronteras[[#This Row],[Ancho]],TablaFronteras[[#This Row],[Y]]<miY,miY<TablaFronteras[[#This Row],[Y]]+TablaFronteras[[#This Row],[Alto]]),SQRT((TablaFronteras[[#This Row],[Centro X]]-miX)^2+(TablaFronteras[[#This Row],[Centro Y]]-miY)^2),\"\")","v":""},{"$f":"IF(TablaFronteras[[#This Row],[Frontera]]=\"\",\"\",IFERROR(MATCH(RIGHT(TablaFronteras[[#This Row],[Frontera]],LEN(TablaFronteras[[#This Row],[Frontera]])-IFERROR(FIND(\" - \",TablaFronteras[[#This Row],[Frontera]])+2,0)),TablaFronteras[Frontera],0),\"\"))","v":180}]
["Malta",383.35574340820313,114.00913238525391,0.45125985145568848,0.45944881439208984,{"$f":"TablaFronteras[[#This Row],[X]]+TablaFronteras[[#This Row],[Ancho]]/2","v":383.58137333393097},{"$f":"TablaFronteras[[#This Row],[Y]]+TablaFronteras[[#This Row],[Alto]]/2","v":114.23885679244995},{"$f":"IF(AND(TablaFronteras[[#This Row],[Fila]]<>\"\",TablaFronteras[[#This Row],[X]]<miX,miX<TablaFronteras[[#This Row],[X]]+TablaFronteras[[#This Row],[Ancho]],TablaFronteras[[#This Row],[Y]]<miY,miY<TablaFronteras[[#This Row],[Y]]+TablaFronteras[[#This Row],[Alto]]),SQRT((TablaFronteras[[#This Row],[Centro X]]-miX)^2+(TablaFronteras[[#This Row],[Centro Y]]-miY)^2),\"\")","v":""},{"$f":"IF(TablaFronteras[[#This Row],[Frontera]]=\"\",\"\",IFERROR(MATCH(RIGHT(TablaFronteras[[#This Row],[Frontera]],LEN(TablaFronteras[[#This Row],[Frontera]])-IFERROR(FIND(\" - \",TablaFronteras[[#This Row],[Frontera]])+2,0)),TablaFronteras[Frontera],0),\"\"))","v":181}]
["Chipre",418.59307861328125,114.75858306884766,3.3029921054840088,2.798818826675415,{"$f":"TablaFronteras[[#This Row],[X]]+TablaFronteras[[#This Row],[Ancho]]/2","v":420.24457466602325},{"$f":"TablaFronteras[[#This Row],[Y]]+TablaFronteras[[#This Row],[Alto]]/2","v":116.15799248218536},{"$f":"IF(AND(TablaFronteras[[#This Row],[Fila]]<>\"\",TablaFronteras[[#This Row],[X]]<miX,miX<TablaFronteras[[#This Row],[X]]+TablaFronteras[[#This Row],[Ancho]],TablaFronteras[[#This Row],[Y]]<miY,miY<TablaFronteras[[#This Row],[Y]]+TablaFronteras[[#This Row],[Alto]]),SQRT((TablaFronteras[[#This Row],[Centro X]]-miX)^2+(TablaFronteras[[#This Row],[Centro Y]]-miY)^2),\"\")","v":""},{"$f":"IF(TablaFronteras[[#This Row],[Frontera]]=\"\",\"\",IFERROR(MATCH(RIGHT(TablaFronteras[[#This Row],[Frontera]],LEN(TablaFronteras[[#This Row],[Frontera]])-IFERROR(FIND(\" - \",TablaFronteras[[#This Row],[Frontera]])+2,0)),TablaFronteras[Frontera],0),\"\"))","v":182}]
["Islas del Pacífico - Estados Unidos",660.64837646484375,47.482757568359375,32.254566192626953,25.713306427001953,{"$f":"TablaFronteras[[#This Row],[X]]+TablaFronteras[[#This Row],[Ancho]]/2","v":676.77565956115723},{"$f":"TablaFronteras[[#This Row],[Y]]+TablaFronteras[[#This Row],[Alto]]/2","v":60.339410781860352},{"$f":"IF(AND(TablaFronteras[[#This Row],[Fila]]<>\"\",TablaFronteras[[#This Row],[X]]<miX,miX<TablaFronteras[[#This Row],[X]]+TablaFronteras[[#This Row],[Ancho]],TablaFronteras[[#This Row],[Y]]<miY,miY<TablaFronteras[[#This Row],[Y]]+TablaFronteras[[#This Row],[Alto]]),SQRT((TablaFronteras[[#This Row],[Centro X]]-miX)^2+(TablaFronteras[[#This Row],[Centro Y]]-miY)^2),\"\")","v":""},{"$f":"IF(TablaFronteras[[#This Row],[Frontera]]=\"\",\"\",IFERROR(MATCH(RIGHT(TablaFronteras[[#This Row],[Frontera]],LEN(TablaFronteras[[#This Row],[Frontera]])-IFERROR(FIND(\" - \",TablaFronteras[[#This Row],[Frontera]])+2,0)),TablaFronteras[Frontera],0),\"\"))","v":5}]
["Isla Diomedes - Rusia",93.872520446777344,44.843463897705078,0.52472442388534546,0.29677164554595947,{"$f":"TablaFronteras[[#This Row],[X]]+TablaFronteras[[#This Row],[Ancho]]/2","v":94.134882658720016},{"$f":"TablaFronteras[[#This Row],[Y]]+TablaFronteras[[#This Row],[Alto]]/2","v":44.991849720478058},{"$f":"IF(AND(TablaFronteras[[#This Row],[Fila]]<>\"\",TablaFronteras[[#This Row],[X]]<miX,miX<TablaFronteras[[#This Row],[X]]+TablaFronteras[[#This Row],[Ancho]],TablaFronteras[[#This Row],[Y]]<miY,miY<TablaFronteras[[#This Row],[Y]]+TablaFronteras[[#This Row],[Alto]]),SQRT((TablaFronteras[[#This Row],[Centro X]]-miX)^2+(TablaFronteras[[#This Row],[Centro Y]]-miY)^2),\"\")","v":""},{"$f":"IF(TablaFronteras[[#This Row],[Frontera]]=\"\",\"\",IFERROR(MATCH(RIGHT(TablaFronteras[[#This Row],[Frontera]],LEN(TablaFronteras[[#This Row],[Frontera]])-IFERROR(FIND(\" - \",TablaFronteras[[#This Row],[Frontera]])+2,0)),TablaFronteras[Frontera],0),\"\"))","v":11}]
["Islas Feroe",346.91812133789063,52.522991180419922,1.2634645700454712,2.0988187789916992,{"$f":"TablaFronteras[[#This Row],[X]]+TablaFronteras[[#This Row],[Ancho]]/2","v":347.54985362291336},{"$f":"TablaFronteras[[#This Row],[Y]]+TablaFronteras[[#This Row],[Alto]]/2","v":53.572400569915771},{"$f":"IF(AND(TablaFronteras[[#This Row],[Fila]]<>\"\",TablaFronteras[[#This Row],[X]]<miX,miX<TablaFronteras[[#This Row],[X]]+TablaFronteras[[#This Row],[Ancho]],TablaFronteras[[#This Row],[Y]]<miY,miY<TablaFronteras[[#This Row],[Y]]+TablaFronteras[[#This Row],[Alto]]),SQRT((TablaFronteras[[#This Row],[Centro X]]-miX)^2+(TablaFronteras[[#This Row],[Centro Y]]-miY)^2),\"\")","v":""},{"$f":"IF(TablaFronteras[[#This Row],[Frontera]]=\"\",\"\",IFERROR(MATCH(RIGHT(TablaFronteras[[#This Row],[Frontera]],LEN(TablaFronteras[[#This Row],[Frontera]])-IFERROR(FIND(\" - \",TablaFronteras[[#This Row],[Frontera]])+2,0)),TablaFronteras[Frontera],0),\"\"))","v":185}]
["Nueva Caledonia",681.44268798828125,247.83802795410156,15.388267517089844,8.3255901336669922,{"$f":"TablaFronteras[[#This Row],[X]]+TablaFronteras[[#This Row],[Ancho]]/2","v":689.13682174682617},{"$f":"TablaFronteras[[#This Row],[Y]]+TablaFronteras[[#This Row],[Alto]]/2","v":252.00082302093506},{"$f":"IF(AND(TablaFronteras[[#This Row],[Fila]]<>\"\",TablaFronteras[[#This Row],[X]]<miX,miX<TablaFronteras[[#This Row],[X]]+TablaFronteras[[#This Row],[Ancho]],TablaFronteras[[#This Row],[Y]]<miY,miY<TablaFronteras[[#This Row],[Y]]+TablaFronteras[[#This Row],[Alto]]),SQRT((TablaFronteras[[#This Row],[Centro X]]-miX)^2+(TablaFronteras[[#This Row],[Centro Y]]-miY)^2),\"\")","v":""},{"$f":"IF(TablaFronteras[[#This Row],[Frontera]]=\"\",\"\",IFERROR(MATCH(RIGHT(TablaFronteras[[#This Row],[Frontera]],LEN(TablaFronteras[[#This Row],[Frontera]])-IFERROR(FIND(\" - \",TablaFronteras[[#This Row],[Frontera]])+2,0)),TablaFronteras[Frontera],0),\"\"))","v":186}]
["Vanuatu",696.98370361328125,234.5086669921875,4.2201576232910156,15.835826873779297,{"$f":"TablaFronteras[[#This Row],[X]]+TablaFronteras[[#This Row],[Ancho]]/2","v":699.09378242492676},{"$f":"TablaFronteras[[#This Row],[Y]]+TablaFronteras[[#This Row],[Alto]]/2","v":242.42658042907715},{"$f":"IF(AND(TablaFronteras[[#This Row],[Fila]]<>\"\",TablaFronteras[[#This Row],[X]]<miX,miX<TablaFronteras[[#This Row],[X]]+TablaFronteras[[#This Row],[Ancho]],TablaFronteras[[#This Row],[Y]]<miY,miY<TablaFronteras[[#This Row],[Y]]+TablaFronteras[[#This Row],[Alto]]),SQRT((TablaFronteras[[#This Row],[Centro X]]-miX)^2+(TablaFronteras[[#This Row],[Centro Y]]-miY)^2),\"\")","v":""},{"$f":"IF(TablaFronteras[[#This Row],[Frontera]]=\"\",\"\",IFERROR(MATCH(RIGHT(TablaFronteras[[#This Row],[Frontera]],LEN(TablaFronteras[[#This Row],[Frontera]])-IFERROR(FIND(\" - \",TablaFronteras[[#This Row],[Frontera]])+2,0)),TablaFronteras[Frontera],0),\"\"))","v":187}]
["Fiyi",718.1531982421875,240.24227905273438,6.2354331016540527,7.5727558135986328,{"$f":"TablaFronteras[[#This Row],[X]]+TablaFronteras[[#This Row],[Ancho]]/2","v":721.27091479301453},{"$f":"TablaFronteras[[#This Row],[Y]]+TablaFronteras[[#This Row],[Alto]]/2","v":244.02865695953369},{"$f":"IF(AND(TablaFronteras[[#This Row],[Fila]]<>\"\",TablaFronteras[[#This Row],[X]]<miX,miX<TablaFronteras[[#This Row],[X]]+TablaFronteras[[#This Row],[Ancho]],TablaFronteras[[#This Row],[Y]]<miY,miY<TablaFronteras[[#This Row],[Y]]+TablaFronteras[[#This Row],[Alto]]),SQRT((TablaFronteras[[#This Row],[Centro X]]-miX)^2+(TablaFronteras[[#This Row],[Centro Y]]-miY)^2),\"\")","v":""},{"$f":"IF(TablaFronteras[[#This Row],[Frontera]]=\"\",\"\",IFERROR(MATCH(RIGHT(TablaFronteras[[#This Row],[Frontera]],LEN(TablaFronteras[[#This Row],[Frontera]])-IFERROR(FIND(\" - \",TablaFronteras[[#This Row],[Frontera]])+2,0)),TablaFronteras[Frontera],0),\"\"))","v":188}]
["Tonga",730.9012451171875,246.18330383300781,4.820472240447998,7.0730710029602051,{"$f":"TablaFronteras[[#This Row],[X]]+TablaFronteras[[#This Row],[Ancho]]/2","v":733.3114812374115},{"$f":"TablaFronteras[[#This Row],[Y]]+TablaFronteras[[#This Row],[Alto]]/2","v":249.71983933448792},{"$f":"IF(AND(TablaFronteras[[#This Row],[Fila]]<>\"\",TablaFronteras[[#This Row],[X]]<miX,miX<TablaFronteras[[#This Row],[X]]+TablaFronteras[[#This Row],[Ancho]],TablaFronteras[[#This Row],[Y]]<miY,miY<TablaFronteras[[#This Row],[Y]]+TablaFronteras[[#This Row],[Alto]]),SQRT((TablaFronteras[[#This Row],[Centro X]]-miX)^2+(TablaFronteras[[#This Row],[Centro Y]]-miY)^2),\"\")","v":""},{"$f":"IF(TablaFronteras[[#This Row],[Frontera]]=\"\",\"\",IFERROR(MATCH(RIGHT(TablaFronteras[[#This Row],[Frontera]],LEN(TablaFronteras[[#This Row],[Frontera]])-IFERROR(FIND(\" - \",TablaFronteras[[#This Row],[Frontera]])+2,0)),TablaFronteras[Frontera],0),\"\"))","v":189}]
["Timor Oriental",611.0870361328125,221.48881530761719,7.2852754592895508,2.9329922199249268,{"$f":"TablaFronteras[[#This Row],[X]]+TablaFronteras[[#This Row],[Ancho]]/2","v":614.72967386245728},{"$f":"TablaFronteras[[#This Row],[Y]]+TablaFronteras[[#This Row],[Alto]]/2","v":222.95531141757965},{"$f":"IF(AND(TablaFronteras[[#This Row],[Fila]]<>\"\",TablaFronteras[[#This Row],[X]]<miX,miX<TablaFronteras[[#This Row],[X]]+TablaFronteras[[#This Row],[Ancho]],TablaFronteras[[#This Row],[Y]]<miY,miY<TablaFronteras[[#This Row],[Y]]+TablaFronteras[[#This Row],[Alto]]),SQRT((TablaFronteras[[#This Row],[Centro X]]-miX)^2+(TablaFronteras[[#This Row],[Centro Y]]-miY)^2),\"\")","v":""},{"$f":"IF(TablaFronteras[[#This Row],[Frontera]]=\"\",\"\",IFERROR(MATCH(RIGHT(TablaFronteras[[#This Row],[Frontera]],LEN(TablaFronteras[[#This Row],[Frontera]])-IFERROR(FIND(\" - \",TablaFronteras[[#This Row],[Frontera]])+2,0)),TablaFronteras[Frontera],0),\"\"))","v":190}]
["Líbano",424.4041748046875,117.36827087402344,2.551417350769043,3.7598426342010498,{"$f":"TablaFronteras[[#This Row],[X]]+TablaFronteras[[#This Row],[Ancho]]/2","v":425.67988348007202},{"$f":"TablaFronteras[[#This Row],[Y]]+TablaFronteras[[#This Row],[Alto]]/2","v":119.24819219112396},{"$f":"IF(AND(TablaFronteras[[#This Row],[Fila]]<>\"\",TablaFronteras[[#This Row],[X]]<miX,miX<TablaFronteras[[#This Row],[X]]+TablaFronteras[[#This Row],[Ancho]],TablaFronteras[[#This Row],[Y]]<miY,miY<TablaFronteras[[#This Row],[Y]]+TablaFronteras[[#This Row],[Alto]]),SQRT((TablaFronteras[[#This Row],[Centro X]]-miX)^2+(TablaFronteras[[#This Row],[Centro Y]]-miY)^2),\"\")","v":""},{"$f":"IF(TablaFronteras[[#This Row],[Frontera]]=\"\",\"\",IFERROR(MATCH(RIGHT(TablaFronteras[[#This Row],[Frontera]],LEN(TablaFronteras[[#This Row],[Frontera]])-IFERROR(FIND(\" - \",TablaFronteras[[#This Row],[Frontera]])+2,0)),TablaFronteras[Frontera],0),\"\"))","v":191}]
["Palestina",421.97369384765625,122.41527557373047,3.0729134082794189,3.1873228549957275,{"$f":"TablaFronteras[[#This Row],[X]]+TablaFronteras[[#This Row],[Ancho]]/2","v":423.51015055179596},{"$f":"TablaFronteras[[#This Row],[Y]]+TablaFronteras[[#This Row],[Alto]]/2","v":124.00893700122833},{"$f":"IF(AND(TablaFronteras[[#This Row],[Fila]]<>\"\",TablaFronteras[[#This Row],[X]]<miX,miX<TablaFronteras[[#This Row],[X]]+TablaFronteras[[#This Row],[Ancho]],TablaFronteras[[#This Row],[Y]]<miY,miY<TablaFronteras[[#This Row],[Y]]+TablaFronteras[[#This Row],[Alto]]),SQRT((TablaFronteras[[#This Row],[Centro X]]-miX)^2+(TablaFronteras[[#This Row],[Centro Y]]-miY)^2),\"\")","v":""},{"$f":"IF(TablaFronteras[[#This Row],[Frontera]]=\"\",\"\",IFERROR(MATCH(RIGHT(TablaFronteras[[#This Row],[Frontera]],LEN(TablaFronteras[[#This Row],[Frontera]])-IFERROR(FIND(\" - \",TablaFronteras[[#This Row],[Frontera]])+2,0)),TablaFronteras[Frontera],0),\"\"))","v":192}]
["Islas Malvinas",248.12716674804688,324.59896850585938,5.7430710792541504,2.4462993144989014,{"$f":"TablaFronteras[[#This Row],[X]]+TablaFronteras[[#This Row],[Ancho]]/2","v":250.99870228767395},{"$f":"TablaFronteras[[#This Row],[Y]]+TablaFronteras[[#This Row],[Alto]]/2","v":325.82211816310883},{"$f":"IF(AND(TablaFronteras[[#This Row],[Fila]]<>\"\",TablaFronteras[[#This Row],[X]]<miX,miX<TablaFronteras[[#This Row],[X]]+TablaFronteras[[#This Row],[Ancho]],TablaFronteras[[#This Row],[Y]]<miY,miY<TablaFronteras[[#This Row],[Y]]+TablaFronteras[[#This Row],[Alto]]),SQRT((TablaFronteras[[#This Row],[Centro X]]-miX)^2+(TablaFronteras[[#This Row],[Centro Y]]-miY)^2),\"\")","v":""},{"$f":"IF(TablaFronteras[[#This Row],[Frontera]]=\"\",\"\",IFERROR(MATCH(RIGHT(TablaFronteras[[#This Row],[Frontera]],LEN(TablaFronteras[[#This Row],[Frontera]])-IFERROR(FIND(\" - \",TablaFronteras[[#This Row],[Frontera]])+2,0)),TablaFronteras[Frontera],0),\"\"))","v":193}]
["Gambia",319.89614868164063,167.59724426269531,5.5637006759643555,1.9170079231262207,{"$f":"TablaFronteras[[#This Row],[X]]+TablaFronteras[[#This Row],[Ancho]]/2","v":322.6779990196228},{"$f":"TablaFronteras[[#This Row],[Y]]+TablaFronteras[[#This Row],[Alto]]/2","v":168.55574822425842},{"$f":"IF(AND(TablaFronteras[[#This Row],[Fila]]<>\"\",TablaFronteras[[#This Row],[X]]<miX,miX<TablaFronteras[[#This Row],[X]]+TablaFronteras[[#This Row],[Ancho]],TablaFronteras[[#This Row],[Y]]<miY,miY<TablaFronteras[[#This Row],[Y]]+TablaFronteras[[#This Row],[Alto]]),SQRT((TablaFronteras[[#This Row],[Centro X]]-miX)^2+(TablaFronteras[[#This Row],[Centro Y]]-miY)^2),\"\")","v":""},{"$f":"IF(TablaFronteras[[#This Row],[Frontera]]=\"\",\"\",IFERROR(MATCH(RIGHT(TablaFronteras[[#This Row],[Frontera]],LEN(TablaFronteras[[#This Row],[Frontera]])-IFERROR(FIND(\" - \",TablaFronteras[[#This Row],[Frontera]])+2,0)),TablaFronteras[Frontera],0),\"\"))","v":194}]
["Luxemburgo",367.521484375,80.215194702148438,1.3848031759262085,1.6703149080276489,{"$f":"TablaFronteras[[#This Row],[X]]+TablaFronteras[[#This Row],[Ancho]]/2","v":368.2138859629631},{"$f":"TablaFronteras[[#This Row],[Y]]+TablaFronteras[[#This Row],[Alto]]/2","v":81.050352156162262},{"$f":"IF(AND(TablaFronteras[[#This Row],[Fila]]<>\"\",TablaFronteras[[#This Row],[X]]<miX,miX<TablaFronteras[[#This Row],[X]]+TablaFronteras[[#This Row],[Ancho]],TablaFronteras[[#This Row],[Y]]<miY,miY<TablaFronteras[[#This Row],[Y]]+TablaFronteras[[#This Row],[Alto]]),SQRT((TablaFronteras[[#This Row],[Centro X]]-miX)^2+(TablaFronteras[[#This Row],[Centro Y]]-miY)^2),\"\")","v":""},{"$f":"IF(TablaFronteras[[#This Row],[Frontera]]=\"\",\"\",IFERROR(MATCH(RIGHT(TablaFronteras[[#This Row],[Frontera]],LEN(TablaFronteras[[#This Row],[Frontera]])-IFERROR(FIND(\" - \",TablaFronteras[[#This Row],[Frontera]])+2,0)),TablaFronteras[Frontera],0),\"\"))","v":195}]
["Andorra",358.7071533203125,97.982521057128906,0.69118112325668335,0.4897637665271759,{"$f":"TablaFronteras[[#This Row],[X]]+TablaFronteras[[#This Row],[Ancho]]/2","v":359.05274388194084},{"$f":"TablaFronteras[[#This Row],[Y]]+TablaFronteras[[#This Row],[Alto]]/2","v":98.227402940392494},{"$f":"IF(AND(TablaFronteras[[#This Row],[Fila]]<>\"\",TablaFronteras[[#This Row],[X]]<miX,miX<TablaFronteras[[#This Row],[X]]+TablaFronteras[[#This Row],[Ancho]],TablaFronteras[[#This Row],[Y]]<miY,miY<TablaFronteras[[#This Row],[Y]]+TablaFronteras[[#This Row],[Alto]]),SQRT((TablaFronteras[[#This Row],[Centro X]]-miX)^2+(TablaFronteras[[#This Row],[Centro Y]]-miY)^2),\"\")","v":""},{"$f":"IF(TablaFronteras[[#This Row],[Frontera]]=\"\",\"\",IFERROR(MATCH(RIGHT(TablaFronteras[[#This Row],[Frontera]],LEN(TablaFronteras[[#This Row],[Frontera]])-IFERROR(FIND(\" - \",TablaFronteras[[#This Row],[Frontera]])+2,0)),TablaFronteras[Frontera],0),\"\"))","v":196}]
["Liechtenstein",373.54693603515625,87.148033142089844,0.24834646284580231,0.51015746593475342,{"$f":"TablaFronteras[[#This Row],[X]]+TablaFronteras[[#This Row],[Ancho]]/2","v":373.67110926657915},{"$f":"TablaFronteras[[#This Row],[Y]]+TablaFronteras[[#This Row],[Alto]]/2","v":87.40311187505722},{"$f":"IF(AND(TablaFronteras[[#This Row],[Fila]]<>\"\",TablaFronteras[[#This Row],[X]]<miX,miX<TablaFronteras[[#This Row],[X]]+TablaFronteras[[#This Row],[Ancho]],TablaFronteras[[#This Row],[Y]]<miY,miY<TablaFronteras[[#This Row],[Y]]+TablaFronteras[[#This Row],[Alto]]),SQRT((TablaFronteras[[#This Row],[Centro X]]-miX)^2+(TablaFronteras[[#This Row],[Centro Y]]-miY)^2),\"\")","v":""},{"$f":"IF(TablaFronteras[[#This Row],[Frontera]]=\"\",\"\",IFERROR(MATCH(RIGHT(TablaFronteras[[#This Row],[Frontera]],LEN(TablaFronteras[[#This Row],[Frontera]])-IFERROR(FIND(\" - \",TablaFronteras[[#This Row],[Frontera]])+2,0)),TablaFronteras[Frontera],0),\"\"))","v":197}]
["San Marino",379.10400390625,95.164642333984375,0.31921258568763733,0.31393700838088989,{"$f":"TablaFronteras[[#This Row],[X]]+TablaFronteras[[#This Row],[Ancho]]/2","v":379.26361019909382},{"$f":"TablaFronteras[[#This Row],[Y]]+TablaFronteras[[#This Row],[Alto]]/2","v":95.32161083817482},{"$f":"IF(AND(TablaFronteras[[#This Row],[Fila]]<>\"\",TablaFronteras[[#This Row],[X]]<miX,miX<TablaFronteras[[#This Row],[X]]+TablaFronteras[[#This Row],[Ancho]],TablaFronteras[[#This Row],[Y]]<miY,miY<TablaFronteras[[#This Row],[Y]]+TablaFronteras[[#This Row],[Alto]]),SQRT((TablaFronteras[[#This Row],[Centro X]]-miX)^2+(TablaFronteras[[#This Row],[Centro Y]]-miY)^2),\"\")","v":""},{"$f":"IF(TablaFronteras[[#This Row],[Frontera]]=\"\",\"\",IFERROR(MATCH(RIGHT(TablaFronteras[[#This Row],[Frontera]],LEN(TablaFronteras[[#This Row],[Frontera]])-IFERROR(FIND(\" - \",TablaFronteras[[#This Row],[Frontera]])+2,0)),TablaFronteras[Frontera],0),\"\"))","v":198}]
["Gibraltar",345.16433715820313,113.69598388671875,0.19708661735057831,0.18488189578056335,{"$f":"TablaFronteras[[#This Row],[X]]+TablaFronteras[[#This Row],[Ancho]]/2","v":345.26288046687841},{"$f":"TablaFronteras[[#This Row],[Y]]+TablaFronteras[[#This Row],[Alto]]/2","v":113.78842483460903},{"$f":"IF(AND(TablaFronteras[[#This Row],[Fila]]<>\"\",TablaFronteras[[#This Row],[X]]<miX,miX<TablaFronteras[[#This Row],[X]]+TablaFronteras[[#This Row],[Ancho]],TablaFronteras[[#This Row],[Y]]<miY,miY<TablaFronteras[[#This Row],[Y]]+TablaFronteras[[#This Row],[Alto]]),SQRT((TablaFronteras[[#This Row],[Centro X]]-miX)^2+(TablaFronteras[[#This Row],[Centro Y]]-miY)^2),\"\")","v":""},{"$f":"IF(TablaFronteras[[#This Row],[Frontera]]=\"\",\"\",IFERROR(MATCH(RIGHT(TablaFronteras[[#This Row],[Frontera]],LEN(TablaFronteras[[#This Row],[Frontera]])-IFERROR(FIND(\" - \",TablaFronteras[[#This Row],[Frontera]])+2,0)),TablaFronteras[Frontera],0),\"\"))","v":199}]
["Mónaco",370.33401489257813,95.288505554199219,0.13669291138648987,0.12874016165733337,{"$f":"TablaFronteras[[#This Row],[X]]+TablaFronteras[[#This Row],[Ancho]]/2","v":370.40236134827137},{"$f":"TablaFronteras[[#This Row],[Y]]+TablaFronteras[[#This Row],[Alto]]/2","v":95.352875635027885},{"$f":"IF(AND(TablaFronteras[[#This Row],[Fila]]<>\"\",TablaFronteras[[#This Row],[X]]<miX,miX<TablaFronteras[[#This Row],[X]]+TablaFronteras[[#This Row],[Ancho]],TablaFronteras[[#This Row],[Y]]<miY,miY<TablaFronteras[[#This Row],[Y]]+TablaFronteras[[#This Row],[Alto]]),SQRT((TablaFronteras[[#This Row],[Centro X]]-miX)^2+(TablaFronteras[[#This Row],[Centro Y]]-miY)^2),\"\")","v":""},{"$f":"IF(TablaFronteras[[#This Row],[Frontera]]=\"\",\"\",IFERROR(MATCH(RIGHT(TablaFronteras[[#This Row],[Frontera]],LEN(TablaFronteras[[#This Row],[Frontera]])-IFERROR(FIND(\" - \",TablaFronteras[[#This Row],[Frontera]])+2,0)),TablaFronteras[Frontera],0),\"\"))","v":200}]
["Ciudad del Vaticano",379.38992309570313,100.11472320556641,5.8267716318368912E-2,3.8818895816802979E-2,{"$f":"TablaFronteras[[#This Row],[X]]+TablaFronteras[[#This Row],[Ancho]]/2","v":379.41905695386231},{"$f":"TablaFronteras[[#This Row],[Y]]+TablaFronteras[[#This Row],[Alto]]/2","v":100.13413265347481},{"$f":"IF(AND(TablaFronteras[[#This Row],[Fila]]<>\"\",TablaFronteras[[#This Row],[X]]<miX,miX<TablaFronteras[[#This Row],[X]]+TablaFronteras[[#This Row],[Ancho]],TablaFronteras[[#This Row],[Y]]<miY,miY<TablaFronteras[[#This Row],[Y]]+TablaFronteras[[#This Row],[Alto]]),SQRT((TablaFronteras[[#This Row],[Centro X]]-miX)^2+(TablaFronteras[[#This Row],[Centro Y]]-miY)^2),\"\")","v":""},{"$f":"IF(TablaFronteras[[#This Row],[Frontera]]=\"\",\"\",IFERROR(MATCH(RIGHT(TablaFronteras[[#This Row],[Frontera]],LEN(TablaFronteras[[#This Row],[Frontera]])-IFERROR(FIND(\" - \",TablaFronteras[[#This Row],[Frontera]])+2,0)),TablaFronteras[Frontera],0),\"\"))","v":201}]
["Kuwait",446.9991455078125,128.32574462890625,4.6675591468811035,3.9833071231842041,{"$f":"TablaFronteras[[#This Row],[X]]+TablaFronteras[[#This Row],[Ancho]]/2","v":449.33292508125305},{"$f":"TablaFronteras[[#This Row],[Y]]+TablaFronteras[[#This Row],[Alto]]/2","v":130.31739819049835},{"$f":"IF(AND(TablaFronteras[[#This Row],[Fila]]<>\"\",TablaFronteras[[#This Row],[X]]<miX,miX<TablaFronteras[[#This Row],[X]]+TablaFronteras[[#This Row],[Ancho]],TablaFronteras[[#This Row],[Y]]<miY,miY<TablaFronteras[[#This Row],[Y]]+TablaFronteras[[#This Row],[Alto]]),SQRT((TablaFronteras[[#This Row],[Centro X]]-miX)^2+(TablaFronteras[[#This Row],[Centro Y]]-miY)^2),\"\")","v":""},{"$f":"IF(TablaFronteras[[#This Row],[Frontera]]=\"\",\"\",IFERROR(MATCH(RIGHT(TablaFronteras[[#This Row],[Frontera]],LEN(TablaFronteras[[#This Row],[Frontera]])-IFERROR(FIND(\" - \",TablaFronteras[[#This Row],[Frontera]])+2,0)),TablaFronteras[Frontera],0),\"\"))","v":202}]
["San Cristóbal y Nieves",227.06527709960938,158.36259460449219,0.38259842991828918,1.8714172840118408,{"$f":"TablaFronteras[[#This Row],[X]]+TablaFronteras[[#This Row],[Ancho]]/2","v":227.25657631456852},{"$f":"TablaFronteras[[#This Row],[Y]]+TablaFronteras[[#This Row],[Alto]]/2","v":159.29830324649811},{"$f":"IF(AND(TablaFronteras[[#This Row],[Fila]]<>\"\",TablaFronteras[[#This Row],[X]]<miX,miX<TablaFronteras[[#This Row],[X]]+TablaFronteras[[#This Row],[Ancho]],TablaFronteras[[#This Row],[Y]]<miY,miY<TablaFronteras[[#This Row],[Y]]+TablaFronteras[[#This Row],[Alto]]),SQRT((TablaFronteras[[#This Row],[Centro X]]-miX)^2+(TablaFronteras[[#This Row],[Centro Y]]-miY)^2),\"\")","v":""},{"$f":"IF(TablaFronteras[[#This Row],[Frontera]]=\"\",\"\",IFERROR(MATCH(RIGHT(TablaFronteras[[#This Row],[Frontera]],LEN(TablaFronteras[[#This Row],[Frontera]])-IFERROR(FIND(\" - \",TablaFronteras[[#This Row],[Frontera]])+2,0)),TablaFronteras[Frontera],0),\"\"))","v":203}]
["Curazao",211.52857971191406,171.25779724121094,0.81897640228271484,0.77984249591827393,{"$f":"TablaFronteras[[#This Row],[X]]+TablaFronteras[[#This Row],[Ancho]]/2","v":211.93806791305542},{"$f":"TablaFronteras[[#This Row],[Y]]+TablaFronteras[[#This Row],[Alto]]/2","v":171.64771848917007},{"$f":"IF(AND(TablaFronteras[[#This Row],[Fila]]<>\"\",TablaFronteras[[#This Row],[X]]<miX,miX<TablaFronteras[[#This Row],[X]]+TablaFronteras[[#This Row],[Ancho]],TablaFronteras[[#This Row],[Y]]<miY,miY<TablaFronteras[[#This Row],[Y]]+TablaFronteras[[#This Row],[Alto]]),SQRT((TablaFronteras[[#This Row],[Centro X]]-miX)^2+(TablaFronteras[[#This Row],[Centro Y]]-miY)^2),\"\")","v":""},{"$f":"IF(TablaFronteras[[#This Row],[Frontera]]=\"\",\"\",IFERROR(MATCH(RIGHT(TablaFronteras[[#This Row],[Frontera]],LEN(TablaFronteras[[#This Row],[Frontera]])-IFERROR(FIND(\" - \",TablaFronteras[[#This Row],[Frontera]])+2,0)),TablaFronteras[Frontera],0),\"\"))","v":204}]
["Caribe Neerlandés",213.11456298828125,171.36921691894531,0.4100787341594696,0.68574804067611694,{"$f":"TablaFronteras[[#This Row],[X]]+TablaFronteras[[#This Row],[Ancho]]/2","v":213.31960235536098},{"$f":"TablaFronteras[[#This Row],[Y]]+TablaFronteras[[#This Row],[Alto]]/2","v":171.71209093928337},{"$f":"IF(AND(TablaFronteras[[#This Row],[Fila]]<>\"\",TablaFronteras[[#This Row],[X]]<miX,miX<TablaFronteras[[#This Row],[X]]+TablaFronteras[[#This Row],[Ancho]],TablaFronteras[[#This Row],[Y]]<miY,miY<TablaFronteras[[#This Row],[Y]]+TablaFronteras[[#This Row],[Alto]]),SQRT((TablaFronteras[[#This Row],[Centro X]]-miX)^2+(TablaFronteras[[#This Row],[Centro Y]]-miY)^2),\"\")","v":""},{"$f":"IF(TablaFronteras[[#This Row],[Frontera]]=\"\",\"\",IFERROR(MATCH(RIGHT(TablaFronteras[[#This Row],[Frontera]],LEN(TablaFronteras[[#This Row],[Frontera]])-IFERROR(FIND(\" - \",TablaFronteras[[#This Row],[Frontera]])+2,0)),TablaFronteras[Frontera],0),\"\"))","v":205}]
["Samoa Americana",773.19036865234375,235.2899169921875,0.33149605989456177,3.331496000289917,{"$f":"TablaFronteras[[#This Row],[X]]+TablaFronteras[[#This Row],[Ancho]]/2","v":773.35611668229103},{"$f":"TablaFronteras[[#This Row],[Y]]+TablaFronteras[[#This Row],[Alto]]/2","v":236.95566499233246},{"$f":"IF(AND(TablaFronteras[[#This Row],[Fila]]<>\"\",TablaFronteras[[#This Row],[X]]<miX,miX<TablaFronteras[[#This Row],[X]]+TablaFronteras[[#This Row],[Ancho]],TablaFronteras[[#This Row],[Y]]<miY,miY<TablaFronteras[[#This Row],[Y]]+TablaFronteras[[#This Row],[Alto]]),SQRT((TablaFronteras[[#This Row],[Centro X]]-miX)^2+(TablaFronteras[[#This Row],[Centro Y]]-miY)^2),\"\")","v":""},{"$f":"IF(TablaFronteras[[#This Row],[Frontera]]=\"\",\"\",IFERROR(MATCH(RIGHT(TablaFronteras[[#This Row],[Frontera]],LEN(TablaFronteras[[#This Row],[Frontera]])-IFERROR(FIND(\" - \",TablaFronteras[[#This Row],[Frontera]])+2,0)),TablaFronteras[Frontera],0),\"\"))","v":206}]
["Santa Elena",340.5987548828125,242.4671630859375,0.17606298625469208,0.41968503594398499,{"$f":"TablaFronteras[[#This Row],[X]]+TablaFronteras[[#This Row],[Ancho]]/2","v":340.68678637593985},{"$f":"TablaFronteras[[#This Row],[Y]]+TablaFronteras[[#This Row],[Alto]]/2","v":242.67700560390949},{"$f":"IF(AND(TablaFronteras[[#This Row],[Fila]]<>\"\",TablaFronteras[[#This Row],[X]]<miX,miX<TablaFronteras[[#This Row],[X]]+TablaFronteras[[#This Row],[Ancho]],TablaFronteras[[#This Row],[Y]]<miY,miY<TablaFronteras[[#This Row],[Y]]+TablaFronteras[[#This Row],[Alto]]),SQRT((TablaFronteras[[#This Row],[Centro X]]-miX)^2+(TablaFronteras[[#This Row],[Centro Y]]-miY)^2),\"\")","v":""},{"$f":"IF(TablaFronteras[[#This Row],[Frontera]]=\"\",\"\",IFERROR(MATCH(RIGHT(TablaFronteras[[#This Row],[Frontera]],LEN(TablaFronteras[[#This Row],[Frontera]])-IFERROR(FIND(\" - \",TablaFronteras[[#This Row],[Frontera]])+2,0)),TablaFronteras[Frontera],0),\"\"))","v":207}]
["San Bartolomé",224.98921203613281,157.33976745605469,0.13606299459934235,0.11881889402866364,{"$f":"TablaFronteras[[#This Row],[X]]+TablaFronteras[[#This Row],[Ancho]]/2","v":225.05724353343248},{"$f":"TablaFronteras[[#This Row],[Y]]+TablaFronteras[[#This Row],[Alto]]/2","v":157.39917690306902},{"$f":"IF(AND(TablaFronteras[[#This Row],[Fila]]<>\"\",TablaFronteras[[#This Row],[X]]<miX,miX<TablaFronteras[[#This Row],[X]]+TablaFronteras[[#This Row],[Ancho]],TablaFronteras[[#This Row],[Y]]<miY,miY<TablaFronteras[[#This Row],[Y]]+TablaFronteras[[#This Row],[Alto]]),SQRT((TablaFronteras[[#This Row],[Centro X]]-miX)^2+(TablaFronteras[[#This Row],[Centro Y]]-miY)^2),\"\")","v":""},{"$f":"IF(TablaFronteras[[#This Row],[Frontera]]=\"\",\"\",IFERROR(MATCH(RIGHT(TablaFronteras[[#This Row],[Frontera]],LEN(TablaFronteras[[#This Row],[Frontera]])-IFERROR(FIND(\" - \",TablaFronteras[[#This Row],[Frontera]])+2,0)),TablaFronteras[Frontera],0),\"\"))","v":208}]
["Guernsey",351.79415893554688,81.585746765136719,0.13811023533344269,0.22204723954200745,{"$f":"TablaFronteras[[#This Row],[X]]+TablaFronteras[[#This Row],[Ancho]]/2","v":351.8632140532136},{"$f":"TablaFronteras[[#This Row],[Y]]+TablaFronteras[[#This Row],[Alto]]/2","v":81.696770384907722},{"$f":"IF(AND(TablaFronteras[[#This Row],[Fila]]<>\"\",TablaFronteras[[#This Row],[X]]<miX,miX<TablaFronteras[[#This Row],[X]]+TablaFronteras[[#This Row],[Ancho]],TablaFronteras[[#This Row],[Y]]<miY,miY<TablaFronteras[[#This Row],[Y]]+TablaFronteras[[#This Row],[Alto]]),SQRT((TablaFronteras[[#This Row],[Centro X]]-miX)^2+(TablaFronteras[[#This Row],[Centro Y]]-miY)^2),\"\")","v":""},{"$f":"IF(TablaFronteras[[#This Row],[Frontera]]=\"\",\"\",IFERROR(MATCH(RIGHT(TablaFronteras[[#This Row],[Frontera]],LEN(TablaFronteras[[#This Row],[Frontera]])-IFERROR(FIND(\" - \",TablaFronteras[[#This Row],[Frontera]])+2,0)),TablaFronteras[Frontera],0),\"\"))","v":209}]
["Bermudas",226.39511108398438,123.05653381347656,0.20370078086853027,0.12433070689439774,{"$f":"TablaFronteras[[#This Row],[X]]+TablaFronteras[[#This Row],[Ancho]]/2","v":226.49696147441864},{"$f":"TablaFronteras[[#This Row],[Y]]+TablaFronteras[[#This Row],[Alto]]/2","v":123.11869916692376},{"$f":"IF(AND(TablaFronteras[[#This Row],[Fila]]<>\"\",TablaFronteras[[#This Row],[X]]<miX,miX<TablaFronteras[[#This Row],[X]]+TablaFronteras[[#This Row],[Ancho]],TablaFronteras[[#This Row],[Y]]<miY,miY<TablaFronteras[[#This Row],[Y]]+TablaFronteras[[#This Row],[Alto]]),SQRT((TablaFronteras[[#This Row],[Centro X]]-miX)^2+(TablaFronteras[[#This Row],[Centro Y]]-miY)^2),\"\")","v":""},{"$f":"IF(TablaFronteras[[#This Row],[Frontera]]=\"\",\"\",IFERROR(MATCH(RIGHT(TablaFronteras[[#This Row],[Frontera]],LEN(TablaFronteras[[#This Row],[Frontera]])-IFERROR(FIND(\" - \",TablaFronteras[[#This Row],[Frontera]])+2,0)),TablaFronteras[Frontera],0),\"\"))","v":210}]
["Tuvalu",723.7353515625,221.64039611816406,0.23496063053607941,0.31062993407249451,{"$f":"TablaFronteras[[#This Row],[X]]+TablaFronteras[[#This Row],[Ancho]]/2","v":723.85283187776804},{"$f":"TablaFronteras[[#This Row],[Y]]+TablaFronteras[[#This Row],[Alto]]/2","v":221.79571108520031},{"$f":"IF(AND(TablaFronteras[[#This Row],[Fila]]<>\"\",TablaFronteras[[#This Row],[X]]<miX,miX<TablaFronteras[[#This Row],[X]]+TablaFronteras[[#This Row],[Ancho]],TablaFronteras[[#This Row],[Y]]<miY,miY<TablaFronteras[[#This Row],[Y]]+TablaFronteras[[#This Row],[Alto]]),SQRT((TablaFronteras[[#This Row],[Centro X]]-miX)^2+(TablaFronteras[[#This Row],[Centro Y]]-miY)^2),\"\")","v":""},{"$f":"IF(TablaFronteras[[#This Row],[Frontera]]=\"\",\"\",IFERROR(MATCH(RIGHT(TablaFronteras[[#This Row],[Frontera]],LEN(TablaFronteras[[#This Row],[Frontera]])-IFERROR(FIND(\" - \",TablaFronteras[[#This Row],[Frontera]])+2,0)),TablaFronteras[Frontera],0),\"\"))","v":211}]
["Nauru",697.2454833984375,196.32315063476563,0.30669292807579041,0.27440944314002991,{"$f":"TablaFronteras[[#This Row],[X]]+TablaFronteras[[#This Row],[Ancho]]/2","v":697.3988298624754},{"$f":"TablaFronteras[[#This Row],[Y]]+TablaFronteras[[#This Row],[Alto]]/2","v":196.46035535633564},{"$f":"IF(AND(TablaFronteras[[#This Row],[Fila]]<>\"\",TablaFronteras[[#This Row],[X]]<miX,miX<TablaFronteras[[#This Row],[X]]+TablaFronteras[[#This Row],[Ancho]],TablaFronteras[[#This Row],[Y]]<miY,miY<TablaFronteras[[#This Row],[Y]]+TablaFronteras[[#This Row],[Alto]]),SQRT((TablaFronteras[[#This Row],[Centro X]]-miX)^2+(TablaFronteras[[#This Row],[Centro Y]]-miY)^2),\"\")","v":""},{"$f":"IF(TablaFronteras[[#This Row],[Frontera]]=\"\",\"\",IFERROR(MATCH(RIGHT(TablaFronteras[[#This Row],[Frontera]],LEN(TablaFronteras[[#This Row],[Frontera]])-IFERROR(FIND(\" - \",TablaFronteras[[#This Row],[Frontera]])+2,0)),TablaFronteras[Frontera],0),\"\"))","v":212}]
["Islas Marianas del Norte",652.53826904296875,168.16252136230469,0.47307085990905762,0.93606299161911011,{"$f":"TablaFronteras[[#This Row],[X]]+TablaFronteras[[#This Row],[Ancho]]/2","v":652.77480447292328},{"$f":"TablaFronteras[[#This Row],[Y]]+TablaFronteras[[#This Row],[Alto]]/2","v":168.63055285811424},{"$f":"IF(AND(TablaFronteras[[#This Row],[Fila]]<>\"\",TablaFronteras[[#This Row],[X]]<miX,miX<TablaFronteras[[#This Row],[X]]+TablaFronteras[[#This Row],[Ancho]],TablaFronteras[[#This Row],[Y]]<miY,miY<TablaFronteras[[#This Row],[Y]]+TablaFronteras[[#This Row],[Alto]]),SQRT((TablaFronteras[[#This Row],[Centro X]]-miX)^2+(TablaFronteras[[#This Row],[Centro Y]]-miY)^2),\"\")","v":""},{"$f":"IF(TablaFronteras[[#This Row],[Frontera]]=\"\",\"\",IFERROR(MATCH(RIGHT(TablaFronteras[[#This Row],[Frontera]],LEN(TablaFronteras[[#This Row],[Frontera]])-IFERROR(FIND(\" - \",TablaFronteras[[#This Row],[Frontera]])+2,0)),TablaFronteras[Frontera],0),\"\"))","v":213}]
["Anguila",225.16653442382813,157.76953125,0.19740156829357147,5.196850374341011E-2,{"$f":"TablaFronteras[[#This Row],[X]]+TablaFronteras[[#This Row],[Ancho]]/2","v":225.26523520797491},{"$f":"TablaFronteras[[#This Row],[Y]]+TablaFronteras[[#This Row],[Alto]]/2","v":157.79551550187171},{"$f":"IF(AND(TablaFronteras[[#This Row],[Fila]]<>\"\",TablaFronteras[[#This Row],[X]]<miX,miX<TablaFronteras[[#This Row],[X]]+TablaFronteras[[#This Row],[Ancho]],TablaFronteras[[#This Row],[Y]]<miY,miY<TablaFronteras[[#This Row],[Y]]+TablaFronteras[[#This Row],[Alto]]),SQRT((TablaFronteras[[#This Row],[Centro X]]-miX)^2+(TablaFronteras[[#This Row],[Centro Y]]-miY)^2),\"\")","v":""},{"$f":"IF(TablaFronteras[[#This Row],[Frontera]]=\"\",\"\",IFERROR(MATCH(RIGHT(TablaFronteras[[#This Row],[Frontera]],LEN(TablaFronteras[[#This Row],[Frontera]])-IFERROR(FIND(\" - \",TablaFronteras[[#This Row],[Frontera]])+2,0)),TablaFronteras[Frontera],0),\"\"))","v":214}]
["Tokelau",735.07781982421875,233.75393676757813,0.23496063053607941,0.31062993407249451,{"$f":"TablaFronteras[[#This Row],[X]]+TablaFronteras[[#This Row],[Ancho]]/2","v":735.19530013948679},{"$f":"TablaFronteras[[#This Row],[Y]]+TablaFronteras[[#This Row],[Alto]]/2","v":233.90925173461437},{"$f":"IF(AND(TablaFronteras[[#This Row],[Fila]]<>\"\",TablaFronteras[[#This Row],[X]]<miX,miX<TablaFronteras[[#This Row],[X]]+TablaFronteras[[#This Row],[Ancho]],TablaFronteras[[#This Row],[Y]]<miY,miY<TablaFronteras[[#This Row],[Y]]+TablaFronteras[[#This Row],[Alto]]),SQRT((TablaFronteras[[#This Row],[Centro X]]-miX)^2+(TablaFronteras[[#This Row],[Centro Y]]-miY)^2),\"\")","v":""},{"$f":"IF(TablaFronteras[[#This Row],[Frontera]]=\"\",\"\",IFERROR(MATCH(RIGHT(TablaFronteras[[#This Row],[Frontera]],LEN(TablaFronteras[[#This Row],[Frontera]])-IFERROR(FIND(\" - \",TablaFronteras[[#This Row],[Frontera]])+2,0)),TablaFronteras[Frontera],0),\"\"))","v":215}]
["Islas Marshall",709.8670654296875,184.77668762207031,0.26433071494102478,0.25984251499176025,{"$f":"TablaFronteras[[#This Row],[X]]+TablaFronteras[[#This Row],[Ancho]]/2","v":709.99923078715801},{"$f":"TablaFronteras[[#This Row],[Y]]+TablaFronteras[[#This Row],[Alto]]/2","v":184.90660887956619},{"$f":"IF(AND(TablaFronteras[[#This Row],[Fila]]<>\"\",TablaFronteras[[#This Row],[X]]<miX,miX<TablaFronteras[[#This Row],[X]]+TablaFronteras[[#This Row],[Ancho]],TablaFronteras[[#This Row],[Y]]<miY,miY<TablaFronteras[[#This Row],[Y]]+TablaFronteras[[#This Row],[Alto]]),SQRT((TablaFronteras[[#This Row],[Centro X]]-miX)^2+(TablaFronteras[[#This Row],[Centro Y]]-miY)^2),\"\")","v":""},{"$f":"IF(TablaFronteras[[#This Row],[Frontera]]=\"\",\"\",IFERROR(MATCH(RIGHT(TablaFronteras[[#This Row],[Frontera]],LEN(TablaFronteras[[#This Row],[Frontera]])-IFERROR(FIND(\" - \",TablaFronteras[[#This Row],[Frontera]])+2,0)),TablaFronteras[Frontera],0),\"\"))","v":216}]
["Territorio Británico del Índico",501.196533203125,218.75393676757813,0.12370079010725021,0.39944881200790405,{"$f":"TablaFronteras[[#This Row],[X]]+TablaFronteras[[#This Row],[Ancho]]/2","v":501.25838359817863},{"$f":"TablaFronteras[[#This Row],[Y]]+TablaFronteras[[#This Row],[Alto]]/2","v":218.95366117358208},{"$f":"IF(AND(TablaFronteras[[#This Row],[Fila]]<>\"\",TablaFronteras[[#This Row],[X]]<miX,miX<TablaFronteras[[#This Row],[X]]+TablaFronteras[[#This Row],[Ancho]],TablaFronteras[[#This Row],[Y]]<miY,miY<TablaFronteras[[#This Row],[Y]]+TablaFronteras[[#This Row],[Alto]]),SQRT((TablaFronteras[[#This Row],[Centro X]]-miX)^2+(TablaFronteras[[#This Row],[Centro Y]]-miY)^2),\"\")","v":""},{"$f":"IF(TablaFronteras[[#This Row],[Frontera]]=\"\",\"\",IFERROR(MATCH(RIGHT(TablaFronteras[[#This Row],[Frontera]],LEN(TablaFronteras[[#This Row],[Frontera]])-IFERROR(FIND(\" - \",TablaFronteras[[#This Row],[Frontera]])+2,0)),TablaFronteras[Frontera],0),\"\"))","v":217}]
["Maldivas",501.75015258789063,194.37165832519531,0.30503937602043152,0.38858267664909363,{"$f":"TablaFronteras[[#This Row],[X]]+TablaFronteras[[#This Row],[Ancho]]/2","v":501.90267227590084},{"$f":"TablaFronteras[[#This Row],[Y]]+TablaFronteras[[#This Row],[Alto]]/2","v":194.56594966351986},{"$f":"IF(AND(TablaFronteras[[#This Row],[Fila]]<>\"\",TablaFronteras[[#This Row],[X]]<miX,miX<TablaFronteras[[#This Row],[X]]+TablaFronteras[[#This Row],[Ancho]],TablaFronteras[[#This Row],[Y]]<miY,miY<TablaFronteras[[#This Row],[Y]]+TablaFronteras[[#This Row],[Alto]]),SQRT((TablaFronteras[[#This Row],[Centro X]]-miX)^2+(TablaFronteras[[#This Row],[Centro Y]]-miY)^2),\"\")","v":""},{"$f":"IF(TablaFronteras[[#This Row],[Frontera]]=\"\",\"\",IFERROR(MATCH(RIGHT(TablaFronteras[[#This Row],[Frontera]],LEN(TablaFronteras[[#This Row],[Frontera]])-IFERROR(FIND(\" - \",TablaFronteras[[#This Row],[Frontera]])+2,0)),TablaFronteras[Frontera],0),\"\"))","v":218}]
["Kiribati",716.1444091796875,196.269287109375,0.22716535627841949,3.4488189965486526E-2,{"$f":"TablaFronteras[[#This Row],[X]]+TablaFronteras[[#This Row],[Ancho]]/2","v":716.25799185782671},{"$f":"TablaFronteras[[#This Row],[Y]]+TablaFronteras[[#This Row],[Alto]]/2","v":196.28653120435774},{"$f":"IF(AND(TablaFronteras[[#This Row],[Fila]]<>\"\",TablaFronteras[[#This Row],[X]]<miX,miX<TablaFronteras[[#This Row],[X]]+TablaFronteras[[#This Row],[Ancho]],TablaFronteras[[#This Row],[Y]]<miY,miY<TablaFronteras[[#This Row],[Y]]+TablaFronteras[[#This Row],[Alto]]),SQRT((TablaFronteras[[#This Row],[Centro X]]-miX)^2+(TablaFronteras[[#This Row],[Centro Y]]-miY)^2),\"\")","v":""},{"$f":"IF(TablaFronteras[[#This Row],[Frontera]]=\"\",\"\",IFERROR(MATCH(RIGHT(TablaFronteras[[#This Row],[Frontera]],LEN(TablaFronteras[[#This Row],[Frontera]])-IFERROR(FIND(\" - \",TablaFronteras[[#This Row],[Frontera]])+2,0)),TablaFronteras[Frontera],0),\"\"))","v":219}]
["Micronesia",682.33258056640625,184.36219787597656,0.40480315685272217,0.43362203240394592,{"$f":"TablaFronteras[[#This Row],[X]]+TablaFronteras[[#This Row],[Ancho]]/2","v":682.53498214483261},{"$f":"TablaFronteras[[#This Row],[Y]]+TablaFronteras[[#This Row],[Alto]]/2","v":184.57900889217854},{"$f":"IF(AND(TablaFronteras[[#This Row],[Fila]]<>\"\",TablaFronteras[[#This Row],[X]]<miX,miX<TablaFronteras[[#This Row],[X]]+TablaFronteras[[#This Row],[Ancho]],TablaFronteras[[#This Row],[Y]]<miY,miY<TablaFronteras[[#This Row],[Y]]+TablaFronteras[[#This Row],[Alto]]),SQRT((TablaFronteras[[#This Row],[Centro X]]-miX)^2+(TablaFronteras[[#This Row],[Centro Y]]-miY)^2),\"\")","v":""},{"$f":"IF(TablaFronteras[[#This Row],[Frontera]]=\"\",\"\",IFERROR(MATCH(RIGHT(TablaFronteras[[#This Row],[Frontera]],LEN(TablaFronteras[[#This Row],[Frontera]])-IFERROR(FIND(\" - \",TablaFronteras[[#This Row],[Frontera]])+2,0)),TablaFronteras[Frontera],0),\"\"))","v":220}]
["Guam",654.09130859375,164.30189514160156,0.1348818838596344,0.39944881200790405,{"$f":"TablaFronteras[[#This Row],[X]]+TablaFronteras[[#This Row],[Ancho]]/2","v":654.15874953567982},{"$f":"TablaFronteras[[#This Row],[Y]]+TablaFronteras[[#This Row],[Alto]]/2","v":164.50161954760551},{"$f":"IF(AND(TablaFronteras[[#This Row],[Fila]]<>\"\",TablaFronteras[[#This Row],[X]]<miX,miX<TablaFronteras[[#This Row],[X]]+TablaFronteras[[#This Row],[Ancho]],TablaFronteras[[#This Row],[Y]]<miY,miY<TablaFronteras[[#This Row],[Y]]+TablaFronteras[[#This Row],[Alto]]),SQRT((TablaFronteras[[#This Row],[Centro X]]-miX)^2+(TablaFronteras[[#This Row],[Centro Y]]-miY)^2),\"\")","v":""},{"$f":"IF(TablaFronteras[[#This Row],[Frontera]]=\"\",\"\",IFERROR(MATCH(RIGHT(TablaFronteras[[#This Row],[Frontera]],LEN(TablaFronteras[[#This Row],[Frontera]])-IFERROR(FIND(\" - \",TablaFronteras[[#This Row],[Frontera]])+2,0)),TablaFronteras[Frontera],0),\"\"))","v":221}]
["Seychelles",469.54574584960938,212.39346313476563,0.30503937602043152,0.41354331374168396,{"$f":"TablaFronteras[[#This Row],[X]]+TablaFronteras[[#This Row],[Ancho]]/2","v":469.69826553761959},{"$f":"TablaFronteras[[#This Row],[Y]]+TablaFronteras[[#This Row],[Alto]]/2","v":212.60023479163647},{"$f":"IF(AND(TablaFronteras[[#This Row],[Fila]]<>\"\",TablaFronteras[[#This Row],[X]]<miX,miX<TablaFronteras[[#This Row],[X]]+TablaFronteras[[#This Row],[Ancho]],TablaFronteras[[#This Row],[Y]]<miY,miY<TablaFronteras[[#This Row],[Y]]+TablaFronteras[[#This Row],[Alto]]),SQRT((TablaFronteras[[#This Row],[Centro X]]-miX)^2+(TablaFronteras[[#This Row],[Centro Y]]-miY)^2),\"\")","v":""},{"$f":"IF(TablaFronteras[[#This Row],[Frontera]]=\"\",\"\",IFERROR(MATCH(RIGHT(TablaFronteras[[#This Row],[Frontera]],LEN(TablaFronteras[[#This Row],[Frontera]])-IFERROR(FIND(\" - \",TablaFronteras[[#This Row],[Frontera]])+2,0)),TablaFronteras[Frontera],0),\"\"))","v":222}]
["Serbia",391.49990844726563,89.592910766601563,7.845433235168457,10.336929321289063,{"$f":"TablaFronteras[[#This Row],[X]]+TablaFronteras[[#This Row],[Ancho]]/2","v":395.42262506484985},{"$f":"TablaFronteras[[#This Row],[Y]]+TablaFronteras[[#This Row],[Alto]]/2","v":94.761375427246094},{"$f":"IF(AND(TablaFronteras[[#This Row],[Fila]]<>\"\",TablaFronteras[[#This Row],[X]]<miX,miX<TablaFronteras[[#This Row],[X]]+TablaFronteras[[#This Row],[Ancho]],TablaFronteras[[#This Row],[Y]]<miY,miY<TablaFronteras[[#This Row],[Y]]+TablaFronteras[[#This Row],[Alto]]),SQRT((TablaFronteras[[#This Row],[Centro X]]-miX)^2+(TablaFronteras[[#This Row],[Centro Y]]-miY)^2),\"\")","v":""},{"$f":"IF(TablaFronteras[[#This Row],[Frontera]]=\"\",\"\",IFERROR(MATCH(RIGHT(TablaFronteras[[#This Row],[Frontera]],LEN(TablaFronteras[[#This Row],[Frontera]])-IFERROR(FIND(\" - \",TablaFronteras[[#This Row],[Frontera]])+2,0)),TablaFronteras[Frontera],0),\"\"))","v":223}]
["Kosovo",393.93557739257813,96.430397033691406,3.2277953624725342,3.4840157032012939,{"$f":"TablaFronteras[[#This Row],[X]]+TablaFronteras[[#This Row],[Ancho]]/2","v":395.54947507381439},{"$f":"TablaFronteras[[#This Row],[Y]]+TablaFronteras[[#This Row],[Alto]]/2","v":98.172404885292053},{"$f":"IF(AND(TablaFronteras[[#This Row],[Fila]]<>\"\",TablaFronteras[[#This Row],[X]]<miX,miX<TablaFronteras[[#This Row],[X]]+TablaFronteras[[#This Row],[Ancho]],TablaFronteras[[#This Row],[Y]]<miY,miY<TablaFronteras[[#This Row],[Y]]+TablaFronteras[[#This Row],[Alto]]),SQRT((TablaFronteras[[#This Row],[Centro X]]-miX)^2+(TablaFronteras[[#This Row],[Centro Y]]-miY)^2),\"\")","v":""},{"$f":"IF(TablaFronteras[[#This Row],[Frontera]]=\"\",\"\",IFERROR(MATCH(RIGHT(TablaFronteras[[#This Row],[Frontera]],LEN(TablaFronteras[[#This Row],[Frontera]])-IFERROR(FIND(\" - \",TablaFronteras[[#This Row],[Frontera]])+2,0)),TablaFronteras[Frontera],0),\"\"))","v":224}]
["Samoa",773.2635498046875,233.97842407226563,0.25543308258056641,1.3783464431762695,{"$f":"TablaFronteras[[#This Row],[X]]+TablaFronteras[[#This Row],[Ancho]]/2","v":773.39126634597778},{"$f":"TablaFronteras[[#This Row],[Y]]+TablaFronteras[[#This Row],[Alto]]/2","v":234.66759729385376},{"$f":"IF(AND(TablaFronteras[[#This Row],[Fila]]<>\"\",TablaFronteras[[#This Row],[X]]<miX,miX<TablaFronteras[[#This Row],[X]]+TablaFronteras[[#This Row],[Ancho]],TablaFronteras[[#This Row],[Y]]<miY,miY<TablaFronteras[[#This Row],[Y]]+TablaFronteras[[#This Row],[Alto]]),SQRT((TablaFronteras[[#This Row],[Centro X]]-miX)^2+(TablaFronteras[[#This Row],[Centro Y]]-miY)^2),\"\")","v":""},{"$f":"IF(TablaFronteras[[#This Row],[Frontera]]=\"\",\"\",IFERROR(MATCH(RIGHT(TablaFronteras[[#This Row],[Frontera]],LEN(TablaFronteras[[#This Row],[Frontera]])-IFERROR(FIND(\" - \",TablaFronteras[[#This Row],[Frontera]])+2,0)),TablaFronteras[Frontera],0),\"\"))","v":225}]
["Palaos",633.158447265625,182.53204345703125,0.32598423957824707,0.8722834587097168,{"$f":"TablaFronteras[[#This Row],[X]]+TablaFronteras[[#This Row],[Ancho]]/2","v":633.32143938541412},{"$f":"TablaFronteras[[#This Row],[Y]]+TablaFronteras[[#This Row],[Alto]]/2","v":182.96818518638611},{"$f":"IF(AND(TablaFronteras[[#This Row],[Fila]]<>\"\",TablaFronteras[[#This Row],[X]]<miX,miX<TablaFronteras[[#This Row],[X]]+TablaFronteras[[#This Row],[Ancho]],TablaFronteras[[#This Row],[Y]]<miY,miY<TablaFronteras[[#This Row],[Y]]+TablaFronteras[[#This Row],[Alto]]),SQRT((TablaFronteras[[#This Row],[Centro X]]-miX)^2+(TablaFronteras[[#This Row],[Centro Y]]-miY)^2),\"\")","v":""},{"$f":"IF(TablaFronteras[[#This Row],[Frontera]]=\"\",\"\",IFERROR(MATCH(RIGHT(TablaFronteras[[#This Row],[Frontera]],LEN(TablaFronteras[[#This Row],[Frontera]])-IFERROR(FIND(\" - \",TablaFronteras[[#This Row],[Frontera]])+2,0)),TablaFronteras[Frontera],0),\"\"))","v":226}]
["Islas Georgias y Sandwich",291.04415893554688,330.94668579101563,4.4392127990722656,2.0566141605377197,{"$f":"TablaFronteras[[#This Row],[X]]+TablaFronteras[[#This Row],[Ancho]]/2","v":293.26376533508301},{"$f":"TablaFronteras[[#This Row],[Y]]+TablaFronteras[[#This Row],[Alto]]/2","v":331.97499287128448},{"$f":"IF(AND(TablaFronteras[[#This Row],[Fila]]<>\"\",TablaFronteras[[#This Row],[X]]<miX,miX<TablaFronteras[[#This Row],[X]]+TablaFronteras[[#This Row],[Ancho]],TablaFronteras[[#This Row],[Y]]<miY,miY<TablaFronteras[[#This Row],[Y]]+TablaFronteras[[#This Row],[Alto]]),SQRT((TablaFronteras[[#This Row],[Centro X]]-miX)^2+(TablaFronteras[[#This Row],[Centro Y]]-miY)^2),\"\")","v":""},{"$f":"IF(TablaFronteras[[#This Row],[Frontera]]=\"\",\"\",IFERROR(MATCH(RIGHT(TablaFronteras[[#This Row],[Frontera]],LEN(TablaFronteras[[#This Row],[Frontera]])-IFERROR(FIND(\" - \",TablaFronteras[[#This Row],[Frontera]])+2,0)),TablaFronteras[Frontera],0),\"\"))","v":227}]
["Reunión",467.44937133789063,243.90676879882813,1.1799212694168091,1.2138582468032837,{"$f":"TablaFronteras[[#This Row],[X]]+TablaFronteras[[#This Row],[Ancho]]/2","v":468.03933197259903},{"$f":"TablaFronteras[[#This Row],[Y]]+TablaFronteras[[#This Row],[Alto]]/2","v":244.51369792222977},{"$f":"IF(AND(TablaFronteras[[#This Row],[Fila]]<>\"\",TablaFronteras[[#This Row],[X]]<miX,miX<TablaFronteras[[#This Row],[X]]+TablaFronteras[[#This Row],[Ancho]],TablaFronteras[[#This Row],[Y]]<miY,miY<TablaFronteras[[#This Row],[Y]]+TablaFronteras[[#This Row],[Alto]]),SQRT((TablaFronteras[[#This Row],[Centro X]]-miX)^2+(TablaFronteras[[#This Row],[Centro Y]]-miY)^2),\"\")","v":""},{"$f":"IF(TablaFronteras[[#This Row],[Frontera]]=\"\",\"\",IFERROR(MATCH(RIGHT(TablaFronteras[[#This Row],[Frontera]],LEN(TablaFronteras[[#This Row],[Frontera]])-IFERROR(FIND(\" - \",TablaFronteras[[#This Row],[Frontera]])+2,0)),TablaFronteras[Frontera],0),\"\"))","v":228}]
["Mauricio",471.06573486328125,241.8848876953125,0.46448817849159241,1.2185826301574707,{"$f":"TablaFronteras[[#This Row],[X]]+TablaFronteras[[#This Row],[Ancho]]/2","v":471.29797895252705},{"$f":"TablaFronteras[[#This Row],[Y]]+TablaFronteras[[#This Row],[Alto]]/2","v":242.49417901039124},{"$f":"IF(AND(TablaFronteras[[#This Row],[Fila]]<>\"\",TablaFronteras[[#This Row],[X]]<miX,miX<TablaFronteras[[#This Row],[X]]+TablaFronteras[[#This Row],[Ancho]],TablaFronteras[[#This Row],[Y]]<miY,miY<TablaFronteras[[#This Row],[Y]]+TablaFronteras[[#This Row],[Alto]]),SQRT((TablaFronteras[[#This Row],[Centro X]]-miX)^2+(TablaFronteras[[#This Row],[Centro Y]]-miY)^2),\"\")","v":""},{"$f":"IF(TablaFronteras[[#This Row],[Frontera]]=\"\",\"\",IFERROR(MATCH(RIGHT(TablaFronteras[[#This Row],[Frontera]],LEN(TablaFronteras[[#This Row],[Frontera]])-IFERROR(FIND(\" - \",TablaFronteras[[#This Row],[Frontera]])+2,0)),TablaFronteras[Frontera],0),\"\"))","v":229}]
["Mayotte",448.0882568359375,223.88386535644531,0.6159055233001709,2.2061417102813721,{"$f":"TablaFronteras[[#This Row],[X]]+TablaFronteras[[#This Row],[Ancho]]/2","v":448.39620959758759},{"$f":"TablaFronteras[[#This Row],[Y]]+TablaFronteras[[#This Row],[Alto]]/2","v":224.986936211586},{"$f":"IF(AND(TablaFronteras[[#This Row],[Fila]]<>\"\",TablaFronteras[[#This Row],[X]]<miX,miX<TablaFronteras[[#This Row],[X]]+TablaFronteras[[#This Row],[Ancho]],TablaFronteras[[#This Row],[Y]]<miY,miY<TablaFronteras[[#This Row],[Y]]+TablaFronteras[[#This Row],[Alto]]),SQRT((TablaFronteras[[#This Row],[Centro X]]-miX)^2+(TablaFronteras[[#This Row],[Centro Y]]-miY)^2),\"\")","v":""},{"$f":"IF(TablaFronteras[[#This Row],[Frontera]]=\"\",\"\",IFERROR(MATCH(RIGHT(TablaFronteras[[#This Row],[Frontera]],LEN(TablaFronteras[[#This Row],[Frontera]])-IFERROR(FIND(\" - \",TablaFronteras[[#This Row],[Frontera]])+2,0)),TablaFronteras[Frontera],0),\"\"))","v":230}]
["Comoras",443.91424560546875,221.07449340820313,4.4374804496765137,3.8588976860046387,{"$f":"TablaFronteras[[#This Row],[X]]+TablaFronteras[[#This Row],[Ancho]]/2","v":446.13298583030701},{"$f":"TablaFronteras[[#This Row],[Y]]+TablaFronteras[[#This Row],[Alto]]/2","v":223.00394225120544},{"$f":"IF(AND(TablaFronteras[[#This Row],[Fila]]<>\"\",TablaFronteras[[#This Row],[X]]<miX,miX<TablaFronteras[[#This Row],[X]]+TablaFronteras[[#This Row],[Ancho]],TablaFronteras[[#This Row],[Y]]<miY,miY<TablaFronteras[[#This Row],[Y]]+TablaFronteras[[#This Row],[Alto]]),SQRT((TablaFronteras[[#This Row],[Centro X]]-miX)^2+(TablaFronteras[[#This Row],[Centro Y]]-miY)^2),\"\")","v":""},{"$f":"IF(TablaFronteras[[#This Row],[Frontera]]=\"\",\"\",IFERROR(MATCH(RIGHT(TablaFronteras[[#This Row],[Frontera]],LEN(TablaFronteras[[#This Row],[Frontera]])-IFERROR(FIND(\" - \",TablaFronteras[[#This Row],[Frontera]])+2,0)),TablaFronteras[Frontera],0),\"\"))","v":231}]
["Tierras Australes Francesas",481.12936401367188,318.3056640625,4.3685040473937988,3.5457479953765869,{"$f":"TablaFronteras[[#This Row],[X]]+TablaFronteras[[#This Row],[Ancho]]/2","v":483.31361603736877},{"$f":"TablaFronteras[[#This Row],[Y]]+TablaFronteras[[#This Row],[Alto]]/2","v":320.07853806018829},{"$f":"IF(AND(TablaFronteras[[#This Row],[Fila]]<>\"\",TablaFronteras[[#This Row],[X]]<miX,miX<TablaFronteras[[#This Row],[X]]+TablaFronteras[[#This Row],[Ancho]],TablaFronteras[[#This Row],[Y]]<miY,miY<TablaFronteras[[#This Row],[Y]]+TablaFronteras[[#This Row],[Alto]]),SQRT((TablaFronteras[[#This Row],[Centro X]]-miX)^2+(TablaFronteras[[#This Row],[Centro Y]]-miY)^2),\"\")","v":""},{"$f":"IF(TablaFronteras[[#This Row],[Frontera]]=\"\",\"\",IFERROR(MATCH(RIGHT(TablaFronteras[[#This Row],[Frontera]],LEN(TablaFronteras[[#This Row],[Frontera]])-IFERROR(FIND(\" - \",TablaFronteras[[#This Row],[Frontera]])+2,0)),TablaFronteras[Frontera],0),\"\"))","v":232}]
["Islas Pitcairn",43.215667724609375,222.55157470703125,23.187873840332031,21.940000534057617,{"$f":"TablaFronteras[[#This Row],[X]]+TablaFronteras[[#This Row],[Ancho]]/2","v":54.809604644775391},{"$f":"TablaFronteras[[#This Row],[Y]]+TablaFronteras[[#This Row],[Alto]]/2","v":233.52157497406006},{"$f":"IF(AND(TablaFronteras[[#This Row],[Fila]]<>\"\",TablaFronteras[[#This Row],[X]]<miX,miX<TablaFronteras[[#This Row],[X]]+TablaFronteras[[#This Row],[Ancho]],TablaFronteras[[#This Row],[Y]]<miY,miY<TablaFronteras[[#This Row],[Y]]+TablaFronteras[[#This Row],[Alto]]),SQRT((TablaFronteras[[#This Row],[Centro X]]-miX)^2+(TablaFronteras[[#This Row],[Centro Y]]-miY)^2),\"\")","v":""},{"$f":"IF(TablaFronteras[[#This Row],[Frontera]]=\"\",\"\",IFERROR(MATCH(RIGHT(TablaFronteras[[#This Row],[Frontera]],LEN(TablaFronteras[[#This Row],[Frontera]])-IFERROR(FIND(\" - \",TablaFronteras[[#This Row],[Frontera]])+2,0)),TablaFronteras[Frontera],0),\"\"))","v":233}]
["Islas Cook",773.393798828125,225.01393127441406,7.7165355905890465E-3,6.1023622751235962E-2,{"$f":"TablaFronteras[[#This Row],[X]]+TablaFronteras[[#This Row],[Ancho]]/2","v":773.39765709592029},{"$f":"TablaFronteras[[#This Row],[Y]]+TablaFronteras[[#This Row],[Alto]]/2","v":225.04444308578968},{"$f":"IF(AND(TablaFronteras[[#This Row],[Fila]]<>\"\",TablaFronteras[[#This Row],[X]]<miX,miX<TablaFronteras[[#This Row],[X]]+TablaFronteras[[#This Row],[Ancho]],TablaFronteras[[#This Row],[Y]]<miY,miY<TablaFronteras[[#This Row],[Y]]+TablaFronteras[[#This Row],[Alto]]),SQRT((TablaFronteras[[#This Row],[Centro X]]-miX)^2+(TablaFronteras[[#This Row],[Centro Y]]-miY)^2),\"\")","v":""},{"$f":"IF(TablaFronteras[[#This Row],[Frontera]]=\"\",\"\",IFERROR(MATCH(RIGHT(TablaFronteras[[#This Row],[Frontera]],LEN(TablaFronteras[[#This Row],[Frontera]])-IFERROR(FIND(\" - \",TablaFronteras[[#This Row],[Frontera]])+2,0)),TablaFronteras[Frontera],0),\"\"))","v":234}]
["San Martín (Países Bajos)",224.57102966308594,156.93693542480469,0.17102362215518951,0.27244094014167786,{"$f":"TablaFronteras[[#This Row],[X]]+TablaFronteras[[#This Row],[Ancho]]/2","v":224.65654147416353},{"$f":"TablaFronteras[[#This Row],[Y]]+TablaFronteras[[#This Row],[Alto]]/2","v":157.07315589487553},{"$f":"IF(AND(TablaFronteras[[#This Row],[Fila]]<>\"\",TablaFronteras[[#This Row],[X]]<miX,miX<TablaFronteras[[#This Row],[X]]+TablaFronteras[[#This Row],[Ancho]],TablaFronteras[[#This Row],[Y]]<miY,miY<TablaFronteras[[#This Row],[Y]]+TablaFronteras[[#This Row],[Alto]]),SQRT((TablaFronteras[[#This Row],[Centro X]]-miX)^2+(TablaFronteras[[#This Row],[Centro Y]]-miY)^2),\"\")","v":""},{"$f":"IF(TablaFronteras[[#This Row],[Frontera]]=\"\",\"\",IFERROR(MATCH(RIGHT(TablaFronteras[[#This Row],[Frontera]],LEN(TablaFronteras[[#This Row],[Frontera]])-IFERROR(FIND(\" - \",TablaFronteras[[#This Row],[Frontera]])+2,0)),TablaFronteras[Frontera],0),\"\"))","v":235}]
["San Pedro y Miquelón",252.38693237304688,87.576850891113281,0.22456693649291992,0.62283462285995483,{"$f":"TablaFronteras[[#This Row],[X]]+TablaFronteras[[#This Row],[Ancho]]/2","v":252.49921584129333},{"$f":"TablaFronteras[[#This Row],[Y]]+TablaFronteras[[#This Row],[Alto]]/2","v":87.888268202543259},{"$f":"IF(AND(TablaFronteras[[#This Row],[Fila]]<>\"\",TablaFronteras[[#This Row],[X]]<miX,miX<TablaFronteras[[#This Row],[X]]+TablaFronteras[[#This Row],[Ancho]],TablaFronteras[[#This Row],[Y]]<miY,miY<TablaFronteras[[#This Row],[Y]]+TablaFronteras[[#This Row],[Alto]]),SQRT((TablaFronteras[[#This Row],[Centro X]]-miX)^2+(TablaFronteras[[#This Row],[Centro Y]]-miY)^2),\"\")","v":""},{"$f":"IF(TablaFronteras[[#This Row],[Frontera]]=\"\",\"\",IFERROR(MATCH(RIGHT(TablaFronteras[[#This Row],[Frontera]],LEN(TablaFronteras[[#This Row],[Frontera]])-IFERROR(FIND(\" - \",TablaFronteras[[#This Row],[Frontera]])+2,0)),TablaFronteras[Frontera],0),\"\"))","v":236}]
["Jersey",352.51583862304688,82.296615600585938,0.26094487309455872,0.19913385808467865,{"$f":"TablaFronteras[[#This Row],[X]]+TablaFronteras[[#This Row],[Ancho]]/2","v":352.64631105959415},{"$f":"TablaFronteras[[#This Row],[Y]]+TablaFronteras[[#This Row],[Alto]]/2","v":82.396182529628277},{"$f":"IF(AND(TablaFronteras[[#This Row],[Fila]]<>\"\",TablaFronteras[[#This Row],[X]]<miX,miX<TablaFronteras[[#This Row],[X]]+TablaFronteras[[#This Row],[Ancho]],TablaFronteras[[#This Row],[Y]]<miY,miY<TablaFronteras[[#This Row],[Y]]+TablaFronteras[[#This Row],[Alto]]),SQRT((TablaFronteras[[#This Row],[Centro X]]-miX)^2+(TablaFronteras[[#This Row],[Centro Y]]-miY)^2),\"\")","v":""},{"$f":"IF(TablaFronteras[[#This Row],[Frontera]]=\"\",\"\",IFERROR(MATCH(RIGHT(TablaFronteras[[#This Row],[Frontera]],LEN(TablaFronteras[[#This Row],[Frontera]])-IFERROR(FIND(\" - \",TablaFronteras[[#This Row],[Frontera]])+2,0)),TablaFronteras[Frontera],0),\"\"))","v":237}]
["Isla de Man",349.38473510742188,70.415512084960938,0.65826773643493652,0.6813386082649231,{"$f":"TablaFronteras[[#This Row],[X]]+TablaFronteras[[#This Row],[Ancho]]/2","v":349.71386897563934},{"$f":"TablaFronteras[[#This Row],[Y]]+TablaFronteras[[#This Row],[Alto]]/2","v":70.756181389093399},{"$f":"IF(AND(TablaFronteras[[#This Row],[Fila]]<>\"\",TablaFronteras[[#This Row],[X]]<miX,miX<TablaFronteras[[#This Row],[X]]+TablaFronteras[[#This Row],[Ancho]],TablaFronteras[[#This Row],[Y]]<miY,miY<TablaFronteras[[#This Row],[Y]]+TablaFronteras[[#This Row],[Alto]]),SQRT((TablaFronteras[[#This Row],[Centro X]]-miX)^2+(TablaFronteras[[#This Row],[Centro Y]]-miY)^2),\"\")","v":""},{"$f":"IF(TablaFronteras[[#This Row],[Frontera]]=\"\",\"\",IFERROR(MATCH(RIGHT(TablaFronteras[[#This Row],[Frontera]],LEN(TablaFronteras[[#This Row],[Frontera]])-IFERROR(FIND(\" - \",TablaFronteras[[#This Row],[Frontera]])+2,0)),TablaFronteras[Frontera],0),\"\"))","v":238}]
["San Martín",225.25149536132813,159.07205200195313,0.32417324185371399,0.9029921293258667,{"$f":"TablaFronteras[[#This Row],[X]]+TablaFronteras[[#This Row],[Ancho]]/2","v":225.41358198225498},{"$f":"TablaFronteras[[#This Row],[Y]]+TablaFronteras[[#This Row],[Alto]]/2","v":159.52354806661606},{"$f":"IF(AND(TablaFronteras[[#This Row],[Fila]]<>\"\",TablaFronteras[[#This Row],[X]]<miX,miX<TablaFronteras[[#This Row],[X]]+TablaFronteras[[#This Row],[Ancho]],TablaFronteras[[#This Row],[Y]]<miY,miY<TablaFronteras[[#This Row],[Y]]+TablaFronteras[[#This Row],[Alto]]),SQRT((TablaFronteras[[#This Row],[Centro X]]-miX)^2+(TablaFronteras[[#This Row],[Centro Y]]-miY)^2),\"\")","v":""},{"$f":"IF(TablaFronteras[[#This Row],[Frontera]]=\"\",\"\",IFERROR(MATCH(RIGHT(TablaFronteras[[#This Row],[Frontera]],LEN(TablaFronteras[[#This Row],[Frontera]])-IFERROR(FIND(\" - \",TablaFronteras[[#This Row],[Frontera]])+2,0)),TablaFronteras[Frontera],0),\"\"))","v":239}]
["Isla desconocida3",93.345588684082031,260.41055297851563,0.21858267486095428,0.21889764070510864,{"$f":"TablaFronteras[[#This Row],[X]]+TablaFronteras[[#This Row],[Ancho]]/2","v":93.454880021512508},{"$f":"TablaFronteras[[#This Row],[Y]]+TablaFronteras[[#This Row],[Alto]]/2","v":260.52000179886818},{"$f":"IF(AND(TablaFronteras[[#This Row],[Fila]]<>\"\",TablaFronteras[[#This Row],[X]]<miX,miX<TablaFronteras[[#This Row],[X]]+TablaFronteras[[#This Row],[Ancho]],TablaFronteras[[#This Row],[Y]]<miY,miY<TablaFronteras[[#This Row],[Y]]+TablaFronteras[[#This Row],[Alto]]),SQRT((TablaFronteras[[#This Row],[Centro X]]-miX)^2+(TablaFronteras[[#This Row],[Centro Y]]-miY)^2),\"\")","v":""},{"$f":"IF(TablaFronteras[[#This Row],[Frontera]]=\"\",\"\",IFERROR(MATCH(RIGHT(TablaFronteras[[#This Row],[Frontera]],LEN(TablaFronteras[[#This Row],[Frontera]])-IFERROR(FIND(\" - \",TablaFronteras[[#This Row],[Frontera]])+2,0)),TablaFronteras[Frontera],0),\"\"))","v":240}]
["Isla desconocida2",7.15716552734375,248.24031066894531,0.23125983774662018,0.22740156948566437,{"$f":"TablaFronteras[[#This Row],[X]]+TablaFronteras[[#This Row],[Ancho]]/2","v":7.2727954462170601},{"$f":"TablaFronteras[[#This Row],[Y]]+TablaFronteras[[#This Row],[Alto]]/2","v":248.35401145368814},{"$f":"IF(AND(TablaFronteras[[#This Row],[Fila]]<>\"\",TablaFronteras[[#This Row],[X]]<miX,miX<TablaFronteras[[#This Row],[X]]+TablaFronteras[[#This Row],[Ancho]],TablaFronteras[[#This Row],[Y]]<miY,miY<TablaFronteras[[#This Row],[Y]]+TablaFronteras[[#This Row],[Alto]]),SQRT((TablaFronteras[[#This Row],[Centro X]]-miX)^2+(TablaFronteras[[#This Row],[Centro Y]]-miY)^2),\"\")","v":""},{"$f":"IF(TablaFronteras[[#This Row],[Frontera]]=\"\",\"\",IFERROR(MATCH(RIGHT(TablaFronteras[[#This Row],[Frontera]],LEN(TablaFronteras[[#This Row],[Frontera]])-IFERROR(FIND(\" - \",TablaFronteras[[#This Row],[Frontera]])+2,0)),TablaFronteras[Frontera],0),\"\"))","v":241}]
["Isla desconocida1",27.371496200561523,252.73440551757813,0.2184251993894577,0.2389763742685318,{"$f":"TablaFronteras[[#This Row],[X]]+TablaFronteras[[#This Row],[Ancho]]/2","v":27.480708800256252},{"$f":"TablaFronteras[[#This Row],[Y]]+TablaFronteras[[#This Row],[Alto]]/2","v":252.85389370471239},{"$f":"IF(AND(TablaFronteras[[#This Row],[Fila]]<>\"\",TablaFronteras[[#This Row],[X]]<miX,miX<TablaFronteras[[#This Row],[X]]+TablaFronteras[[#This Row],[Ancho]],TablaFronteras[[#This Row],[Y]]<miY,miY<TablaFronteras[[#This Row],[Y]]+TablaFronteras[[#This Row],[Alto]]),SQRT((TablaFronteras[[#This Row],[Centro X]]-miX)^2+(TablaFronteras[[#This Row],[Centro Y]]-miY)^2),\"\")","v":""},{"$f":"IF(TablaFronteras[[#This Row],[Frontera]]=\"\",\"\",IFERROR(MATCH(RIGHT(TablaFronteras[[#This Row],[Frontera]],LEN(TablaFronteras[[#This Row],[Frontera]])-IFERROR(FIND(\" - \",TablaFronteras[[#This Row],[Frontera]])+2,0)),TablaFronteras[Frontera],0),\"\"))","v":242}]
["Isla desconocida",26.364015579223633,196.24142456054688,0.72543305158615112,0.78740155696868896,{"$f":"TablaFronteras[[#This Row],[X]]+TablaFronteras[[#This Row],[Ancho]]/2","v":26.726732105016708},{"$f":"TablaFronteras[[#This Row],[Y]]+TablaFronteras[[#This Row],[Alto]]/2","v":196.63512533903122},{"$f":"IF(AND(TablaFronteras[[#This Row],[Fila]]<>\"\",TablaFronteras[[#This Row],[X]]<miX,miX<TablaFronteras[[#This Row],[X]]+TablaFronteras[[#This Row],[Ancho]],TablaFronteras[[#This Row],[Y]]<miY,miY<TablaFronteras[[#This Row],[Y]]+TablaFronteras[[#This Row],[Alto]]),SQRT((TablaFronteras[[#This Row],[Centro X]]-miX)^2+(TablaFronteras[[#This Row],[Centro Y]]-miY)^2),\"\")","v":""},{"$f":"IF(TablaFronteras[[#This Row],[Frontera]]=\"\",\"\",IFERROR(MATCH(RIGHT(TablaFronteras[[#This Row],[Frontera]],LEN(TablaFronteras[[#This Row],[Frontera]])-IFERROR(FIND(\" - \",TablaFronteras[[#This Row],[Frontera]])+2,0)),TablaFronteras[Frontera],0),\"\"))","v":243}]
["Total",null,null,null,null,null,null,{"$f":"SUBTOTAL(105,TablaFronteras[Distancia])","v":0}]